Body Name,Date Paid,Transaction Number,Amount,Supplier Name,Supplier Type,Expense Area,Cost Centre Description,Expense Type
Cambridgeshire County Council,06-Nov-19,51300002548,"-14,037.60",XEROX FINANCE LTD,TRADE SUPPLIER,Control Accounts,Control Accounts - Payables,Migration Only - Marked as Do Not Use
Cambridgeshire County Council,27-Nov-19,51301266930,"-13,786.75",FENLAND DISTRICT COUNCIL,OTHER PUBLIC BODIES,Cambridgeshire Alternative Education Service (SchFin),CAES - Fenland,Business rates
Cambridgeshire County Council,22-Nov-19,51301265475,"-11,824.21",PETERBOROUGH REGIONAL COLLEGE,EDUCATION,SEND High Needs Top Up,SEND Specialist Services-High needs top-up-Mainstream,Independent School Placements
Cambridgeshire County Council,25-Nov-19,51301051885,"-7,782.50",CAMBRIDGE REGIONAL COLLEGE,EDUCATION,Home to School Transport - Mainstream,Home to School Transport - Post 16,Home to School - Contract
Cambridgeshire County Council,18-Nov-19,51301246159,"-5,210.00",ST BEDES INTER CHURCH SCHOOL,EDUCATION,Cambridge City secondary,Cambridge City secondary,Furniture - Fixtures and Fittings
Cambridgeshire County Council,08-Nov-19,51301237227,"-4,675.66",CAS LEARNING DISABILITIES LTD,CARE ESTABLISHMENT,LD - East Locality - Cost of Care,LD - East Cambs - Care,Residential Care
Cambridgeshire County Council,08-Nov-19,51301237226,"-4,675.66",CAS LEARNING DISABILITIES LTD,CARE ESTABLISHMENT,LD - East Locality - Cost of Care,LD - East Cambs - Care,Residential Care
Cambridgeshire County Council,08-Nov-19,51301251148,"-4,655.00",Accomplish Group Support Limited,CARE ESTABLISHMENT,LD - Hunts Locality - Cost of Care,LD - Huntingdonshire - Special Needs,Rehabilitation And Respite Care
Cambridgeshire County Council,08-Nov-19,51301254858,"-4,655.00",Accomplish Group Support Limited,CARE ESTABLISHMENT,LD - Hunts Locality - Cost of Care,LD - Huntingdonshire - Special Needs,Rehabilitation And Respite Care
Cambridgeshire County Council,08-Nov-19,51301254860,"-4,655.00",Accomplish Group Support Limited,CARE ESTABLISHMENT,LD - Hunts Locality - Cost of Care,LD - Huntingdonshire - Special Needs,Rehabilitation And Respite Care
Cambridgeshire County Council,08-Nov-19,51301251137,"-4,655.00",Accomplish Group Support Limited,CARE ESTABLISHMENT,LD - Hunts Locality - Cost of Care,LD - Huntingdonshire - Special Needs,Rehabilitation And Respite Care
Cambridgeshire County Council,08-Nov-19,51301254844,"-4,655.00",Accomplish Group Support Limited,CARE ESTABLISHMENT,LD - Hunts Locality - Cost of Care,LD - Huntingdonshire - Special Needs,Rehabilitation And Respite Care
Cambridgeshire County Council,08-Nov-19,51301251136,"-4,655.00",Accomplish Group Support Limited,CARE ESTABLISHMENT,LD - Hunts Locality - Cost of Care,LD - Huntingdonshire - Special Needs,Rehabilitation And Respite Care
Cambridgeshire County Council,08-Nov-19,51301254847,"-4,655.00",Accomplish Group Support Limited,CARE ESTABLISHMENT,LD - Hunts Locality - Cost of Care,LD - Huntingdonshire - Special Needs,Rehabilitation And Respite Care
Cambridgeshire County Council,08-Nov-19,51301251139,"-4,655.00",Accomplish Group Support Limited,CARE ESTABLISHMENT,LD - Hunts Locality - Cost of Care,LD - Huntingdonshire - Care,Rehabilitation And Respite Care
Cambridgeshire County Council,08-Nov-19,51301251144,"-4,655.00",Accomplish Group Support Limited,CARE ESTABLISHMENT,LD - Hunts Locality - Cost of Care,LD - Huntingdonshire - Care,Rehabilitation And Respite Care
Cambridgeshire County Council,08-Nov-19,51301254845,"-4,655.00",Accomplish Group Support Limited,CARE ESTABLISHMENT,LD - Hunts Locality - Cost of Care,LD - Huntingdonshire - Care,Rehabilitation And Respite Care
Cambridgeshire County Council,08-Nov-19,51301254843,"-4,655.00",Accomplish Group Support Limited,CARE ESTABLISHMENT,LD - Hunts Locality - Cost of Care,LD - Huntingdonshire - Care,Rehabilitation And Respite Care
Cambridgeshire County Council,08-Nov-19,51301254854,"-4,655.00",Accomplish Group Support Limited,CARE ESTABLISHMENT,LD - Hunts Locality - Cost of Care,LD - Huntingdonshire - Care,Rehabilitation And Respite Care
Cambridgeshire County Council,08-Nov-19,51301251147,"-4,655.00",Accomplish Group Support Limited,CARE ESTABLISHMENT,LD - Hunts Locality - Cost of Care,LD - Huntingdonshire - Care,Rehabilitation And Respite Care
Cambridgeshire County Council,08-Nov-19,51301251131,"-4,655.00",Accomplish Group Support Limited,CARE ESTABLISHMENT,LD - Hunts Locality - Cost of Care,LD - Huntingdonshire - Care,Rehabilitation And Respite Care
Cambridgeshire County Council,08-Nov-19,51301251141,"-4,655.00",Accomplish Group Support Limited,CARE ESTABLISHMENT,LD - Hunts Locality - Cost of Care,LD - Huntingdonshire - Care,Rehabilitation And Respite Care
Cambridgeshire County Council,08-Nov-19,51301251130,"-4,655.00",Accomplish Group Support Limited,CARE ESTABLISHMENT,LD - Hunts Locality - Cost of Care,LD - Huntingdonshire - Care,Rehabilitation And Respite Care
Cambridgeshire County Council,08-Nov-19,51301254850,"-4,655.00",Accomplish Group Support Limited,CARE ESTABLISHMENT,LD - Hunts Locality - Cost of Care,LD - Huntingdonshire - Care,Rehabilitation And Respite Care
Cambridgeshire County Council,08-Nov-19,51301254849,"-4,655.00",Accomplish Group Support Limited,CARE ESTABLISHMENT,LD - Hunts Locality - Cost of Care,LD - Huntingdonshire - Care,Rehabilitation And Respite Care
Cambridgeshire County Council,08-Nov-19,51301257236,"-4,474.00",GLENHOLME HEALTHCARE LTD,CARE ESTABLISHMENT,LD - Young Adults Team,LD - Young Adults - Care,Residential Care
Cambridgeshire County Council,08-Nov-19,51301257236,"-4,474.00",GLENHOLME HEALTHCARE LTD,CARE ESTABLISHMENT,LD - Young Adults Team,LD - Young Adults - Care,Residential Care
Cambridgeshire County Council,08-Nov-19,51301257236,"-4,474.00",GLENHOLME HEALTHCARE LTD,CARE ESTABLISHMENT,LD - Young Adults Team,LD - Young Adults - Care,Residential Care
Cambridgeshire County Council,08-Nov-19,51301257236,"-4,474.00",GLENHOLME HEALTHCARE LTD,CARE ESTABLISHMENT,LD - Young Adults Team,LD - Young Adults - Care,Residential Care
Cambridgeshire County Council,08-Nov-19,51301257236,"-4,474.00",GLENHOLME HEALTHCARE LTD,CARE ESTABLISHMENT,LD - Young Adults Team,LD - Young Adults - Care,Residential Care
Cambridgeshire County Council,08-Nov-19,51301257236,"-4,474.00",GLENHOLME HEALTHCARE LTD,CARE ESTABLISHMENT,LD - Young Adults Team,LD - Young Adults - Care,Residential Care
Cambridgeshire County Council,08-Nov-19,51301257236,"-4,474.00",GLENHOLME HEALTHCARE LTD,CARE ESTABLISHMENT,LD - Young Adults Team,LD - Young Adults - Care,Residential Care
Cambridgeshire County Council,08-Nov-19,51301257236,"-4,474.00",GLENHOLME HEALTHCARE LTD,CARE ESTABLISHMENT,LD - Young Adults Team,LD - Young Adults - Care,Residential Care
Cambridgeshire County Council,08-Nov-19,51301257236,"-4,474.00",GLENHOLME HEALTHCARE LTD,CARE ESTABLISHMENT,LD - Young Adults Team,LD - Young Adults - Care,Residential Care
Cambridgeshire County Council,08-Nov-19,51301257236,"-4,474.00",GLENHOLME HEALTHCARE LTD,CARE ESTABLISHMENT,LD - Young Adults Team,LD - Young Adults - Care,Residential Care
Cambridgeshire County Council,08-Nov-19,51301257236,"-4,474.00",GLENHOLME HEALTHCARE LTD,CARE ESTABLISHMENT,LD - Young Adults Team,LD - Young Adults - Care,Residential Care
Cambridgeshire County Council,08-Nov-19,51301257236,"-4,474.00",GLENHOLME HEALTHCARE LTD,CARE ESTABLISHMENT,LD - Young Adults Team,LD - Young Adults - Care,Residential Care
Cambridgeshire County Council,08-Nov-19,51301257236,"-4,474.00",GLENHOLME HEALTHCARE LTD,CARE ESTABLISHMENT,LD - Young Adults Team,LD - Young Adults - Care,Residential Care
Cambridgeshire County Council,08-Nov-19,51301257236,"-4,474.00",GLENHOLME HEALTHCARE LTD,CARE ESTABLISHMENT,LD - Young Adults Team,LD - Young Adults - Care,Residential Care
Cambridgeshire County Council,08-Nov-19,51301257236,"-4,474.00",GLENHOLME HEALTHCARE LTD,CARE ESTABLISHMENT,LD - Young Adults Team,LD - Young Adults - Care,Residential Care
Cambridgeshire County Council,08-Nov-19,51301257236,"-4,474.00",GLENHOLME HEALTHCARE LTD,CARE ESTABLISHMENT,LD - Young Adults Team,LD - Young Adults - Care,Residential Care
Cambridgeshire County Council,08-Nov-19,51301257236,"-4,474.00",GLENHOLME HEALTHCARE LTD,CARE ESTABLISHMENT,LD - Young Adults Team,LD - Young Adults - Care,Residential Care
Cambridgeshire County Council,08-Nov-19,51301257236,"-4,474.00",GLENHOLME HEALTHCARE LTD,CARE ESTABLISHMENT,LD - Young Adults Team,LD - Young Adults - Care,Residential Care
Cambridgeshire County Council,08-Nov-19,51301257236,"-4,474.00",GLENHOLME HEALTHCARE LTD,CARE ESTABLISHMENT,LD - Young Adults Team,LD - Young Adults - Care,Residential Care
Cambridgeshire County Council,08-Nov-19,51301257236,"-4,474.00",GLENHOLME HEALTHCARE LTD,CARE ESTABLISHMENT,LD - Young Adults Team,LD - Young Adults - Care,Residential Care
Cambridgeshire County Council,06-Nov-19,51300003601,"-4,276.80",BSI MEMBERSHIP,OTHER PUBLIC BODIES,Control Accounts,Control Accounts - Payables,Migration Only - Marked as Do Not Use
Cambridgeshire County Council,14-Nov-19,51301263058,"-3,563.03",OASIS INFORMATION SECURED,TRADE SUPPLIER,Information Management,Information Management,Storage and Archiving
Cambridgeshire County Council,08-Nov-19,51301254842,"-3,325.00",Accomplish Group Support Limited,CARE ESTABLISHMENT,LD - Hunts Locality - Cost of Care,LD - Huntingdonshire - Special Needs,Rehabilitation And Respite Care
Cambridgeshire County Council,08-Nov-19,51301251140,"-3,325.00",Accomplish Group Support Limited,CARE ESTABLISHMENT,LD - Hunts Locality - Cost of Care,LD - Huntingdonshire - Care,Rehabilitation And Respite Care
Cambridgeshire County Council,08-Nov-19,51301257236,"-3,195.71",GLENHOLME HEALTHCARE LTD,CARE ESTABLISHMENT,LD - Young Adults Team,LD - Young Adults - Care,Residential Care
Cambridgeshire County Council,28-Nov-19,51301247881,"-2,977.44",DECOY FARM,CARE ESTABLISHMENT,LD - East Locality - Cost of Care,LD - East Cambs - Special Needs,Residential Care
Cambridgeshire County Council,28-Nov-19,51301247769,"-2,977.44",DECOY FARM,CARE ESTABLISHMENT,LD - East Locality - Cost of Care,LD - East Cambs - Special Needs,Residential Care
Cambridgeshire County Council,28-Nov-19,51301247905,"-2,977.44",DECOY FARM,CARE ESTABLISHMENT,LD - East Locality - Cost of Care,LD - East Cambs - Special Needs,Residential Care
Cambridgeshire County Council,28-Nov-19,51301247889,"-2,977.44",DECOY FARM,CARE ESTABLISHMENT,LD - East Locality - Cost of Care,LD - East Cambs - Special Needs,Residential Care
Cambridgeshire County Council,28-Nov-19,51301247805,"-2,977.44",DECOY FARM,CARE ESTABLISHMENT,LD - East Locality - Cost of Care,LD - East Cambs - Special Needs,Residential Care
Cambridgeshire County Council,28-Nov-19,51301247779,"-2,977.44",DECOY FARM,CARE ESTABLISHMENT,LD - East Locality - Cost of Care,LD - East Cambs - Special Needs,Residential Care
Cambridgeshire County Council,28-Nov-19,51301252213,"-2,977.44",DECOY FARM,CARE ESTABLISHMENT,LD - East Locality - Cost of Care,LD - East Cambs - Special Needs,Residential Care
Cambridgeshire County Council,28-Nov-19,51301252143,"-2,977.44",DECOY FARM,CARE ESTABLISHMENT,LD - East Locality - Cost of Care,LD - East Cambs - Special Needs,Residential Care
Cambridgeshire County Council,28-Nov-19,51301252080,"-2,977.44",DECOY FARM,CARE ESTABLISHMENT,LD - East Locality - Cost of Care,LD - East Cambs - Special Needs,Residential Care
Cambridgeshire County Council,28-Nov-19,51301252173,"-2,977.44",DECOY FARM,CARE ESTABLISHMENT,LD - East Locality - Cost of Care,LD - East Cambs - Special Needs,Residential Care
Cambridgeshire County Council,28-Nov-19,51301252219,"-2,977.44",DECOY FARM,CARE ESTABLISHMENT,LD - East Locality - Cost of Care,LD - East Cambs - Special Needs,Residential Care
Cambridgeshire County Council,28-Nov-19,51301252076,"-2,977.44",DECOY FARM,CARE ESTABLISHMENT,LD - East Locality - Cost of Care,LD - East Cambs - Special Needs,Residential Care
Cambridgeshire County Council,28-Nov-19,51301252108,"-2,977.44",DECOY FARM,CARE ESTABLISHMENT,LD - East Locality - Cost of Care,LD - East Cambs - Special Needs,Residential Care
Cambridgeshire County Council,28-Nov-19,51301247771,"-2,977.44",DECOY FARM,CARE ESTABLISHMENT,LD - East Locality - Cost of Care,LD - East Cambs - Special Needs,Residential Care
Cambridgeshire County Council,28-Nov-19,51301247777,"-2,977.44",DECOY FARM,CARE ESTABLISHMENT,LD - East Locality - Cost of Care,LD - East Cambs - Special Needs,Residential Care
Cambridgeshire County Council,28-Nov-19,51301247803,"-2,977.44",DECOY FARM,CARE ESTABLISHMENT,LD - East Locality - Cost of Care,LD - East Cambs - Special Needs,Residential Care
Cambridgeshire County Council,28-Nov-19,51301247815,"-2,977.44",DECOY FARM,CARE ESTABLISHMENT,LD - East Locality - Cost of Care,LD - East Cambs - Special Needs,Residential Care
Cambridgeshire County Council,28-Nov-19,51301247907,"-2,977.44",DECOY FARM,CARE ESTABLISHMENT,LD - East Locality - Cost of Care,LD - East Cambs - Special Needs,Residential Care
Cambridgeshire County Council,28-Nov-19,51301252111,"-2,977.44",DECOY FARM,CARE ESTABLISHMENT,LD - East Locality - Cost of Care,LD - East Cambs - Special Needs,Residential Care
Cambridgeshire County Council,28-Nov-19,51301252164,"-2,977.44",DECOY FARM,CARE ESTABLISHMENT,LD - East Locality - Cost of Care,LD - East Cambs - Special Needs,Residential Care
Cambridgeshire County Council,28-Nov-19,51301252165,"-2,977.44",DECOY FARM,CARE ESTABLISHMENT,LD - East Locality - Cost of Care,LD - East Cambs - Special Needs,Residential Care
Cambridgeshire County Council,28-Nov-19,51301247839,"-2,977.44",DECOY FARM,CARE ESTABLISHMENT,LD - East Locality - Cost of Care,LD - East Cambs - Special Needs,Residential Care
Cambridgeshire County Council,28-Nov-19,51301247758,"-2,977.44",DECOY FARM,CARE ESTABLISHMENT,LD - East Locality - Cost of Care,LD - East Cambs - Special Needs,Residential Care
Cambridgeshire County Council,28-Nov-19,51301252203,"-2,977.44",DECOY FARM,CARE ESTABLISHMENT,LD - East Locality - Cost of Care,LD - East Cambs - Special Needs,Residential Care
Cambridgeshire County Council,28-Nov-19,51301247762,"-2,977.44",DECOY FARM,CARE ESTABLISHMENT,LD - East Locality - Cost of Care,LD - East Cambs - Special Needs,Residential Care
Cambridgeshire County Council,28-Nov-19,51301247790,"-2,977.44",DECOY FARM,CARE ESTABLISHMENT,LD - East Locality - Cost of Care,LD - East Cambs - Special Needs,Residential Care
Cambridgeshire County Council,28-Nov-19,51301247843,"-2,977.44",DECOY FARM,CARE ESTABLISHMENT,LD - East Locality - Cost of Care,LD - East Cambs - Special Needs,Residential Care
Cambridgeshire County Council,28-Nov-19,51301247880,"-2,977.44",DECOY FARM,CARE ESTABLISHMENT,LD - East Locality - Cost of Care,LD - East Cambs - Special Needs,Residential Care
Cambridgeshire County Council,28-Nov-19,51301247818,"-2,977.44",DECOY FARM,CARE ESTABLISHMENT,LD - East Locality - Cost of Care,LD - East Cambs - Special Needs,Residential Care
Cambridgeshire County Council,28-Nov-19,51301252158,"-2,977.44",DECOY FARM,CARE ESTABLISHMENT,LD - East Locality - Cost of Care,LD - East Cambs - Special Needs,Residential Care
Cambridgeshire County Council,28-Nov-19,51301252103,"-2,977.44",DECOY FARM,CARE ESTABLISHMENT,LD - East Locality - Cost of Care,LD - East Cambs - Special Needs,Residential Care
Cambridgeshire County Council,28-Nov-19,51301247785,"-2,977.44",DECOY FARM,CARE ESTABLISHMENT,LD - East Locality - Cost of Care,LD - East Cambs - Special Needs,Residential Care
Cambridgeshire County Council,28-Nov-19,51301252193,"-2,977.44",DECOY FARM,CARE ESTABLISHMENT,LD - East Locality - Cost of Care,LD - East Cambs - Special Needs,Residential Care
Cambridgeshire County Council,28-Nov-19,51301247804,"-2,977.44",DECOY FARM,CARE ESTABLISHMENT,LD - East Locality - Cost of Care,LD - East Cambs - Special Needs,Residential Care
Cambridgeshire County Council,28-Nov-19,51301252192,"-2,977.44",DECOY FARM,CARE ESTABLISHMENT,LD - East Locality - Cost of Care,LD - East Cambs - Special Needs,Residential Care
Cambridgeshire County Council,28-Nov-19,51301247890,"-2,977.44",DECOY FARM,CARE ESTABLISHMENT,LD - East Locality - Cost of Care,LD - East Cambs - Special Needs,Residential Care
Cambridgeshire County Council,28-Nov-19,51301247898,"-2,977.44",DECOY FARM,CARE ESTABLISHMENT,LD - East Locality - Cost of Care,LD - East Cambs - Special Needs,Residential Care
Cambridgeshire County Council,28-Nov-19,51301247819,"-2,977.44",DECOY FARM,CARE ESTABLISHMENT,LD - East Locality - Cost of Care,LD - East Cambs - Special Needs,Residential Care
Cambridgeshire County Council,28-Nov-19,51301252097,"-2,977.44",DECOY FARM,CARE ESTABLISHMENT,LD - East Locality - Cost of Care,LD - East Cambs - Special Needs,Residential Care
Cambridgeshire County Council,28-Nov-19,51301252204,"-2,977.44",DECOY FARM,CARE ESTABLISHMENT,LD - East Locality - Cost of Care,LD - East Cambs - Special Needs,Residential Care
Cambridgeshire County Council,28-Nov-19,51301252162,"-2,977.44",DECOY FARM,CARE ESTABLISHMENT,LD - East Locality - Cost of Care,LD - East Cambs - Special Needs,Residential Care
Cambridgeshire County Council,28-Nov-19,51301252132,"-2,977.44",DECOY FARM,CARE ESTABLISHMENT,LD - East Locality - Cost of Care,LD - East Cambs - Special Needs,Residential Care
Cambridgeshire County Council,28-Nov-19,51301247862,"-2,977.44",DECOY FARM,CARE ESTABLISHMENT,LD - East Locality - Cost of Care,LD - East Cambs - Special Needs,Residential Care
Cambridgeshire County Council,28-Nov-19,51301247811,"-2,977.44",DECOY FARM,CARE ESTABLISHMENT,LD - East Locality - Cost of Care,LD - East Cambs - Special Needs,Residential Care
Cambridgeshire County Council,28-Nov-19,51301252084,"-2,977.44",DECOY FARM,CARE ESTABLISHMENT,LD - East Locality - Cost of Care,LD - East Cambs - Special Needs,Residential Care
Cambridgeshire County Council,28-Nov-19,51301252149,"-2,977.44",DECOY FARM,CARE ESTABLISHMENT,LD - East Locality - Cost of Care,LD - East Cambs - Special Needs,Residential Care
Cambridgeshire County Council,28-Nov-19,51301252201,"-2,977.44",DECOY FARM,CARE ESTABLISHMENT,LD - East Locality - Cost of Care,LD - East Cambs - Special Needs,Residential Care
Cambridgeshire County Council,28-Nov-19,51301247812,"-2,977.44",DECOY FARM,CARE ESTABLISHMENT,LD - East Locality - Cost of Care,LD - East Cambs - Special Needs,Residential Care
Cambridgeshire County Council,28-Nov-19,51301252124,"-2,977.44",DECOY FARM,CARE ESTABLISHMENT,LD - East Locality - Cost of Care,LD - East Cambs - Special Needs,Residential Care
Cambridgeshire County Council,28-Nov-19,51301252206,"-2,977.44",DECOY FARM,CARE ESTABLISHMENT,LD - East Locality - Cost of Care,LD - East Cambs - Special Needs,Residential Care
Cambridgeshire County Council,28-Nov-19,51301252177,"-2,977.44",DECOY FARM,CARE ESTABLISHMENT,LD - East Locality - Cost of Care,LD - East Cambs - Special Needs,Residential Care
Cambridgeshire County Council,28-Nov-19,51301247855,"-2,977.44",DECOY FARM,CARE ESTABLISHMENT,LD - East Locality - Cost of Care,LD - East Cambs - Special Needs,Residential Care
Cambridgeshire County Council,28-Nov-19,51301252218,"-2,977.44",DECOY FARM,CARE ESTABLISHMENT,LD - East Locality - Cost of Care,LD - East Cambs - Special Needs,Residential Care
Cambridgeshire County Council,28-Nov-19,51301247791,"-2,977.44",DECOY FARM,CARE ESTABLISHMENT,LD - East Locality - Cost of Care,LD - East Cambs - Special Needs,Residential Care
Cambridgeshire County Council,28-Nov-19,51301247795,"-2,977.44",DECOY FARM,CARE ESTABLISHMENT,LD - East Locality - Cost of Care,LD - East Cambs - Special Needs,Residential Care
Cambridgeshire County Council,28-Nov-19,51301247846,"-2,977.44",DECOY FARM,CARE ESTABLISHMENT,LD - East Locality - Cost of Care,LD - East Cambs - Special Needs,Residential Care
Cambridgeshire County Council,28-Nov-19,51301247864,"-2,977.44",DECOY FARM,CARE ESTABLISHMENT,LD - East Locality - Cost of Care,LD - East Cambs - Special Needs,Residential Care
Cambridgeshire County Council,28-Nov-19,51301247877,"-2,977.44",DECOY FARM,CARE ESTABLISHMENT,LD - East Locality - Cost of Care,LD - East Cambs - Special Needs,Residential Care
Cambridgeshire County Council,28-Nov-19,51301252098,"-2,977.44",DECOY FARM,CARE ESTABLISHMENT,LD - East Locality - Cost of Care,LD - East Cambs - Special Needs,Residential Care
Cambridgeshire County Council,28-Nov-19,51301252139,"-2,977.44",DECOY FARM,CARE ESTABLISHMENT,LD - East Locality - Cost of Care,LD - East Cambs - Special Needs,Residential Care
Cambridgeshire County Council,28-Nov-19,51301252216,"-2,977.44",DECOY FARM,CARE ESTABLISHMENT,LD - East Locality - Cost of Care,LD - East Cambs - Special Needs,Residential Care
Cambridgeshire County Council,28-Nov-19,51301247901,"-2,977.44",DECOY FARM,CARE ESTABLISHMENT,LD - East Locality - Cost of Care,LD - East Cambs - Special Needs,Residential Care
Cambridgeshire County Council,28-Nov-19,51301247863,"-2,977.44",DECOY FARM,CARE ESTABLISHMENT,LD - East Locality - Cost of Care,LD - East Cambs - Special Needs,Residential Care
Cambridgeshire County Council,28-Nov-19,51301252096,"-2,977.44",DECOY FARM,CARE ESTABLISHMENT,LD - East Locality - Cost of Care,LD - East Cambs - Special Needs,Residential Care
Cambridgeshire County Council,28-Nov-19,51301247845,"-2,977.44",DECOY FARM,CARE ESTABLISHMENT,LD - East Locality - Cost of Care,LD - East Cambs - Special Needs,Residential Care
Cambridgeshire County Council,28-Nov-19,51301247764,"-2,977.44",DECOY FARM,CARE ESTABLISHMENT,LD - East Locality - Cost of Care,LD - East Cambs - Special Needs,Residential Care
Cambridgeshire County Council,28-Nov-19,51301247835,"-2,977.44",DECOY FARM,CARE ESTABLISHMENT,LD - East Locality - Cost of Care,LD - East Cambs - Special Needs,Residential Care
Cambridgeshire County Council,28-Nov-19,51301252119,"-2,977.44",DECOY FARM,CARE ESTABLISHMENT,LD - East Locality - Cost of Care,LD - East Cambs - Special Needs,Residential Care
Cambridgeshire County Council,28-Nov-19,51301252137,"-2,977.44",DECOY FARM,CARE ESTABLISHMENT,LD - East Locality - Cost of Care,LD - East Cambs - Special Needs,Residential Care
Cambridgeshire County Council,28-Nov-19,51301247886,"-2,977.44",DECOY FARM,CARE ESTABLISHMENT,LD - East Locality - Cost of Care,LD - East Cambs - Special Needs,Residential Care
Cambridgeshire County Council,28-Nov-19,51301247892,"-2,977.44",DECOY FARM,CARE ESTABLISHMENT,LD - East Locality - Cost of Care,LD - East Cambs - Special Needs,Residential Care
Cambridgeshire County Council,28-Nov-19,51301252161,"-2,977.44",DECOY FARM,CARE ESTABLISHMENT,LD - East Locality - Cost of Care,LD - East Cambs - Special Needs,Residential Care
Cambridgeshire County Council,28-Nov-19,51301247789,"-2,977.44",DECOY FARM,CARE ESTABLISHMENT,LD - East Locality - Cost of Care,LD - East Cambs - Special Needs,Residential Care
Cambridgeshire County Council,28-Nov-19,51301252087,"-2,977.44",DECOY FARM,CARE ESTABLISHMENT,LD - East Locality - Cost of Care,LD - East Cambs - Special Needs,Residential Care
Cambridgeshire County Council,28-Nov-19,51301247810,"-2,977.44",DECOY FARM,CARE ESTABLISHMENT,LD - East Locality - Cost of Care,LD - East Cambs - Special Needs,Residential Care
Cambridgeshire County Council,28-Nov-19,51301252085,"-2,977.44",DECOY FARM,CARE ESTABLISHMENT,LD - East Locality - Cost of Care,LD - East Cambs - Special Needs,Residential Care
Cambridgeshire County Council,28-Nov-19,51301247891,"-2,977.44",DECOY FARM,CARE ESTABLISHMENT,LD - East Locality - Cost of Care,LD - East Cambs - Special Needs,Residential Care
Cambridgeshire County Council,28-Nov-19,51301247841,"-2,977.44",DECOY FARM,CARE ESTABLISHMENT,LD - East Locality - Cost of Care,LD - East Cambs - Special Needs,Residential Care
Cambridgeshire County Council,28-Nov-19,51301252156,"-2,977.44",DECOY FARM,CARE ESTABLISHMENT,LD - East Locality - Cost of Care,LD - East Cambs - Special Needs,Residential Care
Cambridgeshire County Council,28-Nov-19,51301252153,"-2,977.44",DECOY FARM,CARE ESTABLISHMENT,LD - East Locality - Cost of Care,LD - East Cambs - Special Needs,Residential Care
Cambridgeshire County Council,28-Nov-19,51301247879,"-2,977.44",DECOY FARM,CARE ESTABLISHMENT,LD - East Locality - Cost of Care,LD - East Cambs - Special Needs,Residential Care
Cambridgeshire County Council,28-Nov-19,51301247784,"-2,977.44",DECOY FARM,CARE ESTABLISHMENT,LD - East Locality - Cost of Care,LD - East Cambs - Special Needs,Residential Care
Cambridgeshire County Council,28-Nov-19,51301247826,"-2,977.44",DECOY FARM,CARE ESTABLISHMENT,LD - East Locality - Cost of Care,LD - East Cambs - Special Needs,Residential Care
Cambridgeshire County Council,28-Nov-19,51301247884,"-2,977.44",DECOY FARM,CARE ESTABLISHMENT,LD - East Locality - Cost of Care,LD - East Cambs - Special Needs,Residential Care
Cambridgeshire County Council,28-Nov-19,51301247903,"-2,977.44",DECOY FARM,CARE ESTABLISHMENT,LD - East Locality - Cost of Care,LD - East Cambs - Special Needs,Residential Care
Cambridgeshire County Council,28-Nov-19,51301252095,"-2,977.44",DECOY FARM,CARE ESTABLISHMENT,LD - East Locality - Cost of Care,LD - East Cambs - Special Needs,Residential Care
Cambridgeshire County Council,28-Nov-19,51301252104,"-2,977.44",DECOY FARM,CARE ESTABLISHMENT,LD - East Locality - Cost of Care,LD - East Cambs - Special Needs,Residential Care
Cambridgeshire County Council,28-Nov-19,51301252115,"-2,977.44",DECOY FARM,CARE ESTABLISHMENT,LD - East Locality - Cost of Care,LD - East Cambs - Special Needs,Residential Care
Cambridgeshire County Council,28-Nov-19,51301252141,"-2,977.44",DECOY FARM,CARE ESTABLISHMENT,LD - East Locality - Cost of Care,LD - East Cambs - Special Needs,Residential Care
Cambridgeshire County Council,28-Nov-19,51301252159,"-2,977.44",DECOY FARM,CARE ESTABLISHMENT,LD - East Locality - Cost of Care,LD - East Cambs - Special Needs,Residential Care
Cambridgeshire County Council,28-Nov-19,51301252163,"-2,977.44",DECOY FARM,CARE ESTABLISHMENT,LD - East Locality - Cost of Care,LD - East Cambs - Special Needs,Residential Care
Cambridgeshire County Council,28-Nov-19,51301252133,"-2,977.44",DECOY FARM,CARE ESTABLISHMENT,LD - East Locality - Cost of Care,LD - East Cambs - Special Needs,Residential Care
Cambridgeshire County Council,28-Nov-19,51301247875,"-2,977.44",DECOY FARM,CARE ESTABLISHMENT,LD - East Locality - Cost of Care,LD - East Cambs - Special Needs,Residential Care
Cambridgeshire County Council,28-Nov-19,51301247904,"-2,977.44",DECOY FARM,CARE ESTABLISHMENT,LD - East Locality - Cost of Care,LD - East Cambs - Special Needs,Residential Care
Cambridgeshire County Council,28-Nov-19,51301247770,"-2,977.44",DECOY FARM,CARE ESTABLISHMENT,LD - East Locality - Cost of Care,LD - East Cambs - Special Needs,Residential Care
Cambridgeshire County Council,28-Nov-19,51301247899,"-2,977.44",DECOY FARM,CARE ESTABLISHMENT,LD - East Locality - Cost of Care,LD - East Cambs - Special Needs,Residential Care
Cambridgeshire County Council,28-Nov-19,51301247870,"-2,977.44",DECOY FARM,CARE ESTABLISHMENT,LD - East Locality - Cost of Care,LD - East Cambs - Special Needs,Residential Care
Cambridgeshire County Council,28-Nov-19,51301247799,"-2,977.44",DECOY FARM,CARE ESTABLISHMENT,LD - East Locality - Cost of Care,LD - East Cambs - Special Needs,Residential Care
Cambridgeshire County Council,28-Nov-19,51301247859,"-2,977.44",DECOY FARM,CARE ESTABLISHMENT,LD - East Locality - Cost of Care,LD - East Cambs - Special Needs,Residential Care
Cambridgeshire County Council,28-Nov-19,51301247878,"-2,977.44",DECOY FARM,CARE ESTABLISHMENT,LD - East Locality - Cost of Care,LD - East Cambs - Special Needs,Residential Care
Cambridgeshire County Council,28-Nov-19,51301247872,"-2,977.44",DECOY FARM,CARE ESTABLISHMENT,LD - East Locality - Cost of Care,LD - East Cambs - Special Needs,Residential Care
Cambridgeshire County Council,28-Nov-19,51301252175,"-2,977.44",DECOY FARM,CARE ESTABLISHMENT,LD - East Locality - Cost of Care,LD - East Cambs - Special Needs,Residential Care
Cambridgeshire County Council,28-Nov-19,51301247817,"-2,977.44",DECOY FARM,CARE ESTABLISHMENT,LD - East Locality - Cost of Care,LD - East Cambs - Special Needs,Residential Care
Cambridgeshire County Council,28-Nov-19,51301252220,"-2,977.44",DECOY FARM,CARE ESTABLISHMENT,LD - East Locality - Cost of Care,LD - East Cambs - Special Needs,Residential Care
Cambridgeshire County Council,28-Nov-19,51301252214,"-2,977.44",DECOY FARM,CARE ESTABLISHMENT,LD - East Locality - Cost of Care,LD - East Cambs - Special Needs,Residential Care
Cambridgeshire County Council,28-Nov-19,51301247837,"-2,977.44",DECOY FARM,CARE ESTABLISHMENT,LD - East Locality - Cost of Care,LD - East Cambs - Special Needs,Residential Care
Cambridgeshire County Council,28-Nov-19,51301247867,"-2,977.44",DECOY FARM,CARE ESTABLISHMENT,LD - East Locality - Cost of Care,LD - East Cambs - Special Needs,Residential Care
Cambridgeshire County Council,28-Nov-19,51301252181,"-2,977.44",DECOY FARM,CARE ESTABLISHMENT,LD - East Locality - Cost of Care,LD - East Cambs - Special Needs,Residential Care
Cambridgeshire County Council,28-Nov-19,51301252195,"-2,977.44",DECOY FARM,CARE ESTABLISHMENT,LD - East Locality - Cost of Care,LD - East Cambs - Special Needs,Residential Care
Cambridgeshire County Council,28-Nov-19,51301247780,"-2,977.44",DECOY FARM,CARE ESTABLISHMENT,LD - East Locality - Cost of Care,LD - East Cambs - Special Needs,Residential Care
Cambridgeshire County Council,28-Nov-19,51301247798,"-2,977.44",DECOY FARM,CARE ESTABLISHMENT,LD - East Locality - Cost of Care,LD - East Cambs - Special Needs,Residential Care
Cambridgeshire County Council,28-Nov-19,51301252106,"-2,977.44",DECOY FARM,CARE ESTABLISHMENT,LD - East Locality - Cost of Care,LD - East Cambs - Special Needs,Residential Care
Cambridgeshire County Council,28-Nov-19,51301247828,"-2,977.44",DECOY FARM,CARE ESTABLISHMENT,LD - East Locality - Cost of Care,LD - East Cambs - Special Needs,Residential Care
Cambridgeshire County Council,28-Nov-19,51301247851,"-2,977.44",DECOY FARM,CARE ESTABLISHMENT,LD - East Locality - Cost of Care,LD - East Cambs - Special Needs,Residential Care
Cambridgeshire County Council,28-Nov-19,51301247883,"-2,977.44",DECOY FARM,CARE ESTABLISHMENT,LD - East Locality - Cost of Care,LD - East Cambs - Special Needs,Residential Care
Cambridgeshire County Council,28-Nov-19,51301247871,"-2,977.44",DECOY FARM,CARE ESTABLISHMENT,LD - East Locality - Cost of Care,LD - East Cambs - Special Needs,Residential Care
Cambridgeshire County Council,28-Nov-19,51301252101,"-2,977.44",DECOY FARM,CARE ESTABLISHMENT,LD - East Locality - Cost of Care,LD - East Cambs - Special Needs,Residential Care
Cambridgeshire County Council,28-Nov-19,51301252120,"-2,977.44",DECOY FARM,CARE ESTABLISHMENT,LD - East Locality - Cost of Care,LD - East Cambs - Special Needs,Residential Care
Cambridgeshire County Council,28-Nov-19,51301252121,"-2,977.44",DECOY FARM,CARE ESTABLISHMENT,LD - East Locality - Cost of Care,LD - East Cambs - Special Needs,Residential Care
Cambridgeshire County Council,28-Nov-19,51301252134,"-2,977.44",DECOY FARM,CARE ESTABLISHMENT,LD - East Locality - Cost of Care,LD - East Cambs - Special Needs,Residential Care
Cambridgeshire County Council,28-Nov-19,51301252145,"-2,977.44",DECOY FARM,CARE ESTABLISHMENT,LD - East Locality - Cost of Care,LD - East Cambs - Special Needs,Residential Care
Cambridgeshire County Council,28-Nov-19,51301252207,"-2,977.44",DECOY FARM,CARE ESTABLISHMENT,LD - East Locality - Cost of Care,LD - East Cambs - Special Needs,Residential Care
Cambridgeshire County Council,28-Nov-19,51301252086,"-2,977.44",DECOY FARM,CARE ESTABLISHMENT,LD - East Locality - Cost of Care,LD - East Cambs - Special Needs,Residential Care
Cambridgeshire County Council,28-Nov-19,51301252151,"-2,977.44",DECOY FARM,CARE ESTABLISHMENT,LD - East Locality - Cost of Care,LD - East Cambs - Special Needs,Residential Care
Cambridgeshire County Council,28-Nov-19,51301252196,"-2,977.44",DECOY FARM,CARE ESTABLISHMENT,LD - East Locality - Cost of Care,LD - East Cambs - Special Needs,Residential Care
Cambridgeshire County Council,28-Nov-19,51301252131,"-2,977.44",DECOY FARM,CARE ESTABLISHMENT,LD - East Locality - Cost of Care,LD - East Cambs - Special Needs,Residential Care
Cambridgeshire County Council,28-Nov-19,51301247814,"-2,977.44",DECOY FARM,CARE ESTABLISHMENT,LD - East Locality - Cost of Care,LD - East Cambs - Special Needs,Residential Care
Cambridgeshire County Council,28-Nov-19,51301252205,"-2,977.44",DECOY FARM,CARE ESTABLISHMENT,LD - East Locality - Cost of Care,LD - East Cambs - Special Needs,Residential Care
Cambridgeshire County Council,28-Nov-19,51301252223,"-2,977.44",DECOY FARM,CARE ESTABLISHMENT,LD - East Locality - Cost of Care,LD - East Cambs - Special Needs,Residential Care
Cambridgeshire County Council,28-Nov-19,51301252105,"-2,977.44",DECOY FARM,CARE ESTABLISHMENT,LD - East Locality - Cost of Care,LD - East Cambs - Special Needs,Residential Care
Cambridgeshire County Council,28-Nov-19,51301252130,"-2,977.44",DECOY FARM,CARE ESTABLISHMENT,LD - East Locality - Cost of Care,LD - East Cambs - Special Needs,Residential Care
Cambridgeshire County Council,28-Nov-19,51301247760,"-2,977.44",DECOY FARM,CARE ESTABLISHMENT,LD - East Locality - Cost of Care,LD - East Cambs - Special Needs,Residential Care
Cambridgeshire County Council,28-Nov-19,51301252129,"-2,977.44",DECOY FARM,CARE ESTABLISHMENT,LD - East Locality - Cost of Care,LD - East Cambs - Special Needs,Residential Care
Cambridgeshire County Council,28-Nov-19,51301252194,"-2,977.44",DECOY FARM,CARE ESTABLISHMENT,LD - East Locality - Cost of Care,LD - East Cambs - Special Needs,Residential Care
Cambridgeshire County Council,28-Nov-19,51301247788,"-2,977.44",DECOY FARM,CARE ESTABLISHMENT,LD - East Locality - Cost of Care,LD - East Cambs - Special Needs,Residential Care
Cambridgeshire County Council,28-Nov-19,51301247807,"-2,977.44",DECOY FARM,CARE ESTABLISHMENT,LD - East Locality - Cost of Care,LD - East Cambs - Special Needs,Residential Care
Cambridgeshire County Council,28-Nov-19,51301247866,"-2,977.44",DECOY FARM,CARE ESTABLISHMENT,LD - East Locality - Cost of Care,LD - East Cambs - Special Needs,Residential Care
Cambridgeshire County Council,28-Nov-19,51301252078,"-2,977.44",DECOY FARM,CARE ESTABLISHMENT,LD - East Locality - Cost of Care,LD - East Cambs - Special Needs,Residential Care
Cambridgeshire County Council,28-Nov-19,51301252200,"-2,977.44",DECOY FARM,CARE ESTABLISHMENT,LD - East Locality - Cost of Care,LD - East Cambs - Special Needs,Residential Care
Cambridgeshire County Council,28-Nov-19,51301247801,"-2,977.44",DECOY FARM,CARE ESTABLISHMENT,LD - East Locality - Cost of Care,LD - East Cambs - Special Needs,Residential Care
Cambridgeshire County Council,28-Nov-19,51301252126,"-2,977.44",DECOY FARM,CARE ESTABLISHMENT,LD - East Locality - Cost of Care,LD - East Cambs - Special Needs,Residential Care
Cambridgeshire County Council,28-Nov-19,51301252215,"-2,977.44",DECOY FARM,CARE ESTABLISHMENT,LD - East Locality - Cost of Care,LD - East Cambs - Special Needs,Residential Care
Cambridgeshire County Council,28-Nov-19,51301252197,"-2,977.44",DECOY FARM,CARE ESTABLISHMENT,LD - East Locality - Cost of Care,LD - East Cambs - Special Needs,Residential Care
Cambridgeshire County Council,28-Nov-19,51301252179,"-2,977.44",DECOY FARM,CARE ESTABLISHMENT,LD - East Locality - Cost of Care,LD - East Cambs - Special Needs,Residential Care
Cambridgeshire County Council,28-Nov-19,51301247761,"-2,977.44",DECOY FARM,CARE ESTABLISHMENT,LD - East Locality - Cost of Care,LD - East Cambs - Special Needs,Residential Care
Cambridgeshire County Council,28-Nov-19,51301252191,"-2,977.44",DECOY FARM,CARE ESTABLISHMENT,LD - East Locality - Cost of Care,LD - East Cambs - Special Needs,Residential Care
Cambridgeshire County Council,19-Nov-19,51301237123,"-2,824.88",KISIMUL SCHOOL,CARE ESTABLISHMENT,LD - East Locality - Cost of Care,LD - East Cambs - Special Needs,Residential Care
Cambridgeshire County Council,19-Nov-19,51301237120,"-2,824.88",KISIMUL SCHOOL,CARE ESTABLISHMENT,LD - East Locality - Cost of Care,LD - East Cambs - Special Needs,Residential Care
Cambridgeshire County Council,19-Nov-19,51301239537,"-2,821.84",KISIMUL SCHOOL,CARE ESTABLISHMENT,LD - East Locality - Cost of Care,LD - East Cambs - Care,Residential Care
Cambridgeshire County Council,19-Nov-19,51301239538,"-2,821.84",KISIMUL SCHOOL,CARE ESTABLISHMENT,LD - East Locality - Cost of Care,LD - East Cambs - Care,Residential Care
Cambridgeshire County Council,08-Nov-19,51301240663,"-2,790.92",CONSULTUS CARE AND NURSING,CARE ESTABLISHMENT,LD - Hunts Locality - Cost of Care,LD - Huntingdonshire - Special Needs,Supporting People
Cambridgeshire County Council,08-Nov-19,51301240667,"-2,790.92",CONSULTUS CARE AND NURSING,CARE ESTABLISHMENT,LD - Hunts Locality - Cost of Care,LD - Huntingdonshire - Special Needs,Supporting People
Cambridgeshire County Council,28-Nov-19,51301268908,"-2,679.60",ABBEY HEALTHCARE (HUNTINGDON) LTD,CARE ESTABLISHMENT,OP - City & South Locality - Cost of Care,Older People - City & South - Care,Nursing Care
Cambridgeshire County Council,28-Nov-19,51301268908,"-2,679.60",ABBEY HEALTHCARE (HUNTINGDON) LTD,CARE ESTABLISHMENT,OP - City & South Locality - Cost of Care,Older People - City & South - Care,Nursing Care
Cambridgeshire County Council,28-Nov-19,51301268908,"-2,679.60",ABBEY HEALTHCARE (HUNTINGDON) LTD,CARE ESTABLISHMENT,OP - City & South Locality - Cost of Care,Older People - City & South - Care,Nursing Care
Cambridgeshire County Council,28-Nov-19,51301268908,"-2,679.60",ABBEY HEALTHCARE (HUNTINGDON) LTD,CARE ESTABLISHMENT,OP - City & South Locality - Cost of Care,Older People - City & South - Care,Nursing Care
Cambridgeshire County Council,28-Nov-19,51301268908,"-2,679.60",ABBEY HEALTHCARE (HUNTINGDON) LTD,CARE ESTABLISHMENT,OP - City & South Locality - Cost of Care,Older People - City & South - Care,Nursing Care
Cambridgeshire County Council,28-Nov-19,51301268908,"-2,679.60",ABBEY HEALTHCARE (HUNTINGDON) LTD,CARE ESTABLISHMENT,OP - City & South Locality - Cost of Care,Older People - City & South - Care,Nursing Care
Cambridgeshire County Council,28-Nov-19,51301268908,"-2,679.60",ABBEY HEALTHCARE (HUNTINGDON) LTD,CARE ESTABLISHMENT,OP - City & South Locality - Cost of Care,Older People - City & South - Care,Nursing Care
Cambridgeshire County Council,28-Nov-19,51301268908,"-2,679.60",ABBEY HEALTHCARE (HUNTINGDON) LTD,CARE ESTABLISHMENT,OP - City & South Locality - Cost of Care,Older People - City & South - Care,Nursing Care
Cambridgeshire County Council,08-Nov-19,51301257236,"-2,639.66",GLENHOLME HEALTHCARE LTD,CARE ESTABLISHMENT,LD - Young Adults Team,LD - Young Adults - Care,Residential Care
Cambridgeshire County Council,08-Nov-19,51301257236,"-2,639.66",GLENHOLME HEALTHCARE LTD,CARE ESTABLISHMENT,LD - Young Adults Team,LD - Young Adults - Care,Residential Care
Cambridgeshire County Council,08-Nov-19,51301257236,"-2,639.66",GLENHOLME HEALTHCARE LTD,CARE ESTABLISHMENT,LD - Young Adults Team,LD - Young Adults - Care,Residential Care
Cambridgeshire County Council,08-Nov-19,51301257236,"-2,639.66",GLENHOLME HEALTHCARE LTD,CARE ESTABLISHMENT,LD - Young Adults Team,LD - Young Adults - Care,Residential Care
Cambridgeshire County Council,08-Nov-19,51301257236,"-2,639.66",GLENHOLME HEALTHCARE LTD,CARE ESTABLISHMENT,LD - Young Adults Team,LD - Young Adults - Care,Residential Care
Cambridgeshire County Council,08-Nov-19,51301257236,"-2,639.66",GLENHOLME HEALTHCARE LTD,CARE ESTABLISHMENT,LD - Young Adults Team,LD - Young Adults - Care,Residential Care
Cambridgeshire County Council,08-Nov-19,51301257236,"-2,639.66",GLENHOLME HEALTHCARE LTD,CARE ESTABLISHMENT,LD - Young Adults Team,LD - Young Adults - Care,Residential Care
Cambridgeshire County Council,08-Nov-19,51301257236,"-2,639.66",GLENHOLME HEALTHCARE LTD,CARE ESTABLISHMENT,LD - Young Adults Team,LD - Young Adults - Care,Residential Care
Cambridgeshire County Council,08-Nov-19,51301257236,"-2,639.66",GLENHOLME HEALTHCARE LTD,CARE ESTABLISHMENT,LD - Young Adults Team,LD - Young Adults - Care,Residential Care
Cambridgeshire County Council,08-Nov-19,51301257236,"-2,639.66",GLENHOLME HEALTHCARE LTD,CARE ESTABLISHMENT,LD - Young Adults Team,LD - Young Adults - Care,Residential Care
Cambridgeshire County Council,08-Nov-19,51301237513,"-2,606.86",RENTON COURT (VOYAGE),CARE ESTABLISHMENT,LD - Hunts Locality - Cost of Care,LD - Huntingdonshire - Special Needs,Supported Living
Cambridgeshire County Council,08-Nov-19,51301237514,"-2,606.86",RENTON COURT (VOYAGE),CARE ESTABLISHMENT,LD - Hunts Locality - Cost of Care,LD - Huntingdonshire - Special Needs,Supported Living
Cambridgeshire County Council,28-Nov-19,51301252189,"-2,552.09",DECOY FARM,CARE ESTABLISHMENT,LD - East Locality - Cost of Care,LD - East Cambs - Special Needs,Residential Care
Cambridgeshire County Council,28-Nov-19,51301247776,"-2,552.09",DECOY FARM,CARE ESTABLISHMENT,LD - East Locality - Cost of Care,LD - East Cambs - Special Needs,Residential Care
Cambridgeshire County Council,08-Nov-19,51301250433,"-2,538.69",GLENHOLME HEALTHCARE LTD,CARE ESTABLISHMENT,LD - Hunts Locality - Cost of Care,LD - Huntingdonshire - Special Needs,Supported Living
Cambridgeshire County Council,08-Nov-19,51301250434,"-2,538.69",GLENHOLME HEALTHCARE LTD,CARE ESTABLISHMENT,LD - Hunts Locality - Cost of Care,LD - Huntingdonshire - Special Needs,Supported Living
Cambridgeshire County Council,19-Nov-19,51301241213,"-2,408.64",KISIMUL SCHOOL,CARE ESTABLISHMENT,LD - South Locality - Cost of Care,LD - South Cambs - Care,Supported Living
Cambridgeshire County Council,19-Nov-19,51301241212,"-2,408.64",KISIMUL SCHOOL,CARE ESTABLISHMENT,LD - South Locality - Cost of Care,LD - South Cambs - Care,Supported Living
Cambridgeshire County Council,19-Nov-19,51301241103,"-2,342.06",KISIMUL SCHOOL,CARE ESTABLISHMENT,LD - Fenland Locality - Cost of Care,LD - Fenland  - Special Needs,Supported Living
Cambridgeshire County Council,19-Nov-19,51301241104,"-2,342.06",KISIMUL SCHOOL,CARE ESTABLISHMENT,LD - Fenland Locality - Cost of Care,LD - Fenland  - Special Needs,Supported Living
Cambridgeshire County Council,08-Nov-19,51301254213,"-2,337.29",DIMENSIONS (UK) LTD,CARE ESTABLISHMENT,LD - City Locality - Cost of Care,LD - City - Special Needs,Supported Living
Cambridgeshire County Council,08-Nov-19,51301254221,"-2,337.29",DIMENSIONS (UK) LTD,CARE ESTABLISHMENT,LD - City Locality - Cost of Care,LD - City - Special Needs,Supported Living
Cambridgeshire County Council,08-Nov-19,51301250313,"-2,337.29",DIMENSIONS (UK) LTD,CARE ESTABLISHMENT,LD - City Locality - Cost of Care,LD - City - Special Needs,Supported Living
Cambridgeshire County Council,08-Nov-19,51301250307,"-2,337.29",DIMENSIONS (UK) LTD,CARE ESTABLISHMENT,LD - City Locality - Cost of Care,LD - City - Special Needs,Supported Living
Cambridgeshire County Council,08-Nov-19,51301250300,"-2,337.29",DIMENSIONS (UK) LTD,CARE ESTABLISHMENT,LD - City Locality - Cost of Care,LD - City - Special Needs,Supported Living
Cambridgeshire County Council,08-Nov-19,51301250305,"-2,337.29",DIMENSIONS (UK) LTD,CARE ESTABLISHMENT,LD - City Locality - Cost of Care,LD - City - Special Needs,Supported Living
Cambridgeshire County Council,08-Nov-19,51301254225,"-2,337.29",DIMENSIONS (UK) LTD,CARE ESTABLISHMENT,LD - City Locality - Cost of Care,LD - City - Special Needs,Supported Living
Cambridgeshire County Council,08-Nov-19,51301254227,"-2,337.29",DIMENSIONS (UK) LTD,CARE ESTABLISHMENT,LD - City Locality - Cost of Care,LD - City - Special Needs,Supported Living
Cambridgeshire County Council,08-Nov-19,51301254215,"-2,337.29",DIMENSIONS (UK) LTD,CARE ESTABLISHMENT,LD - City Locality - Cost of Care,LD - City - Special Needs,Supported Living
Cambridgeshire County Council,08-Nov-19,51301250303,"-2,337.29",DIMENSIONS (UK) LTD,CARE ESTABLISHMENT,LD - City Locality - Cost of Care,LD - City - Special Needs,Supported Living
Cambridgeshire County Council,08-Nov-19,51301250314,"-2,337.29",DIMENSIONS (UK) LTD,CARE ESTABLISHMENT,LD - South Locality - Cost of Care,LD - South Cambs - Special Needs,Supported Living
Cambridgeshire County Council,08-Nov-19,51301254212,"-2,337.29",DIMENSIONS (UK) LTD,CARE ESTABLISHMENT,LD - South Locality - Cost of Care,LD - South Cambs - Special Needs,Supported Living
Cambridgeshire County Council,08-Nov-19,51301254218,"-2,337.29",DIMENSIONS (UK) LTD,CARE ESTABLISHMENT,LD - South Locality - Cost of Care,LD - South Cambs - Special Needs,Supported Living
Cambridgeshire County Council,08-Nov-19,51301250309,"-2,337.29",DIMENSIONS (UK) LTD,CARE ESTABLISHMENT,LD - South Locality - Cost of Care,LD - South Cambs - Special Needs,Supported Living
Cambridgeshire County Council,08-Nov-19,51301250302,"-2,337.29",DIMENSIONS (UK) LTD,CARE ESTABLISHMENT,LD - South Locality - Cost of Care,LD - South Cambs - Special Needs,Supported Living
Cambridgeshire County Council,08-Nov-19,51301254224,"-2,337.29",DIMENSIONS (UK) LTD,CARE ESTABLISHMENT,LD - South Locality - Cost of Care,LD - South Cambs - Special Needs,Supported Living
Cambridgeshire County Council,29-Nov-19,51301271435,"-2,337.29",DIMENSIONS (UK) LTD,CARE ESTABLISHMENT,LD - City Locality - Cost of Care,LD - City - Special Needs,Supported Living
Cambridgeshire County Council,29-Nov-19,51301271446,"-2,337.29",DIMENSIONS (UK) LTD,CARE ESTABLISHMENT,LD - City Locality - Cost of Care,LD - City - Special Needs,Supported Living
Cambridgeshire County Council,29-Nov-19,51301271436,"-2,337.29",DIMENSIONS (UK) LTD,CARE ESTABLISHMENT,LD - South Locality - Cost of Care,LD - South Cambs - Special Needs,Supported Living
Cambridgeshire County Council,29-Nov-19,51301271431,"-2,337.29",DIMENSIONS (UK) LTD,CARE ESTABLISHMENT,LD - South Locality - Cost of Care,LD - South Cambs - Special Needs,Supported Living
Cambridgeshire County Council,29-Nov-19,51301271447,"-2,337.29",DIMENSIONS (UK) LTD,CARE ESTABLISHMENT,LD - South Locality - Cost of Care,LD - South Cambs - Special Needs,Supported Living
Cambridgeshire County Council,29-Nov-19,51301271441,"-2,337.29",DIMENSIONS (UK) LTD,CARE ESTABLISHMENT,LD - South Locality - Cost of Care,LD - South Cambs - Special Needs,Supported Living
Cambridgeshire County Council,29-Nov-19,51301271437,"-2,337.29",DIMENSIONS (UK) LTD,CARE ESTABLISHMENT,LD - South Locality - Cost of Care,LD - South Cambs - Special Needs,Supported Living
Cambridgeshire County Council,29-Nov-19,51301271438,"-2,337.29",DIMENSIONS (UK) LTD,CARE ESTABLISHMENT,LD - South Locality - Cost of Care,LD - South Cambs - Special Needs,Supported Living
Cambridgeshire County Council,14-Nov-19,51301263223,"-2,306.72",Glebe Farm,COMPANY,LD - Hunts Locality - Cost of Care,LD - Huntingdonshire - Care,Residential Care
Cambridgeshire County Council,14-Nov-19,51301263223,"-2,306.72",Glebe Farm,COMPANY,LD - Hunts Locality - Cost of Care,LD - Huntingdonshire - Care,Residential Care
Cambridgeshire County Council,14-Nov-19,51301263223,"-2,306.72",Glebe Farm,COMPANY,LD - Hunts Locality - Cost of Care,LD - Huntingdonshire - Care,Residential Care
Cambridgeshire County Council,14-Nov-19,51301263223,"-2,306.72",Glebe Farm,COMPANY,LD - Hunts Locality - Cost of Care,LD - Huntingdonshire - Care,Residential Care
Cambridgeshire County Council,14-Nov-19,51301263223,"-2,306.72",Glebe Farm,COMPANY,LD - Hunts Locality - Cost of Care,LD - Huntingdonshire - Care,Residential Care
Cambridgeshire County Council,14-Nov-19,51301263223,"-2,306.72",Glebe Farm,COMPANY,LD - Hunts Locality - Cost of Care,LD - Huntingdonshire - Care,Residential Care
Cambridgeshire County Council,14-Nov-19,51301263223,"-2,306.72",Glebe Farm,COMPANY,LD - Hunts Locality - Cost of Care,LD - Huntingdonshire - Care,Residential Care
Cambridgeshire County Council,14-Nov-19,51301263223,"-2,306.72",Glebe Farm,COMPANY,LD - Hunts Locality - Cost of Care,LD - Huntingdonshire - Care,Residential Care
Cambridgeshire County Council,14-Nov-19,51301263223,"-2,306.72",Glebe Farm,COMPANY,LD - Hunts Locality - Cost of Care,LD - Huntingdonshire - Care,Residential Care
Cambridgeshire County Council,14-Nov-19,51301263223,"-2,306.72",Glebe Farm,COMPANY,LD - Hunts Locality - Cost of Care,LD - Huntingdonshire - Care,Residential Care
Cambridgeshire County Council,14-Nov-19,51301263223,"-2,306.72",Glebe Farm,COMPANY,LD - Hunts Locality - Cost of Care,LD - Huntingdonshire - Care,Residential Care
Cambridgeshire County Council,14-Nov-19,51301263223,"-2,306.72",Glebe Farm,COMPANY,LD - Hunts Locality - Cost of Care,LD - Huntingdonshire - Care,Residential Care
Cambridgeshire County Council,14-Nov-19,51301263223,"-2,306.72",Glebe Farm,COMPANY,LD - Hunts Locality - Cost of Care,LD - Huntingdonshire - Care,Residential Care
Cambridgeshire County Council,14-Nov-19,51301263223,"-2,306.72",Glebe Farm,COMPANY,LD - Hunts Locality - Cost of Care,LD - Huntingdonshire - Care,Residential Care
Cambridgeshire County Council,14-Nov-19,51301263223,"-2,306.72",Glebe Farm,COMPANY,LD - Hunts Locality - Cost of Care,LD - Huntingdonshire - Care,Residential Care
Cambridgeshire County Council,14-Nov-19,51301263223,"-2,306.72",Glebe Farm,COMPANY,LD - Hunts Locality - Cost of Care,LD - Huntingdonshire - Care,Residential Care
Cambridgeshire County Council,14-Nov-19,51301263223,"-2,306.72",Glebe Farm,COMPANY,LD - Hunts Locality - Cost of Care,LD - Huntingdonshire - Care,Residential Care
Cambridgeshire County Council,14-Nov-19,51301263223,"-2,306.72",Glebe Farm,COMPANY,LD - Hunts Locality - Cost of Care,LD - Huntingdonshire - Care,Residential Care
Cambridgeshire County Council,14-Nov-19,51301263223,"-2,306.72",Glebe Farm,COMPANY,LD - Hunts Locality - Cost of Care,LD - Huntingdonshire - Care,Residential Care
Cambridgeshire County Council,14-Nov-19,51301263223,"-2,306.72",Glebe Farm,COMPANY,LD - Hunts Locality - Cost of Care,LD - Huntingdonshire - Care,Residential Care
Cambridgeshire County Council,14-Nov-19,51301263223,"-2,306.72",Glebe Farm,COMPANY,LD - Hunts Locality - Cost of Care,LD - Huntingdonshire - Care,Residential Care
Cambridgeshire County Council,14-Nov-19,51301263223,"-2,306.72",Glebe Farm,COMPANY,LD - Hunts Locality - Cost of Care,LD - Huntingdonshire - Care,Residential Care
Cambridgeshire County Council,14-Nov-19,51301263223,"-2,306.72",Glebe Farm,COMPANY,LD - Hunts Locality - Cost of Care,LD - Huntingdonshire - Care,Residential Care
Cambridgeshire County Council,14-Nov-19,51301263223,"-2,306.72",Glebe Farm,COMPANY,LD - Hunts Locality - Cost of Care,LD - Huntingdonshire - Care,Residential Care
Cambridgeshire County Council,14-Nov-19,51301263223,"-2,306.72",Glebe Farm,COMPANY,LD - Hunts Locality - Cost of Care,LD - Huntingdonshire - Care,Residential Care
Cambridgeshire County Council,14-Nov-19,51301263223,"-2,306.72",Glebe Farm,COMPANY,LD - Hunts Locality - Cost of Care,LD - Huntingdonshire - Care,Residential Care
Cambridgeshire County Council,14-Nov-19,51301263223,"-2,306.72",Glebe Farm,COMPANY,LD - Hunts Locality - Cost of Care,LD - Huntingdonshire - Care,Residential Care
Cambridgeshire County Council,14-Nov-19,51301263223,"-2,306.72",Glebe Farm,COMPANY,LD - Hunts Locality - Cost of Care,LD - Huntingdonshire - Care,Residential Care
Cambridgeshire County Council,14-Nov-19,51301263223,"-2,306.72",Glebe Farm,COMPANY,LD - Hunts Locality - Cost of Care,LD - Huntingdonshire - Care,Residential Care
Cambridgeshire County Council,14-Nov-19,51301263223,"-2,306.72",Glebe Farm,COMPANY,LD - Hunts Locality - Cost of Care,LD - Huntingdonshire - Care,Residential Care
Cambridgeshire County Council,14-Nov-19,51301263223,"-2,306.72",Glebe Farm,COMPANY,LD - Hunts Locality - Cost of Care,LD - Huntingdonshire - Care,Residential Care
Cambridgeshire County Council,14-Nov-19,51301263223,"-2,306.72",Glebe Farm,COMPANY,LD - Hunts Locality - Cost of Care,LD - Huntingdonshire - Care,Residential Care
Cambridgeshire County Council,08-Nov-19,51301257236,"-2,262.57",GLENHOLME HEALTHCARE LTD,CARE ESTABLISHMENT,LD - Young Adults Team,LD - Young Adults - Care,Residential Care
Cambridgeshire County Council,05-Nov-19,51301246915,"-2,193.75",CONQUEST CARE HOMES PETERBOROUGH,CARE ESTABLISHMENT,LD - Fenland Locality - Cost of Care,LD - Fenland  - Care,Residential Care
Cambridgeshire County Council,01-Nov-19,51301242812,"-2,188.48",STAGECOACH SERVICES LTD,TRADE SUPPLIER,Passenger Transport other,Cambridgeshire Future Transport,Support - subsidised bus routes
Cambridgeshire County Council,08-Nov-19,51301234753,"-2,183.14",TIGH NAVEEN (KISIMUL),CARE ESTABLISHMENT,LD - Hunts Locality - Cost of Care,LD - Huntingdonshire - Special Needs,Supported Living
Cambridgeshire County Council,08-Nov-19,51301234758,"-2,183.14",TIGH NAVEEN (KISIMUL),CARE ESTABLISHMENT,LD - Hunts Locality - Cost of Care,LD - Huntingdonshire - Special Needs,Supported Living
Cambridgeshire County Council,08-Nov-19,51301239672,"-2,037.90",1 RIVERVIEW DRIVE (DIMENSIONS),CARE ESTABLISHMENT,LD - Hunts Locality - Cost of Care,LD - Huntingdonshire - Special Needs,Supported Living
Cambridgeshire County Council,08-Nov-19,51301239673,"-2,037.90",1 RIVERVIEW DRIVE (DIMENSIONS),CARE ESTABLISHMENT,LD - Hunts Locality - Cost of Care,LD - Huntingdonshire - Special Needs,Supported Living
Cambridgeshire County Council,28-Nov-19,51301268908,"-1,914.00",ABBEY HEALTHCARE (HUNTINGDON) LTD,CARE ESTABLISHMENT,OP - City & South Locality - Cost of Care,Older People - City & South - Care,Nursing Care
Cambridgeshire County Council,08-Nov-19,51301237144,"-1,873.00",MAYFIELD HEATH FARM,CARE ESTABLISHMENT,LD - Hunts Locality - Cost of Care,LD - Huntingdonshire - Special Needs,Supported Living
Cambridgeshire County Council,08-Nov-19,51301237146,"-1,873.00",MAYFIELD HEATH FARM,CARE ESTABLISHMENT,LD - Hunts Locality - Cost of Care,LD - Huntingdonshire - Special Needs,Supported Living
Cambridgeshire County Council,08-Nov-19,51301239659,"-1,872.91",MAYFIELD HEATH FARM,CARE ESTABLISHMENT,LD - Hunts Locality - Cost of Care,LD - Huntingdonshire - Special Needs,Supported Living
Cambridgeshire County Council,08-Nov-19,51301239657,"-1,872.91",MAYFIELD HEATH FARM,CARE ESTABLISHMENT,LD - Hunts Locality - Cost of Care,LD - Huntingdonshire - Special Needs,Supported Living
Cambridgeshire County Council,08-Nov-19,51301240494,"-1,857.86",MAYFIELD HEATH FARM,CARE ESTABLISHMENT,LD - Hunts Locality - Cost of Care,LD - Huntingdonshire - Special Needs,Supported Living
Cambridgeshire County Council,08-Nov-19,51301240492,"-1,857.86",MAYFIELD HEATH FARM,CARE ESTABLISHMENT,LD - Hunts Locality - Cost of Care,LD - Huntingdonshire - Special Needs,Supported Living
Cambridgeshire County Council,08-Nov-19,51301235719,"-1,841.76",MAYFIELD HEATH FARM,CARE ESTABLISHMENT,LD - Hunts Locality - Cost of Care,LD - Huntingdonshire - Special Needs,Supported Living
Cambridgeshire County Council,08-Nov-19,51301235721,"-1,841.76",MAYFIELD HEATH FARM,CARE ESTABLISHMENT,LD - Hunts Locality - Cost of Care,LD - Huntingdonshire - Special Needs,Supported Living
Cambridgeshire County Council,08-Nov-19,51301237114,"-1,841.76",MAYFIELD HEATH FARM,CARE ESTABLISHMENT,LD - Hunts Locality - Cost of Care,LD - Huntingdonshire - Special Needs,Supported Living
Cambridgeshire County Council,08-Nov-19,51301237112,"-1,841.76",MAYFIELD HEATH FARM,CARE ESTABLISHMENT,LD - Hunts Locality - Cost of Care,LD - Huntingdonshire - Special Needs,Supported Living
Cambridgeshire County Council,08-Nov-19,51301257236,"-1,834.34",GLENHOLME HEALTHCARE LTD,CARE ESTABLISHMENT,LD - Young Adults Team,LD - Young Adults - Care,Residential Care
Cambridgeshire County Council,08-Nov-19,51301257236,"-1,834.34",GLENHOLME HEALTHCARE LTD,CARE ESTABLISHMENT,LD - Young Adults Team,LD - Young Adults - Care,Residential Care
Cambridgeshire County Council,08-Nov-19,51301257236,"-1,834.34",GLENHOLME HEALTHCARE LTD,CARE ESTABLISHMENT,LD - Young Adults Team,LD - Young Adults - Care,Residential Care
Cambridgeshire County Council,08-Nov-19,51301257236,"-1,834.34",GLENHOLME HEALTHCARE LTD,CARE ESTABLISHMENT,LD - Young Adults Team,LD - Young Adults - Care,Residential Care
Cambridgeshire County Council,08-Nov-19,51301257236,"-1,834.34",GLENHOLME HEALTHCARE LTD,CARE ESTABLISHMENT,LD - Young Adults Team,LD - Young Adults - Care,Residential Care
Cambridgeshire County Council,08-Nov-19,51301257236,"-1,834.34",GLENHOLME HEALTHCARE LTD,CARE ESTABLISHMENT,LD - Young Adults Team,LD - Young Adults - Care,Residential Care
Cambridgeshire County Council,08-Nov-19,51301257236,"-1,834.34",GLENHOLME HEALTHCARE LTD,CARE ESTABLISHMENT,LD - Young Adults Team,LD - Young Adults - Care,Residential Care
Cambridgeshire County Council,08-Nov-19,51301257236,"-1,834.34",GLENHOLME HEALTHCARE LTD,CARE ESTABLISHMENT,LD - Young Adults Team,LD - Young Adults - Care,Residential Care
Cambridgeshire County Council,08-Nov-19,51301257236,"-1,834.34",GLENHOLME HEALTHCARE LTD,CARE ESTABLISHMENT,LD - Young Adults Team,LD - Young Adults - Care,Residential Care
Cambridgeshire County Council,08-Nov-19,51301257236,"-1,834.34",GLENHOLME HEALTHCARE LTD,CARE ESTABLISHMENT,LD - Young Adults Team,LD - Young Adults - Care,Residential Care
Cambridgeshire County Council,08-Nov-19,51301257236,"-1,834.34",GLENHOLME HEALTHCARE LTD,CARE ESTABLISHMENT,LD - Young Adults Team,LD - Young Adults - Care,Residential Care
Cambridgeshire County Council,08-Nov-19,51301257236,"-1,834.34",GLENHOLME HEALTHCARE LTD,CARE ESTABLISHMENT,LD - Young Adults Team,LD - Young Adults - Care,Residential Care
Cambridgeshire County Council,08-Nov-19,51301257236,"-1,834.34",GLENHOLME HEALTHCARE LTD,CARE ESTABLISHMENT,LD - Young Adults Team,LD - Young Adults - Care,Residential Care
Cambridgeshire County Council,08-Nov-19,51301257236,"-1,834.34",GLENHOLME HEALTHCARE LTD,CARE ESTABLISHMENT,LD - Young Adults Team,LD - Young Adults - Care,Residential Care
Cambridgeshire County Council,08-Nov-19,51301257236,"-1,834.34",GLENHOLME HEALTHCARE LTD,CARE ESTABLISHMENT,LD - Young Adults Team,LD - Young Adults - Care,Residential Care
Cambridgeshire County Council,08-Nov-19,51301257236,"-1,834.34",GLENHOLME HEALTHCARE LTD,CARE ESTABLISHMENT,LD - Young Adults Team,LD - Young Adults - Care,Residential Care
Cambridgeshire County Council,08-Nov-19,51301257236,"-1,834.34",GLENHOLME HEALTHCARE LTD,CARE ESTABLISHMENT,LD - Young Adults Team,LD - Young Adults - Care,Residential Care
Cambridgeshire County Council,08-Nov-19,51301257236,"-1,834.34",GLENHOLME HEALTHCARE LTD,CARE ESTABLISHMENT,LD - Young Adults Team,LD - Young Adults - Care,Residential Care
Cambridgeshire County Council,08-Nov-19,51301257236,"-1,834.34",GLENHOLME HEALTHCARE LTD,CARE ESTABLISHMENT,LD - Young Adults Team,LD - Young Adults - Care,Residential Care
Cambridgeshire County Council,08-Nov-19,51301257236,"-1,834.34",GLENHOLME HEALTHCARE LTD,CARE ESTABLISHMENT,LD - Young Adults Team,LD - Young Adults - Care,Residential Care
Cambridgeshire County Council,08-Nov-19,51301257236,"-1,834.34",GLENHOLME HEALTHCARE LTD,CARE ESTABLISHMENT,LD - Young Adults Team,LD - Young Adults - Care,Residential Care
Cambridgeshire County Council,08-Nov-19,51301257236,"-1,834.34",GLENHOLME HEALTHCARE LTD,CARE ESTABLISHMENT,LD - Young Adults Team,LD - Young Adults - Care,Residential Care
Cambridgeshire County Council,08-Nov-19,51301257236,"-1,834.34",GLENHOLME HEALTHCARE LTD,CARE ESTABLISHMENT,LD - Young Adults Team,LD - Young Adults - Care,Residential Care
Cambridgeshire County Council,08-Nov-19,51301257236,"-1,834.34",GLENHOLME HEALTHCARE LTD,CARE ESTABLISHMENT,LD - Young Adults Team,LD - Young Adults - Care,Residential Care
Cambridgeshire County Council,08-Nov-19,51301257236,"-1,834.34",GLENHOLME HEALTHCARE LTD,CARE ESTABLISHMENT,LD - Young Adults Team,LD - Young Adults - Care,Residential Care
Cambridgeshire County Council,08-Nov-19,51301257236,"-1,834.34",GLENHOLME HEALTHCARE LTD,CARE ESTABLISHMENT,LD - Young Adults Team,LD - Young Adults - Care,Residential Care
Cambridgeshire County Council,08-Nov-19,51301257236,"-1,834.34",GLENHOLME HEALTHCARE LTD,CARE ESTABLISHMENT,LD - Young Adults Team,LD - Young Adults - Care,Residential Care
Cambridgeshire County Council,08-Nov-19,51301257236,"-1,834.34",GLENHOLME HEALTHCARE LTD,CARE ESTABLISHMENT,LD - Young Adults Team,LD - Young Adults - Care,Residential Care
Cambridgeshire County Council,08-Nov-19,51301257236,"-1,834.34",GLENHOLME HEALTHCARE LTD,CARE ESTABLISHMENT,LD - Young Adults Team,LD - Young Adults - Care,Residential Care
Cambridgeshire County Council,08-Nov-19,51301257236,"-1,834.34",GLENHOLME HEALTHCARE LTD,CARE ESTABLISHMENT,LD - Young Adults Team,LD - Young Adults - Care,Residential Care
Cambridgeshire County Council,08-Nov-19,51301257236,"-1,834.34",GLENHOLME HEALTHCARE LTD,CARE ESTABLISHMENT,LD - Young Adults Team,LD - Young Adults - Care,Residential Care
Cambridgeshire County Council,08-Nov-19,51301257236,"-1,834.34",GLENHOLME HEALTHCARE LTD,CARE ESTABLISHMENT,LD - Young Adults Team,LD - Young Adults - Care,Residential Care
Cambridgeshire County Council,08-Nov-19,51301257236,"-1,834.34",GLENHOLME HEALTHCARE LTD,CARE ESTABLISHMENT,LD - Young Adults Team,LD - Young Adults - Care,Residential Care
Cambridgeshire County Council,08-Nov-19,51301257236,"-1,834.34",GLENHOLME HEALTHCARE LTD,CARE ESTABLISHMENT,LD - Young Adults Team,LD - Young Adults - Care,Residential Care
Cambridgeshire County Council,08-Nov-19,51301257236,"-1,834.34",GLENHOLME HEALTHCARE LTD,CARE ESTABLISHMENT,LD - Young Adults Team,LD - Young Adults - Care,Residential Care
Cambridgeshire County Council,08-Nov-19,51301257236,"-1,834.34",GLENHOLME HEALTHCARE LTD,CARE ESTABLISHMENT,LD - Young Adults Team,LD - Young Adults - Care,Residential Care
Cambridgeshire County Council,08-Nov-19,51301257236,"-1,834.34",GLENHOLME HEALTHCARE LTD,CARE ESTABLISHMENT,LD - Young Adults Team,LD - Young Adults - Care,Residential Care
Cambridgeshire County Council,08-Nov-19,51301257236,"-1,834.34",GLENHOLME HEALTHCARE LTD,CARE ESTABLISHMENT,LD - Young Adults Team,LD - Young Adults - Care,Residential Care
Cambridgeshire County Council,08-Nov-19,51301257236,"-1,834.34",GLENHOLME HEALTHCARE LTD,CARE ESTABLISHMENT,LD - Young Adults Team,LD - Young Adults - Care,Residential Care
Cambridgeshire County Council,08-Nov-19,51301257236,"-1,834.34",GLENHOLME HEALTHCARE LTD,CARE ESTABLISHMENT,LD - Young Adults Team,LD - Young Adults - Care,Residential Care
Cambridgeshire County Council,08-Nov-19,51301257236,"-1,834.34",GLENHOLME HEALTHCARE LTD,CARE ESTABLISHMENT,LD - Young Adults Team,LD - Young Adults - Care,Residential Care
Cambridgeshire County Council,08-Nov-19,51301257236,"-1,834.34",GLENHOLME HEALTHCARE LTD,CARE ESTABLISHMENT,LD - Young Adults Team,LD - Young Adults - Care,Residential Care
Cambridgeshire County Council,08-Nov-19,51301257236,"-1,834.34",GLENHOLME HEALTHCARE LTD,CARE ESTABLISHMENT,LD - Young Adults Team,LD - Young Adults - Care,Residential Care
Cambridgeshire County Council,08-Nov-19,51301257236,"-1,834.34",GLENHOLME HEALTHCARE LTD,CARE ESTABLISHMENT,LD - Young Adults Team,LD - Young Adults - Care,Residential Care
Cambridgeshire County Council,08-Nov-19,51301257236,"-1,834.34",GLENHOLME HEALTHCARE LTD,CARE ESTABLISHMENT,LD - Young Adults Team,LD - Young Adults - Care,Residential Care
Cambridgeshire County Council,08-Nov-19,51301257236,"-1,834.34",GLENHOLME HEALTHCARE LTD,CARE ESTABLISHMENT,LD - Young Adults Team,LD - Young Adults - Care,Residential Care
Cambridgeshire County Council,08-Nov-19,51301257236,"-1,834.34",GLENHOLME HEALTHCARE LTD,CARE ESTABLISHMENT,LD - Young Adults Team,LD - Young Adults - Care,Residential Care
Cambridgeshire County Council,08-Nov-19,51301257236,"-1,834.34",GLENHOLME HEALTHCARE LTD,CARE ESTABLISHMENT,LD - Young Adults Team,LD - Young Adults - Care,Residential Care
Cambridgeshire County Council,08-Nov-19,51301257236,"-1,834.34",GLENHOLME HEALTHCARE LTD,CARE ESTABLISHMENT,LD - Young Adults Team,LD - Young Adults - Care,Residential Care
Cambridgeshire County Council,08-Nov-19,51301257236,"-1,834.34",GLENHOLME HEALTHCARE LTD,CARE ESTABLISHMENT,LD - Young Adults Team,LD - Young Adults - Care,Residential Care
Cambridgeshire County Council,08-Nov-19,51301257236,"-1,834.34",GLENHOLME HEALTHCARE LTD,CARE ESTABLISHMENT,LD - Young Adults Team,LD - Young Adults - Care,Residential Care
Cambridgeshire County Council,08-Nov-19,51301257236,"-1,834.34",GLENHOLME HEALTHCARE LTD,CARE ESTABLISHMENT,LD - Young Adults Team,LD - Young Adults - Care,Residential Care
Cambridgeshire County Council,08-Nov-19,51301257236,"-1,834.34",GLENHOLME HEALTHCARE LTD,CARE ESTABLISHMENT,LD - Young Adults Team,LD - Young Adults - Care,Residential Care
Cambridgeshire County Council,08-Nov-19,51301257236,"-1,834.34",GLENHOLME HEALTHCARE LTD,CARE ESTABLISHMENT,LD - Young Adults Team,LD - Young Adults - Care,Residential Care
Cambridgeshire County Council,08-Nov-19,51301257236,"-1,834.34",GLENHOLME HEALTHCARE LTD,CARE ESTABLISHMENT,LD - Young Adults Team,LD - Young Adults - Care,Residential Care
Cambridgeshire County Council,08-Nov-19,51301257236,"-1,834.34",GLENHOLME HEALTHCARE LTD,CARE ESTABLISHMENT,LD - Young Adults Team,LD - Young Adults - Care,Residential Care
Cambridgeshire County Council,08-Nov-19,51301257236,"-1,834.34",GLENHOLME HEALTHCARE LTD,CARE ESTABLISHMENT,LD - Young Adults Team,LD - Young Adults - Care,Residential Care
Cambridgeshire County Council,08-Nov-19,51301257236,"-1,834.34",GLENHOLME HEALTHCARE LTD,CARE ESTABLISHMENT,LD - Young Adults Team,LD - Young Adults - Care,Residential Care
Cambridgeshire County Council,08-Nov-19,51301257236,"-1,834.34",GLENHOLME HEALTHCARE LTD,CARE ESTABLISHMENT,LD - Young Adults Team,LD - Young Adults - Care,Residential Care
Cambridgeshire County Council,08-Nov-19,51301257236,"-1,834.34",GLENHOLME HEALTHCARE LTD,CARE ESTABLISHMENT,LD - Young Adults Team,LD - Young Adults - Care,Residential Care
Cambridgeshire County Council,08-Nov-19,51301257236,"-1,834.34",GLENHOLME HEALTHCARE LTD,CARE ESTABLISHMENT,LD - Young Adults Team,LD - Young Adults - Care,Residential Care
Cambridgeshire County Council,08-Nov-19,51301257236,"-1,834.34",GLENHOLME HEALTHCARE LTD,CARE ESTABLISHMENT,LD - Young Adults Team,LD - Young Adults - Care,Residential Care
Cambridgeshire County Council,08-Nov-19,51301257236,"-1,834.34",GLENHOLME HEALTHCARE LTD,CARE ESTABLISHMENT,LD - Young Adults Team,LD - Young Adults - Care,Residential Care
Cambridgeshire County Council,08-Nov-19,51301257233,"-1,790.10",AURORA ORCHARD MANOR,CARE ESTABLISHMENT,LD - Young Adults Team,LD - Young Adults - Care,Residential Care
Cambridgeshire County Council,08-Nov-19,51301257233,"-1,790.10",AURORA ORCHARD MANOR,CARE ESTABLISHMENT,LD - Young Adults Team,LD - Young Adults - Care,Residential Care
Cambridgeshire County Council,08-Nov-19,51301257233,"-1,790.10",AURORA ORCHARD MANOR,CARE ESTABLISHMENT,LD - Young Adults Team,LD - Young Adults - Care,Residential Care
Cambridgeshire County Council,08-Nov-19,51301257233,"-1,790.10",AURORA ORCHARD MANOR,CARE ESTABLISHMENT,LD - Young Adults Team,LD - Young Adults - Care,Residential Care
Cambridgeshire County Council,08-Nov-19,51301257233,"-1,790.10",AURORA ORCHARD MANOR,CARE ESTABLISHMENT,LD - Young Adults Team,LD - Young Adults - Care,Residential Care
Cambridgeshire County Council,08-Nov-19,51301257233,"-1,790.10",AURORA ORCHARD MANOR,CARE ESTABLISHMENT,LD - Young Adults Team,LD - Young Adults - Care,Residential Care
Cambridgeshire County Council,08-Nov-19,51301257233,"-1,790.10",AURORA ORCHARD MANOR,CARE ESTABLISHMENT,LD - Young Adults Team,LD - Young Adults - Care,Residential Care
Cambridgeshire County Council,08-Nov-19,51301257233,"-1,790.10",AURORA ORCHARD MANOR,CARE ESTABLISHMENT,LD - Young Adults Team,LD - Young Adults - Care,Residential Care
Cambridgeshire County Council,08-Nov-19,51301257233,"-1,790.10",AURORA ORCHARD MANOR,CARE ESTABLISHMENT,LD - Young Adults Team,LD - Young Adults - Care,Residential Care
Cambridgeshire County Council,08-Nov-19,51301257233,"-1,790.10",AURORA ORCHARD MANOR,CARE ESTABLISHMENT,LD - Young Adults Team,LD - Young Adults - Care,Residential Care
Cambridgeshire County Council,08-Nov-19,51301257233,"-1,790.10",AURORA ORCHARD MANOR,CARE ESTABLISHMENT,LD - Young Adults Team,LD - Young Adults - Care,Residential Care
Cambridgeshire County Council,08-Nov-19,51301257233,"-1,790.10",AURORA ORCHARD MANOR,CARE ESTABLISHMENT,LD - Young Adults Team,LD - Young Adults - Care,Residential Care
Cambridgeshire County Council,08-Nov-19,51301257233,"-1,790.10",AURORA ORCHARD MANOR,CARE ESTABLISHMENT,LD - Young Adults Team,LD - Young Adults - Care,Residential Care
Cambridgeshire County Council,08-Nov-19,51301257233,"-1,790.10",AURORA ORCHARD MANOR,CARE ESTABLISHMENT,LD - Young Adults Team,LD - Young Adults - Care,Residential Care
Cambridgeshire County Council,08-Nov-19,51301257233,"-1,790.10",AURORA ORCHARD MANOR,CARE ESTABLISHMENT,LD - Young Adults Team,LD - Young Adults - Care,Residential Care
Cambridgeshire County Council,08-Nov-19,51301257233,"-1,790.10",AURORA ORCHARD MANOR,CARE ESTABLISHMENT,LD - Young Adults Team,LD - Young Adults - Care,Residential Care
Cambridgeshire County Council,28-Nov-19,51301268294,"-1,784.35",AURORA ORCHARD MANOR,CARE ESTABLISHMENT,LD - Young Adults Team,LD - Young Adults - Care,Residential Care
Cambridgeshire County Council,28-Nov-19,51301268294,"-1,784.35",AURORA ORCHARD MANOR,CARE ESTABLISHMENT,LD - Young Adults Team,LD - Young Adults - Care,Residential Care
Cambridgeshire County Council,28-Nov-19,51301268294,"-1,784.35",AURORA ORCHARD MANOR,CARE ESTABLISHMENT,LD - Young Adults Team,LD - Young Adults - Care,Residential Care
Cambridgeshire County Council,28-Nov-19,51301268294,"-1,784.35",AURORA ORCHARD MANOR,CARE ESTABLISHMENT,LD - Young Adults Team,LD - Young Adults - Care,Residential Care
Cambridgeshire County Council,28-Nov-19,51301268294,"-1,784.35",AURORA ORCHARD MANOR,CARE ESTABLISHMENT,LD - Young Adults Team,LD - Young Adults - Care,Residential Care
Cambridgeshire County Council,08-Nov-19,51301235672,"-1,744.32",RENTON COURT (VOYAGE),CARE ESTABLISHMENT,LD - Hunts Locality - Cost of Care,LD - Huntingdonshire - Special Needs,Supported Living
Cambridgeshire County Council,08-Nov-19,51301235673,"-1,744.32",RENTON COURT (VOYAGE),CARE ESTABLISHMENT,LD - Hunts Locality - Cost of Care,LD - Huntingdonshire - Special Needs,Supported Living
Cambridgeshire County Council,07-Nov-19,51301239488,"-1,734.43",AUGUSTA CARE LTD,CARE ESTABLISHMENT,LD - Hunts Locality - Cost of Care,LD - Huntingdonshire - Special Needs,Supported Living
Cambridgeshire County Council,07-Nov-19,51301239489,"-1,734.43",AUGUSTA CARE LTD,CARE ESTABLISHMENT,LD - Hunts Locality - Cost of Care,LD - Huntingdonshire - Special Needs,Supported Living
Cambridgeshire County Council,01-Nov-19,51301242811,"-1,718.22",STAGECOACH SERVICES LTD,TRADE SUPPLIER,Passenger Transport other,Cambridgeshire Future Transport,Support - subsidised bus routes
Cambridgeshire County Council,08-Nov-19,51301253618,"-1,711.36",AFFINITY TRUST,CARE ESTABLISHMENT,LD - Fenland Locality - Cost of Care,LD - Fenland  - Care,Supported Living
Cambridgeshire County Council,08-Nov-19,51301249717,"-1,711.36",AFFINITY TRUST,CARE ESTABLISHMENT,LD - Fenland Locality - Cost of Care,LD - Fenland  - Care,Supported Living
Cambridgeshire County Council,08-Nov-19,51301253631,"-1,711.36",AFFINITY TRUST,CARE ESTABLISHMENT,LD - Fenland Locality - Cost of Care,LD - Fenland  - Care,Supported Living
Cambridgeshire County Council,08-Nov-19,51301253641,"-1,711.36",AFFINITY TRUST,CARE ESTABLISHMENT,LD - Fenland Locality - Cost of Care,LD - Fenland  - Care,Supported Living
Cambridgeshire County Council,08-Nov-19,51301249696,"-1,711.36",AFFINITY TRUST,CARE ESTABLISHMENT,LD - Fenland Locality - Cost of Care,LD - Fenland  - Care,Supported Living
Cambridgeshire County Council,08-Nov-19,51301249712,"-1,711.36",AFFINITY TRUST,CARE ESTABLISHMENT,LD - Fenland Locality - Cost of Care,LD - Fenland  - Care,Supported Living
Cambridgeshire County Council,08-Nov-19,51301253632,"-1,711.36",AFFINITY TRUST,CARE ESTABLISHMENT,LD - Fenland Locality - Cost of Care,LD - Fenland  - Care,Supported Living
Cambridgeshire County Council,08-Nov-19,51301253623,"-1,711.36",AFFINITY TRUST,CARE ESTABLISHMENT,LD - Fenland Locality - Cost of Care,LD - Fenland  - Care,Supported Living
Cambridgeshire County Council,08-Nov-19,51301249713,"-1,711.36",AFFINITY TRUST,CARE ESTABLISHMENT,LD - Fenland Locality - Cost of Care,LD - Fenland  - Care,Supported Living
Cambridgeshire County Council,08-Nov-19,51301249714,"-1,711.36",AFFINITY TRUST,CARE ESTABLISHMENT,LD - Fenland Locality - Cost of Care,LD - Fenland  - Care,Supported Living
Cambridgeshire County Council,08-Nov-19,51301249699,"-1,711.36",AFFINITY TRUST,CARE ESTABLISHMENT,LD - Fenland Locality - Cost of Care,LD - Fenland  - Care,Supported Living
Cambridgeshire County Council,08-Nov-19,51301249711,"-1,711.36",AFFINITY TRUST,CARE ESTABLISHMENT,LD - Fenland Locality - Cost of Care,LD - Fenland  - Care,Supported Living
Cambridgeshire County Council,08-Nov-19,51301253612,"-1,711.36",AFFINITY TRUST,CARE ESTABLISHMENT,LD - Fenland Locality - Cost of Care,LD - Fenland  - Care,Supported Living
Cambridgeshire County Council,08-Nov-19,51301249698,"-1,711.36",AFFINITY TRUST,CARE ESTABLISHMENT,LD - Fenland Locality - Cost of Care,LD - Fenland  - Care,Supported Living
Cambridgeshire County Council,08-Nov-19,51301253637,"-1,711.36",AFFINITY TRUST,CARE ESTABLISHMENT,LD - Fenland Locality - Cost of Care,LD - Fenland  - Special Needs,Supported Living
Cambridgeshire County Council,08-Nov-19,51301249690,"-1,711.36",AFFINITY TRUST,CARE ESTABLISHMENT,LD - Fenland Locality - Cost of Care,LD - Fenland  - Special Needs,Supported Living
Cambridgeshire County Council,08-Nov-19,51301249692,"-1,711.36",AFFINITY TRUST,CARE ESTABLISHMENT,LD - Fenland Locality - Cost of Care,LD - Fenland  - Special Needs,Supported Living
Cambridgeshire County Council,08-Nov-19,51301253621,"-1,711.36",AFFINITY TRUST,CARE ESTABLISHMENT,LD - Fenland Locality - Cost of Care,LD - Fenland  - Special Needs,Supported Living
Cambridgeshire County Council,08-Nov-19,51301253634,"-1,711.36",AFFINITY TRUST,CARE ESTABLISHMENT,LD - Fenland Locality - Cost of Care,LD - Fenland  - Special Needs,Supported Living
Cambridgeshire County Council,08-Nov-19,51301253628,"-1,711.36",AFFINITY TRUST,CARE ESTABLISHMENT,LD - Fenland Locality - Cost of Care,LD - Fenland  - Special Needs,Supported Living
Cambridgeshire County Council,08-Nov-19,51301253639,"-1,711.36",AFFINITY TRUST,CARE ESTABLISHMENT,LD - Fenland Locality - Cost of Care,LD - Fenland  - Special Needs,Supported Living
Cambridgeshire County Council,08-Nov-19,51301249716,"-1,711.36",AFFINITY TRUST,CARE ESTABLISHMENT,LD - Fenland Locality - Cost of Care,LD - Fenland  - Special Needs,Supported Living
Cambridgeshire County Council,08-Nov-19,51301253635,"-1,711.36",AFFINITY TRUST,CARE ESTABLISHMENT,LD - Fenland Locality - Cost of Care,LD - Fenland  - Special Needs,Supported Living
Cambridgeshire County Council,08-Nov-19,51301253622,"-1,711.36",AFFINITY TRUST,CARE ESTABLISHMENT,LD - Fenland Locality - Cost of Care,LD - Fenland  - Special Needs,Supported Living
Cambridgeshire County Council,08-Nov-19,51301249695,"-1,711.36",AFFINITY TRUST,CARE ESTABLISHMENT,LD - Fenland Locality - Cost of Care,LD - Fenland  - Special Needs,Supported Living
Cambridgeshire County Council,08-Nov-19,51301249697,"-1,711.36",AFFINITY TRUST,CARE ESTABLISHMENT,LD - Fenland Locality - Cost of Care,LD - Fenland  - Special Needs,Supported Living
Cambridgeshire County Council,08-Nov-19,51301253627,"-1,711.36",AFFINITY TRUST,CARE ESTABLISHMENT,LD - Fenland Locality - Cost of Care,LD - Fenland  - Special Needs,Supported Living
Cambridgeshire County Council,08-Nov-19,51301249691,"-1,711.36",AFFINITY TRUST,CARE ESTABLISHMENT,LD - Fenland Locality - Cost of Care,LD - Fenland  - Special Needs,Supported Living
Cambridgeshire County Council,08-Nov-19,51301249704,"-1,711.36",AFFINITY TRUST,CARE ESTABLISHMENT,LD - Fenland Locality - Cost of Care,LD - Fenland  - Special Needs,Supported Living
Cambridgeshire County Council,08-Nov-19,51301253613,"-1,711.36",AFFINITY TRUST,CARE ESTABLISHMENT,LD - Fenland Locality - Cost of Care,LD - Fenland  - Special Needs,Supported Living
Cambridgeshire County Council,08-Nov-19,51301253620,"-1,711.36",AFFINITY TRUST,CARE ESTABLISHMENT,LD - Fenland Locality - Cost of Care,LD - Fenland  - Special Needs,Supported Living
Cambridgeshire County Council,08-Nov-19,51301249701,"-1,711.36",AFFINITY TRUST,CARE ESTABLISHMENT,LD - Fenland Locality - Cost of Care,LD - Fenland  - Special Needs,Supported Living
Cambridgeshire County Council,29-Nov-19,51301270857,"-1,711.36",AFFINITY TRUST,CARE ESTABLISHMENT,LD - Fenland Locality - Cost of Care,LD - Fenland  - Care,Supported Living
Cambridgeshire County Council,29-Nov-19,51301270831,"-1,711.36",AFFINITY TRUST,CARE ESTABLISHMENT,LD - Fenland Locality - Cost of Care,LD - Fenland  - Care,Supported Living
Cambridgeshire County Council,29-Nov-19,51301270844,"-1,711.36",AFFINITY TRUST,CARE ESTABLISHMENT,LD - Fenland Locality - Cost of Care,LD - Fenland  - Care,Supported Living
Cambridgeshire County Council,29-Nov-19,51301270855,"-1,711.36",AFFINITY TRUST,CARE ESTABLISHMENT,LD - Fenland Locality - Cost of Care,LD - Fenland  - Care,Supported Living
Cambridgeshire County Council,29-Nov-19,51301270839,"-1,711.36",AFFINITY TRUST,CARE ESTABLISHMENT,LD - Fenland Locality - Cost of Care,LD - Fenland  - Care,Supported Living
Cambridgeshire County Council,29-Nov-19,51301270830,"-1,711.36",AFFINITY TRUST,CARE ESTABLISHMENT,LD - Fenland Locality - Cost of Care,LD - Fenland  - Care,Supported Living
Cambridgeshire County Council,29-Nov-19,51301270834,"-1,711.36",AFFINITY TRUST,CARE ESTABLISHMENT,LD - Fenland Locality - Cost of Care,LD - Fenland  - Care,Supported Living
Cambridgeshire County Council,29-Nov-19,51301270861,"-1,711.36",AFFINITY TRUST,CARE ESTABLISHMENT,LD - Fenland Locality - Cost of Care,LD - Fenland  - Special Needs,Supported Living
Cambridgeshire County Council,29-Nov-19,51301270838,"-1,711.36",AFFINITY TRUST,CARE ESTABLISHMENT,LD - Fenland Locality - Cost of Care,LD - Fenland  - Special Needs,Supported Living
Cambridgeshire County Council,29-Nov-19,51301270851,"-1,711.36",AFFINITY TRUST,CARE ESTABLISHMENT,LD - Fenland Locality - Cost of Care,LD - Fenland  - Special Needs,Supported Living
Cambridgeshire County Council,29-Nov-19,51301270850,"-1,711.36",AFFINITY TRUST,CARE ESTABLISHMENT,LD - Fenland Locality - Cost of Care,LD - Fenland  - Special Needs,Supported Living
Cambridgeshire County Council,29-Nov-19,51301270836,"-1,711.36",AFFINITY TRUST,CARE ESTABLISHMENT,LD - Fenland Locality - Cost of Care,LD - Fenland  - Special Needs,Supported Living
Cambridgeshire County Council,29-Nov-19,51301270845,"-1,711.36",AFFINITY TRUST,CARE ESTABLISHMENT,LD - Fenland Locality - Cost of Care,LD - Fenland  - Special Needs,Supported Living
Cambridgeshire County Council,29-Nov-19,51301270847,"-1,711.36",AFFINITY TRUST,CARE ESTABLISHMENT,LD - Fenland Locality - Cost of Care,LD - Fenland  - Special Needs,Supported Living
Cambridgeshire County Council,29-Nov-19,51301270848,"-1,711.36",AFFINITY TRUST,CARE ESTABLISHMENT,LD - Fenland Locality - Cost of Care,LD - Fenland  - Special Needs,Supported Living
Cambridgeshire County Council,29-Nov-19,51301270833,"-1,711.36",AFFINITY TRUST,CARE ESTABLISHMENT,LD - Fenland Locality - Cost of Care,LD - Fenland  - Special Needs,Supported Living
Cambridgeshire County Council,14-Nov-19,51301263223,"-1,647.66",Glebe Farm,COMPANY,LD - Hunts Locality - Cost of Care,LD - Huntingdonshire - Care,Residential Care
Cambridgeshire County Council,04-Nov-19,51300018320,"-1,596.00",Redacted Personal Data ,SERVICE USER,Control Accounts,Control Accounts - Payables,Migration Only - Marked as Do Not Use
Cambridgeshire County Council,04-Nov-19,51300018332,"-1,596.00",Redacted Personal Data ,SERVICE USER,Control Accounts,Control Accounts - Payables,Migration Only - Marked as Do Not Use
Cambridgeshire County Council,04-Nov-19,51300018310,"-1,596.00",Redacted Personal Data ,SERVICE USER,Control Accounts,Control Accounts - Payables,Migration Only - Marked as Do Not Use
Cambridgeshire County Council,04-Nov-19,51300018326,"-1,596.00",Redacted Personal Data ,SERVICE USER,Control Accounts,Control Accounts - Payables,Migration Only - Marked as Do Not Use
Cambridgeshire County Council,04-Nov-19,51300018324,"-1,596.00",Redacted Personal Data ,SERVICE USER,Control Accounts,Control Accounts - Payables,Migration Only - Marked as Do Not Use
Cambridgeshire County Council,04-Nov-19,51300018318,"-1,596.00",Redacted Personal Data ,SERVICE USER,Control Accounts,Control Accounts - Payables,Migration Only - Marked as Do Not Use
Cambridgeshire County Council,04-Nov-19,51300018328,"-1,596.00",Redacted Personal Data ,SERVICE USER,Control Accounts,Control Accounts - Payables,Migration Only - Marked as Do Not Use
Cambridgeshire County Council,04-Nov-19,51300018336,"-1,596.00",Redacted Personal Data ,SERVICE USER,Control Accounts,Control Accounts - Payables,Migration Only - Marked as Do Not Use
Cambridgeshire County Council,04-Nov-19,51300018334,"-1,596.00",Redacted Personal Data ,SERVICE USER,Control Accounts,Control Accounts - Payables,Migration Only - Marked as Do Not Use
Cambridgeshire County Council,04-Nov-19,51300018340,"-1,596.00",Redacted Personal Data ,SERVICE USER,Control Accounts,Control Accounts - Payables,Migration Only - Marked as Do Not Use
Cambridgeshire County Council,04-Nov-19,51300018312,"-1,596.00",Redacted Personal Data ,SERVICE USER,Control Accounts,Control Accounts - Payables,Migration Only - Marked as Do Not Use
Cambridgeshire County Council,04-Nov-19,51300018316,"-1,596.00",Redacted Personal Data ,SERVICE USER,Control Accounts,Control Accounts - Payables,Migration Only - Marked as Do Not Use
Cambridgeshire County Council,08-Nov-19,51301236913,"-1,562.40",FITZROY SUPPORT RE 28 RIVERBANK,CARE ESTABLISHMENT,LD - Fenland Locality - Cost of Care,LD - Fenland  - Special Needs,Supported Living
Cambridgeshire County Council,08-Nov-19,51301236908,"-1,562.40",FITZROY SUPPORT RE 28 RIVERBANK,CARE ESTABLISHMENT,LD - Fenland Locality - Cost of Care,LD - Fenland  - Special Needs,Supported Living
Cambridgeshire County Council,22-Nov-19,51301264306,"-1,562.10",CAPSTONE FOSTER CARE (SOUTH EAST) LTD,CARE ESTABLISHMENT,Unaccompanied Asylum Seeking Children,Unaccompanied Asylum Seeking Children <18,Asylum Seekers
Cambridgeshire County Council,29-Nov-19,51301273062,"-1,533.64",CORDERCARE,CARE ESTABLISHMENT,OP - Fenland Locality - Cost of Care,Older People - Fenland - Care,Domiciliary Care
Cambridgeshire County Council,08-Nov-19,51301239570,"-1,488.13",FITZROY SUPPORT RE 28 RIVERBANK,CARE ESTABLISHMENT,LD - Fenland Locality - Cost of Care,LD - Fenland  - Special Needs,Supported Living
Cambridgeshire County Council,08-Nov-19,51301235521,"-1,488.13",FITZROY SUPPORT RE 28 RIVERBANK,CARE ESTABLISHMENT,LD - Fenland Locality - Cost of Care,LD - Fenland  - Special Needs,Supported Living
Cambridgeshire County Council,08-Nov-19,51301239569,"-1,488.13",FITZROY SUPPORT RE 28 RIVERBANK,CARE ESTABLISHMENT,LD - Fenland Locality - Cost of Care,LD - Fenland  - Special Needs,Supported Living
Cambridgeshire County Council,08-Nov-19,51301235520,"-1,488.13",FITZROY SUPPORT RE 28 RIVERBANK,CARE ESTABLISHMENT,LD - Fenland Locality - Cost of Care,LD - Fenland  - Special Needs,Supported Living
Cambridgeshire County Council,08-Nov-19,51301238498,"-1,430.37",23 LIONS CROSS (VOYAGE),CARE ESTABLISHMENT,LD - Hunts Locality - Cost of Care,LD - Huntingdonshire - Special Needs,Supported Living
Cambridgeshire County Council,08-Nov-19,51301238497,"-1,430.37",23 LIONS CROSS (VOYAGE),CARE ESTABLISHMENT,LD - Hunts Locality - Cost of Care,LD - Huntingdonshire - Special Needs,Supported Living
Cambridgeshire County Council,28-Nov-19,51300837142,"-1,407.82",MENCAP (32 KINGS LANE),CARE ESTABLISHMENT,LD - Hunts Locality - Cost of Care,LD - Huntingdonshire - Special Needs,Residential Care
Cambridgeshire County Council,28-Nov-19,51300837159,"-1,407.82",MENCAP (32 KINGS LANE),CARE ESTABLISHMENT,LD - Hunts Locality - Cost of Care,LD - Huntingdonshire - Special Needs,Residential Care
Cambridgeshire County Council,28-Nov-19,51300837162,"-1,407.82",MENCAP (32 KINGS LANE),CARE ESTABLISHMENT,LD - Hunts Locality - Cost of Care,LD - Huntingdonshire - Special Needs,Residential Care
Cambridgeshire County Council,28-Nov-19,51300837174,"-1,407.82",MENCAP (32 KINGS LANE),CARE ESTABLISHMENT,LD - Hunts Locality - Cost of Care,LD - Huntingdonshire - Special Needs,Residential Care
Cambridgeshire County Council,28-Nov-19,51300837148,"-1,407.82",MENCAP (32 KINGS LANE),CARE ESTABLISHMENT,LD - Hunts Locality - Cost of Care,LD - Huntingdonshire - Special Needs,Residential Care
Cambridgeshire County Council,28-Nov-19,51300837147,"-1,407.82",MENCAP (32 KINGS LANE),CARE ESTABLISHMENT,LD - Hunts Locality - Cost of Care,LD - Huntingdonshire - Special Needs,Residential Care
Cambridgeshire County Council,28-Nov-19,51300837167,"-1,407.82",MENCAP (32 KINGS LANE),CARE ESTABLISHMENT,LD - Hunts Locality - Cost of Care,LD - Huntingdonshire - Special Needs,Residential Care
Cambridgeshire County Council,28-Nov-19,51300837151,"-1,407.82",MENCAP (32 KINGS LANE),CARE ESTABLISHMENT,LD - Hunts Locality - Cost of Care,LD - Huntingdonshire - Special Needs,Residential Care
Cambridgeshire County Council,28-Nov-19,51300837141,"-1,407.82",MENCAP (32 KINGS LANE),CARE ESTABLISHMENT,LD - Hunts Locality - Cost of Care,LD - Huntingdonshire - Special Needs,Residential Care
Cambridgeshire County Council,28-Nov-19,51300837143,"-1,407.82",MENCAP (32 KINGS LANE),CARE ESTABLISHMENT,LD - Hunts Locality - Cost of Care,LD - Huntingdonshire - Special Needs,Residential Care
Cambridgeshire County Council,28-Nov-19,51300837149,"-1,407.82",MENCAP (32 KINGS LANE),CARE ESTABLISHMENT,LD - Hunts Locality - Cost of Care,LD - Huntingdonshire - Special Needs,Residential Care
Cambridgeshire County Council,28-Nov-19,51300837156,"-1,407.82",MENCAP (32 KINGS LANE),CARE ESTABLISHMENT,LD - Hunts Locality - Cost of Care,LD - Huntingdonshire - Special Needs,Residential Care
Cambridgeshire County Council,28-Nov-19,51300837152,"-1,407.82",MENCAP (32 KINGS LANE),CARE ESTABLISHMENT,LD - Hunts Locality - Cost of Care,LD - Huntingdonshire - Special Needs,Residential Care
Cambridgeshire County Council,28-Nov-19,51300837161,"-1,407.82",MENCAP (32 KINGS LANE),CARE ESTABLISHMENT,LD - Hunts Locality - Cost of Care,LD - Huntingdonshire - Special Needs,Residential Care
Cambridgeshire County Council,28-Nov-19,51300837144,"-1,407.82",MENCAP (32 KINGS LANE),CARE ESTABLISHMENT,LD - Hunts Locality - Cost of Care,LD - Huntingdonshire - Special Needs,Residential Care
Cambridgeshire County Council,28-Nov-19,51300837175,"-1,407.82",MENCAP (32 KINGS LANE),CARE ESTABLISHMENT,LD - Hunts Locality - Cost of Care,LD - Huntingdonshire - Special Needs,Residential Care
Cambridgeshire County Council,28-Nov-19,51300837154,"-1,407.82",MENCAP (32 KINGS LANE),CARE ESTABLISHMENT,LD - Hunts Locality - Cost of Care,LD - Huntingdonshire - Special Needs,Residential Care
Cambridgeshire County Council,28-Nov-19,51300837160,"-1,407.82",MENCAP (32 KINGS LANE),CARE ESTABLISHMENT,LD - Hunts Locality - Cost of Care,LD - Huntingdonshire - Special Needs,Residential Care
Cambridgeshire County Council,08-Nov-19,51301239815,"-1,398.02",ALDERBURY BUNGALOW,CARE ESTABLISHMENT,Physical Disablity - Cost of Care,Countywide PD Service - Care,Supported Living
Cambridgeshire County Council,08-Nov-19,51301239814,"-1,398.02",ALDERBURY BUNGALOW,CARE ESTABLISHMENT,Physical Disablity - Cost of Care,Countywide PD Service - Care,Supported Living
Cambridgeshire County Council,08-Nov-19,51301235760,"-1,385.32",23 LIONS CROSS (VOYAGE),CARE ESTABLISHMENT,LD - Hunts Locality - Cost of Care,LD - Huntingdonshire - Special Needs,Supported Living
Cambridgeshire County Council,08-Nov-19,51301235758,"-1,385.32",23 LIONS CROSS (VOYAGE),CARE ESTABLISHMENT,LD - Hunts Locality - Cost of Care,LD - Huntingdonshire - Special Needs,Supported Living
Cambridgeshire County Council,08-Nov-19,51301240676,"-1,369.81",FLORIDA AVENUE (VOYAGE),CARE ESTABLISHMENT,LD - Hunts Locality - Cost of Care,LD - Huntingdonshire - Special Needs,Supported Living
Cambridgeshire County Council,08-Nov-19,51301240678,"-1,369.81",FLORIDA AVENUE (VOYAGE),CARE ESTABLISHMENT,LD - Hunts Locality - Cost of Care,LD - Huntingdonshire - Special Needs,Supported Living
Cambridgeshire County Council,18-Nov-19,51301258539,"-1,367.85",T C HARRISON GROUP LTD,TRADE SUPPLIER,Grafham Water,Grafham Water Centre,Vehicle and Plant hire
Cambridgeshire County Council,08-Nov-19,51301238716,"-1,360.97",23 LIONS CROSS (VOYAGE),CARE ESTABLISHMENT,LD - Hunts Locality - Cost of Care,LD - Huntingdonshire - Special Needs,Supported Living
Cambridgeshire County Council,08-Nov-19,51301238714,"-1,360.97",23 LIONS CROSS (VOYAGE),CARE ESTABLISHMENT,LD - Hunts Locality - Cost of Care,LD - Huntingdonshire - Special Needs,Supported Living
Cambridgeshire County Council,29-Nov-19,51301274404,"-1,331.46",WESTMINSTER HOMECARE LIMITED,CARE ESTABLISHMENT,OP - Hunts Locality - Cost of Care,Hunts OP Team - Care,Domiciliary Care
Cambridgeshire County Council,08-Nov-19,51301241128,"-1,330.78",RENTON COURT (VOYAGE),CARE ESTABLISHMENT,LD - Hunts Locality - Cost of Care,LD - Huntingdonshire - Special Needs,Supported Living
Cambridgeshire County Council,08-Nov-19,51301239651,"-1,330.78",RENTON COURT (VOYAGE),CARE ESTABLISHMENT,LD - Hunts Locality - Cost of Care,LD - Huntingdonshire - Special Needs,Supported Living
Cambridgeshire County Council,08-Nov-19,51301237788,"-1,330.78",RENTON COURT (VOYAGE),CARE ESTABLISHMENT,LD - Hunts Locality - Cost of Care,LD - Huntingdonshire - Special Needs,Supported Living
Cambridgeshire County Council,08-Nov-19,51301237787,"-1,330.78",RENTON COURT (VOYAGE),CARE ESTABLISHMENT,LD - Hunts Locality - Cost of Care,LD - Huntingdonshire - Special Needs,Supported Living
Cambridgeshire County Council,08-Nov-19,51301239648,"-1,330.78",RENTON COURT (VOYAGE),CARE ESTABLISHMENT,LD - Hunts Locality - Cost of Care,LD - Huntingdonshire - Special Needs,Supported Living
Cambridgeshire County Council,08-Nov-19,51301241129,"-1,330.78",RENTON COURT (VOYAGE),CARE ESTABLISHMENT,LD - Hunts Locality - Cost of Care,LD - Huntingdonshire - Special Needs,Supported Living
Cambridgeshire County Council,28-Nov-19,51301250758,"-1,328.44",CARE MANAGEMENT GROUP (64-66 CARLTON),CARE ESTABLISHMENT,LD - East Locality - Cost of Care,LD - East Cambs - Special Needs,Residential Care
Cambridgeshire County Council,28-Nov-19,51301250768,"-1,328.44",CARE MANAGEMENT GROUP (64-66 CARLTON),CARE ESTABLISHMENT,LD - East Locality - Cost of Care,LD - East Cambs - Special Needs,Residential Care
Cambridgeshire County Council,28-Nov-19,51301254425,"-1,328.44",CARE MANAGEMENT GROUP (64-66 CARLTON),CARE ESTABLISHMENT,LD - East Locality - Cost of Care,LD - East Cambs - Special Needs,Residential Care
Cambridgeshire County Council,28-Nov-19,51301254525,"-1,328.44",CARE MANAGEMENT GROUP (64-66 CARLTON),CARE ESTABLISHMENT,LD - East Locality - Cost of Care,LD - East Cambs - Special Needs,Residential Care
Cambridgeshire County Council,28-Nov-19,51301250665,"-1,328.44",CARE MANAGEMENT GROUP (64-66 CARLTON),CARE ESTABLISHMENT,LD - East Locality - Cost of Care,LD - East Cambs - Special Needs,Residential Care
Cambridgeshire County Council,28-Nov-19,51301250762,"-1,328.44",CARE MANAGEMENT GROUP (64-66 CARLTON),CARE ESTABLISHMENT,LD - East Locality - Cost of Care,LD - East Cambs - Special Needs,Residential Care
Cambridgeshire County Council,28-Nov-19,51301250764,"-1,328.44",CARE MANAGEMENT GROUP (64-66 CARLTON),CARE ESTABLISHMENT,LD - East Locality - Cost of Care,LD - East Cambs - Special Needs,Residential Care
Cambridgeshire County Council,28-Nov-19,51301250783,"-1,328.44",CARE MANAGEMENT GROUP (64-66 CARLTON),CARE ESTABLISHMENT,LD - East Locality - Cost of Care,LD - East Cambs - Special Needs,Residential Care
Cambridgeshire County Council,28-Nov-19,51301254430,"-1,328.44",CARE MANAGEMENT GROUP (64-66 CARLTON),CARE ESTABLISHMENT,LD - East Locality - Cost of Care,LD - East Cambs - Special Needs,Residential Care
Cambridgeshire County Council,28-Nov-19,51301254546,"-1,328.44",CARE MANAGEMENT GROUP (64-66 CARLTON),CARE ESTABLISHMENT,LD - East Locality - Cost of Care,LD - East Cambs - Special Needs,Residential Care
Cambridgeshire County Council,28-Nov-19,51301250695,"-1,328.44",CARE MANAGEMENT GROUP (64-66 CARLTON),CARE ESTABLISHMENT,LD - East Locality - Cost of Care,LD - East Cambs - Special Needs,Residential Care
Cambridgeshire County Council,28-Nov-19,51301250689,"-1,328.44",CARE MANAGEMENT GROUP (64-66 CARLTON),CARE ESTABLISHMENT,LD - East Locality - Cost of Care,LD - East Cambs - Special Needs,Residential Care
Cambridgeshire County Council,28-Nov-19,51301250713,"-1,328.44",CARE MANAGEMENT GROUP (64-66 CARLTON),CARE ESTABLISHMENT,LD - East Locality - Cost of Care,LD - East Cambs - Special Needs,Residential Care
Cambridgeshire County Council,28-Nov-19,51301254510,"-1,328.44",CARE MANAGEMENT GROUP (64-66 CARLTON),CARE ESTABLISHMENT,LD - East Locality - Cost of Care,LD - East Cambs - Special Needs,Residential Care
Cambridgeshire County Council,28-Nov-19,51301250646,"-1,328.44",CARE MANAGEMENT GROUP (64-66 CARLTON),CARE ESTABLISHMENT,LD - East Locality - Cost of Care,LD - East Cambs - Special Needs,Residential Care
Cambridgeshire County Council,28-Nov-19,51301250647,"-1,328.44",CARE MANAGEMENT GROUP (64-66 CARLTON),CARE ESTABLISHMENT,LD - East Locality - Cost of Care,LD - East Cambs - Special Needs,Residential Care
Cambridgeshire County Council,28-Nov-19,51301250777,"-1,328.44",CARE MANAGEMENT GROUP (64-66 CARLTON),CARE ESTABLISHMENT,LD - East Locality - Cost of Care,LD - East Cambs - Special Needs,Residential Care
Cambridgeshire County Council,28-Nov-19,51301250655,"-1,328.44",CARE MANAGEMENT GROUP (64-66 CARLTON),CARE ESTABLISHMENT,LD - East Locality - Cost of Care,LD - East Cambs - Special Needs,Residential Care
Cambridgeshire County Council,28-Nov-19,51301254474,"-1,328.44",CARE MANAGEMENT GROUP (64-66 CARLTON),CARE ESTABLISHMENT,LD - East Locality - Cost of Care,LD - East Cambs - Special Needs,Residential Care
Cambridgeshire County Council,28-Nov-19,51301254536,"-1,328.44",CARE MANAGEMENT GROUP (64-66 CARLTON),CARE ESTABLISHMENT,LD - East Locality - Cost of Care,LD - East Cambs - Special Needs,Residential Care
Cambridgeshire County Council,28-Nov-19,51301254561,"-1,328.44",CARE MANAGEMENT GROUP (64-66 CARLTON),CARE ESTABLISHMENT,LD - East Locality - Cost of Care,LD - East Cambs - Special Needs,Residential Care
Cambridgeshire County Council,28-Nov-19,51301250654,"-1,328.44",CARE MANAGEMENT GROUP (64-66 CARLTON),CARE ESTABLISHMENT,LD - East Locality - Cost of Care,LD - East Cambs - Special Needs,Residential Care
Cambridgeshire County Council,28-Nov-19,51301250686,"-1,328.44",CARE MANAGEMENT GROUP (64-66 CARLTON),CARE ESTABLISHMENT,LD - East Locality - Cost of Care,LD - East Cambs - Special Needs,Residential Care
Cambridgeshire County Council,28-Nov-19,51301250668,"-1,328.44",CARE MANAGEMENT GROUP (64-66 CARLTON),CARE ESTABLISHMENT,LD - East Locality - Cost of Care,LD - East Cambs - Special Needs,Residential Care
Cambridgeshire County Council,28-Nov-19,51301250643,"-1,328.44",CARE MANAGEMENT GROUP (64-66 CARLTON),CARE ESTABLISHMENT,LD - East Locality - Cost of Care,LD - East Cambs - Special Needs,Residential Care
Cambridgeshire County Council,28-Nov-19,51301250715,"-1,328.44",CARE MANAGEMENT GROUP (64-66 CARLTON),CARE ESTABLISHMENT,LD - East Locality - Cost of Care,LD - East Cambs - Special Needs,Residential Care
Cambridgeshire County Council,28-Nov-19,51301250753,"-1,328.44",CARE MANAGEMENT GROUP (64-66 CARLTON),CARE ESTABLISHMENT,LD - East Locality - Cost of Care,LD - East Cambs - Special Needs,Residential Care
Cambridgeshire County Council,28-Nov-19,51301254532,"-1,328.44",CARE MANAGEMENT GROUP (64-66 CARLTON),CARE ESTABLISHMENT,LD - East Locality - Cost of Care,LD - East Cambs - Special Needs,Residential Care
Cambridgeshire County Council,28-Nov-19,51301254453,"-1,328.44",CARE MANAGEMENT GROUP (64-66 CARLTON),CARE ESTABLISHMENT,LD - East Locality - Cost of Care,LD - East Cambs - Special Needs,Residential Care
Cambridgeshire County Council,28-Nov-19,51301254518,"-1,328.44",CARE MANAGEMENT GROUP (64-66 CARLTON),CARE ESTABLISHMENT,LD - East Locality - Cost of Care,LD - East Cambs - Special Needs,Residential Care
Cambridgeshire County Council,28-Nov-19,51301254512,"-1,328.44",CARE MANAGEMENT GROUP (64-66 CARLTON),CARE ESTABLISHMENT,LD - East Locality - Cost of Care,LD - East Cambs - Special Needs,Residential Care
Cambridgeshire County Council,28-Nov-19,51301250779,"-1,328.44",CARE MANAGEMENT GROUP (64-66 CARLTON),CARE ESTABLISHMENT,LD - East Locality - Cost of Care,LD - East Cambs - Special Needs,Residential Care
Cambridgeshire County Council,28-Nov-19,51301250773,"-1,328.44",CARE MANAGEMENT GROUP (64-66 CARLTON),CARE ESTABLISHMENT,LD - East Locality - Cost of Care,LD - East Cambs - Special Needs,Residential Care
Cambridgeshire County Council,28-Nov-19,51301250743,"-1,328.44",CARE MANAGEMENT GROUP (64-66 CARLTON),CARE ESTABLISHMENT,LD - East Locality - Cost of Care,LD - East Cambs - Special Needs,Residential Care
Cambridgeshire County Council,28-Nov-19,51301254550,"-1,328.44",CARE MANAGEMENT GROUP (64-66 CARLTON),CARE ESTABLISHMENT,LD - East Locality - Cost of Care,LD - East Cambs - Special Needs,Residential Care
Cambridgeshire County Council,28-Nov-19,51301254483,"-1,328.44",CARE MANAGEMENT GROUP (64-66 CARLTON),CARE ESTABLISHMENT,LD - East Locality - Cost of Care,LD - East Cambs - Special Needs,Residential Care
Cambridgeshire County Council,28-Nov-19,51301254498,"-1,328.44",CARE MANAGEMENT GROUP (64-66 CARLTON),CARE ESTABLISHMENT,LD - East Locality - Cost of Care,LD - East Cambs - Special Needs,Residential Care
Cambridgeshire County Council,28-Nov-19,51301250709,"-1,328.44",CARE MANAGEMENT GROUP (64-66 CARLTON),CARE ESTABLISHMENT,LD - East Locality - Cost of Care,LD - East Cambs - Special Needs,Residential Care
Cambridgeshire County Council,28-Nov-19,51301250682,"-1,328.44",CARE MANAGEMENT GROUP (64-66 CARLTON),CARE ESTABLISHMENT,LD - East Locality - Cost of Care,LD - East Cambs - Special Needs,Residential Care
Cambridgeshire County Council,28-Nov-19,51301250683,"-1,328.44",CARE MANAGEMENT GROUP (64-66 CARLTON),CARE ESTABLISHMENT,LD - East Locality - Cost of Care,LD - East Cambs - Special Needs,Residential Care
Cambridgeshire County Council,28-Nov-19,51301254534,"-1,328.44",CARE MANAGEMENT GROUP (64-66 CARLTON),CARE ESTABLISHMENT,LD - East Locality - Cost of Care,LD - East Cambs - Special Needs,Residential Care
Cambridgeshire County Council,28-Nov-19,51301250737,"-1,328.44",CARE MANAGEMENT GROUP (64-66 CARLTON),CARE ESTABLISHMENT,LD - East Locality - Cost of Care,LD - East Cambs - Special Needs,Residential Care
Cambridgeshire County Council,28-Nov-19,51301254450,"-1,328.44",CARE MANAGEMENT GROUP (64-66 CARLTON),CARE ESTABLISHMENT,LD - East Locality - Cost of Care,LD - East Cambs - Special Needs,Residential Care
Cambridgeshire County Council,28-Nov-19,51301250687,"-1,328.44",CARE MANAGEMENT GROUP (64-66 CARLTON),CARE ESTABLISHMENT,LD - East Locality - Cost of Care,LD - East Cambs - Special Needs,Residential Care
Cambridgeshire County Council,28-Nov-19,51301254544,"-1,328.44",CARE MANAGEMENT GROUP (64-66 CARLTON),CARE ESTABLISHMENT,LD - East Locality - Cost of Care,LD - East Cambs - Special Needs,Residential Care
Cambridgeshire County Council,28-Nov-19,51301250781,"-1,328.44",CARE MANAGEMENT GROUP (64-66 CARLTON),CARE ESTABLISHMENT,LD - East Locality - Cost of Care,LD - East Cambs - Special Needs,Residential Care
Cambridgeshire County Council,28-Nov-19,51301250642,"-1,328.44",CARE MANAGEMENT GROUP (64-66 CARLTON),CARE ESTABLISHMENT,LD - East Locality - Cost of Care,LD - East Cambs - Special Needs,Residential Care
Cambridgeshire County Council,28-Nov-19,51301250705,"-1,328.44",CARE MANAGEMENT GROUP (64-66 CARLTON),CARE ESTABLISHMENT,LD - East Locality - Cost of Care,LD - East Cambs - Special Needs,Residential Care
Cambridgeshire County Council,28-Nov-19,51301254511,"-1,328.44",CARE MANAGEMENT GROUP (64-66 CARLTON),CARE ESTABLISHMENT,LD - East Locality - Cost of Care,LD - East Cambs - Special Needs,Residential Care
Cambridgeshire County Council,28-Nov-19,51301254429,"-1,328.44",CARE MANAGEMENT GROUP (64-66 CARLTON),CARE ESTABLISHMENT,LD - East Locality - Cost of Care,LD - East Cambs - Special Needs,Residential Care
Cambridgeshire County Council,28-Nov-19,51301254526,"-1,328.44",CARE MANAGEMENT GROUP (64-66 CARLTON),CARE ESTABLISHMENT,LD - East Locality - Cost of Care,LD - East Cambs - Special Needs,Residential Care
Cambridgeshire County Council,28-Nov-19,51301250651,"-1,328.44",CARE MANAGEMENT GROUP (64-66 CARLTON),CARE ESTABLISHMENT,LD - East Locality - Cost of Care,LD - East Cambs - Special Needs,Residential Care
Cambridgeshire County Council,28-Nov-19,51301254521,"-1,328.44",CARE MANAGEMENT GROUP (64-66 CARLTON),CARE ESTABLISHMENT,LD - East Locality - Cost of Care,LD - East Cambs - Special Needs,Residential Care
Cambridgeshire County Council,28-Nov-19,51301254482,"-1,328.44",CARE MANAGEMENT GROUP (64-66 CARLTON),CARE ESTABLISHMENT,LD - East Locality - Cost of Care,LD - East Cambs - Special Needs,Residential Care
Cambridgeshire County Council,28-Nov-19,51301250757,"-1,328.44",CARE MANAGEMENT GROUP (64-66 CARLTON),CARE ESTABLISHMENT,LD - East Locality - Cost of Care,LD - East Cambs - Special Needs,Residential Care
Cambridgeshire County Council,28-Nov-19,51301254570,"-1,328.44",CARE MANAGEMENT GROUP (64-66 CARLTON),CARE ESTABLISHMENT,LD - East Locality - Cost of Care,LD - East Cambs - Special Needs,Residential Care
Cambridgeshire County Council,28-Nov-19,51301254434,"-1,328.44",CARE MANAGEMENT GROUP (64-66 CARLTON),CARE ESTABLISHMENT,LD - East Locality - Cost of Care,LD - East Cambs - Special Needs,Residential Care
Cambridgeshire County Council,28-Nov-19,51301254490,"-1,328.44",CARE MANAGEMENT GROUP (64-66 CARLTON),CARE ESTABLISHMENT,LD - East Locality - Cost of Care,LD - East Cambs - Special Needs,Residential Care
Cambridgeshire County Council,28-Nov-19,51301250675,"-1,328.44",CARE MANAGEMENT GROUP (64-66 CARLTON),CARE ESTABLISHMENT,LD - East Locality - Cost of Care,LD - East Cambs - Special Needs,Residential Care
Cambridgeshire County Council,28-Nov-19,51301250748,"-1,328.44",CARE MANAGEMENT GROUP (64-66 CARLTON),CARE ESTABLISHMENT,LD - East Locality - Cost of Care,LD - East Cambs - Special Needs,Residential Care
Cambridgeshire County Council,28-Nov-19,51301250673,"-1,328.44",CARE MANAGEMENT GROUP (64-66 CARLTON),CARE ESTABLISHMENT,LD - East Locality - Cost of Care,LD - East Cambs - Special Needs,Residential Care
Cambridgeshire County Council,28-Nov-19,51301254565,"-1,328.44",CARE MANAGEMENT GROUP (64-66 CARLTON),CARE ESTABLISHMENT,LD - East Locality - Cost of Care,LD - East Cambs - Special Needs,Residential Care
Cambridgeshire County Council,28-Nov-19,51301254452,"-1,328.44",CARE MANAGEMENT GROUP (64-66 CARLTON),CARE ESTABLISHMENT,LD - East Locality - Cost of Care,LD - East Cambs - Special Needs,Residential Care
Cambridgeshire County Council,28-Nov-19,51301250691,"-1,328.44",CARE MANAGEMENT GROUP (64-66 CARLTON),CARE ESTABLISHMENT,LD - East Locality - Cost of Care,LD - East Cambs - Special Needs,Residential Care
Cambridgeshire County Council,28-Nov-19,51301250699,"-1,328.44",CARE MANAGEMENT GROUP (64-66 CARLTON),CARE ESTABLISHMENT,LD - East Locality - Cost of Care,LD - East Cambs - Special Needs,Residential Care
Cambridgeshire County Council,28-Nov-19,51301254533,"-1,328.44",CARE MANAGEMENT GROUP (64-66 CARLTON),CARE ESTABLISHMENT,LD - East Locality - Cost of Care,LD - East Cambs - Special Needs,Residential Care
Cambridgeshire County Council,28-Nov-19,51301250671,"-1,328.44",CARE MANAGEMENT GROUP (64-66 CARLTON),CARE ESTABLISHMENT,LD - East Locality - Cost of Care,LD - East Cambs - Special Needs,Residential Care
Cambridgeshire County Council,28-Nov-19,51301254477,"-1,328.44",CARE MANAGEMENT GROUP (64-66 CARLTON),CARE ESTABLISHMENT,LD - East Locality - Cost of Care,LD - East Cambs - Special Needs,Residential Care
Cambridgeshire County Council,28-Nov-19,51301250717,"-1,328.44",CARE MANAGEMENT GROUP (64-66 CARLTON),CARE ESTABLISHMENT,LD - East Locality - Cost of Care,LD - East Cambs - Special Needs,Residential Care
Cambridgeshire County Council,28-Nov-19,51301254481,"-1,328.44",CARE MANAGEMENT GROUP (64-66 CARLTON),CARE ESTABLISHMENT,LD - East Locality - Cost of Care,LD - East Cambs - Special Needs,Residential Care
Cambridgeshire County Council,28-Nov-19,51301254428,"-1,328.44",CARE MANAGEMENT GROUP (64-66 CARLTON),CARE ESTABLISHMENT,LD - East Locality - Cost of Care,LD - East Cambs - Special Needs,Residential Care
Cambridgeshire County Council,28-Nov-19,51301250711,"-1,328.44",CARE MANAGEMENT GROUP (64-66 CARLTON),CARE ESTABLISHMENT,LD - East Locality - Cost of Care,LD - East Cambs - Special Needs,Residential Care
Cambridgeshire County Council,28-Nov-19,51301250649,"-1,328.44",CARE MANAGEMENT GROUP (64-66 CARLTON),CARE ESTABLISHMENT,LD - East Locality - Cost of Care,LD - East Cambs - Special Needs,Residential Care
Cambridgeshire County Council,28-Nov-19,51301250663,"-1,328.44",CARE MANAGEMENT GROUP (64-66 CARLTON),CARE ESTABLISHMENT,LD - East Locality - Cost of Care,LD - East Cambs - Special Needs,Residential Care
Cambridgeshire County Council,28-Nov-19,51301254503,"-1,328.44",CARE MANAGEMENT GROUP (64-66 CARLTON),CARE ESTABLISHMENT,LD - East Locality - Cost of Care,LD - East Cambs - Special Needs,Residential Care
Cambridgeshire County Council,28-Nov-19,51301250721,"-1,328.44",CARE MANAGEMENT GROUP (64-66 CARLTON),CARE ESTABLISHMENT,LD - East Locality - Cost of Care,LD - East Cambs - Special Needs,Residential Care
Cambridgeshire County Council,28-Nov-19,51301250657,"-1,328.44",CARE MANAGEMENT GROUP (64-66 CARLTON),CARE ESTABLISHMENT,LD - East Locality - Cost of Care,LD - East Cambs - Special Needs,Residential Care
Cambridgeshire County Council,28-Nov-19,51301250703,"-1,328.44",CARE MANAGEMENT GROUP (64-66 CARLTON),CARE ESTABLISHMENT,LD - East Locality - Cost of Care,LD - East Cambs - Special Needs,Residential Care
Cambridgeshire County Council,28-Nov-19,51301254487,"-1,328.44",CARE MANAGEMENT GROUP (64-66 CARLTON),CARE ESTABLISHMENT,LD - East Locality - Cost of Care,LD - East Cambs - Special Needs,Residential Care
Cambridgeshire County Council,28-Nov-19,51301254522,"-1,328.44",CARE MANAGEMENT GROUP (64-66 CARLTON),CARE ESTABLISHMENT,LD - East Locality - Cost of Care,LD - East Cambs - Special Needs,Residential Care
Cambridgeshire County Council,28-Nov-19,51301250745,"-1,328.44",CARE MANAGEMENT GROUP (64-66 CARLTON),CARE ESTABLISHMENT,LD - East Locality - Cost of Care,LD - East Cambs - Special Needs,Residential Care
Cambridgeshire County Council,28-Nov-19,51301254463,"-1,328.44",CARE MANAGEMENT GROUP (64-66 CARLTON),CARE ESTABLISHMENT,LD - East Locality - Cost of Care,LD - East Cambs - Special Needs,Residential Care
Cambridgeshire County Council,28-Nov-19,51301254542,"-1,328.44",CARE MANAGEMENT GROUP (64-66 CARLTON),CARE ESTABLISHMENT,LD - East Locality - Cost of Care,LD - East Cambs - Special Needs,Residential Care
Cambridgeshire County Council,28-Nov-19,51301254562,"-1,328.44",CARE MANAGEMENT GROUP (64-66 CARLTON),CARE ESTABLISHMENT,LD - East Locality - Cost of Care,LD - East Cambs - Special Needs,Residential Care
Cambridgeshire County Council,28-Nov-19,51301250700,"-1,328.44",CARE MANAGEMENT GROUP (64-66 CARLTON),CARE ESTABLISHMENT,LD - East Locality - Cost of Care,LD - East Cambs - Special Needs,Residential Care
Cambridgeshire County Council,28-Nov-19,51301254426,"-1,328.44",CARE MANAGEMENT GROUP (64-66 CARLTON),CARE ESTABLISHMENT,LD - East Locality - Cost of Care,LD - East Cambs - Special Needs,Residential Care
Cambridgeshire County Council,28-Nov-19,51301254467,"-1,328.44",CARE MANAGEMENT GROUP (64-66 CARLTON),CARE ESTABLISHMENT,LD - East Locality - Cost of Care,LD - East Cambs - Special Needs,Residential Care
Cambridgeshire County Council,28-Nov-19,51301250733,"-1,328.44",CARE MANAGEMENT GROUP (64-66 CARLTON),CARE ESTABLISHMENT,LD - East Locality - Cost of Care,LD - East Cambs - Special Needs,Residential Care
Cambridgeshire County Council,28-Nov-19,51301250751,"-1,328.44",CARE MANAGEMENT GROUP (64-66 CARLTON),CARE ESTABLISHMENT,LD - East Locality - Cost of Care,LD - East Cambs - Special Needs,Residential Care
Cambridgeshire County Council,28-Nov-19,51301250714,"-1,328.44",CARE MANAGEMENT GROUP (64-66 CARLTON),CARE ESTABLISHMENT,LD - East Locality - Cost of Care,LD - East Cambs - Special Needs,Residential Care
Cambridgeshire County Council,28-Nov-19,51301254442,"-1,328.44",CARE MANAGEMENT GROUP (64-66 CARLTON),CARE ESTABLISHMENT,LD - East Locality - Cost of Care,LD - East Cambs - Special Needs,Residential Care
Cambridgeshire County Council,28-Nov-19,51301254572,"-1,328.44",CARE MANAGEMENT GROUP (64-66 CARLTON),CARE ESTABLISHMENT,LD - East Locality - Cost of Care,LD - East Cambs - Special Needs,Residential Care
Cambridgeshire County Council,28-Nov-19,51301254567,"-1,328.44",CARE MANAGEMENT GROUP (64-66 CARLTON),CARE ESTABLISHMENT,LD - East Locality - Cost of Care,LD - East Cambs - Special Needs,Residential Care
Cambridgeshire County Council,28-Nov-19,51301250735,"-1,328.44",CARE MANAGEMENT GROUP (64-66 CARLTON),CARE ESTABLISHMENT,LD - East Locality - Cost of Care,LD - East Cambs - Special Needs,Residential Care
Cambridgeshire County Council,28-Nov-19,51301254444,"-1,328.44",CARE MANAGEMENT GROUP (64-66 CARLTON),CARE ESTABLISHMENT,LD - East Locality - Cost of Care,LD - East Cambs - Special Needs,Residential Care
Cambridgeshire County Council,28-Nov-19,51301250766,"-1,328.44",CARE MANAGEMENT GROUP (64-66 CARLTON),CARE ESTABLISHMENT,LD - East Locality - Cost of Care,LD - East Cambs - Special Needs,Residential Care
Cambridgeshire County Council,28-Nov-19,51301250697,"-1,328.44",CARE MANAGEMENT GROUP (64-66 CARLTON),CARE ESTABLISHMENT,LD - East Locality - Cost of Care,LD - East Cambs - Special Needs,Residential Care
Cambridgeshire County Council,28-Nov-19,51301250678,"-1,328.44",CARE MANAGEMENT GROUP (64-66 CARLTON),CARE ESTABLISHMENT,LD - East Locality - Cost of Care,LD - East Cambs - Special Needs,Residential Care
Cambridgeshire County Council,28-Nov-19,51301250679,"-1,328.44",CARE MANAGEMENT GROUP (64-66 CARLTON),CARE ESTABLISHMENT,LD - East Locality - Cost of Care,LD - East Cambs - Special Needs,Residential Care
Cambridgeshire County Council,28-Nov-19,51301254476,"-1,328.44",CARE MANAGEMENT GROUP (64-66 CARLTON),CARE ESTABLISHMENT,LD - East Locality - Cost of Care,LD - East Cambs - Special Needs,Residential Care
Cambridgeshire County Council,28-Nov-19,51301250746,"-1,328.44",CARE MANAGEMENT GROUP (64-66 CARLTON),CARE ESTABLISHMENT,LD - East Locality - Cost of Care,LD - East Cambs - Special Needs,Residential Care
Cambridgeshire County Council,28-Nov-19,51301254448,"-1,328.44",CARE MANAGEMENT GROUP (64-66 CARLTON),CARE ESTABLISHMENT,LD - East Locality - Cost of Care,LD - East Cambs - Special Needs,Residential Care
Cambridgeshire County Council,28-Nov-19,51301254438,"-1,328.44",CARE MANAGEMENT GROUP (64-66 CARLTON),CARE ESTABLISHMENT,LD - East Locality - Cost of Care,LD - East Cambs - Special Needs,Residential Care
Cambridgeshire County Council,28-Nov-19,51301254457,"-1,328.44",CARE MANAGEMENT GROUP (64-66 CARLTON),CARE ESTABLISHMENT,LD - East Locality - Cost of Care,LD - East Cambs - Special Needs,Residential Care
Cambridgeshire County Council,28-Nov-19,51301250770,"-1,328.44",CARE MANAGEMENT GROUP (64-66 CARLTON),CARE ESTABLISHMENT,LD - East Locality - Cost of Care,LD - East Cambs - Special Needs,Residential Care
Cambridgeshire County Council,28-Nov-19,51301254545,"-1,328.44",CARE MANAGEMENT GROUP (64-66 CARLTON),CARE ESTABLISHMENT,LD - East Locality - Cost of Care,LD - East Cambs - Special Needs,Residential Care
Cambridgeshire County Council,28-Nov-19,51301250728,"-1,328.44",CARE MANAGEMENT GROUP (64-66 CARLTON),CARE ESTABLISHMENT,LD - East Locality - Cost of Care,LD - East Cambs - Special Needs,Residential Care
Cambridgeshire County Council,28-Nov-19,51301254454,"-1,328.44",CARE MANAGEMENT GROUP (64-66 CARLTON),CARE ESTABLISHMENT,LD - East Locality - Cost of Care,LD - East Cambs - Special Needs,Residential Care
Cambridgeshire County Council,28-Nov-19,51301250775,"-1,328.44",CARE MANAGEMENT GROUP (64-66 CARLTON),CARE ESTABLISHMENT,LD - East Locality - Cost of Care,LD - East Cambs - Special Needs,Residential Care
Cambridgeshire County Council,28-Nov-19,51301250680,"-1,328.44",CARE MANAGEMENT GROUP (64-66 CARLTON),CARE ESTABLISHMENT,LD - East Locality - Cost of Care,LD - East Cambs - Special Needs,Residential Care
Cambridgeshire County Council,28-Nov-19,51301254573,"-1,328.44",CARE MANAGEMENT GROUP (64-66 CARLTON),CARE ESTABLISHMENT,LD - East Locality - Cost of Care,LD - East Cambs - Special Needs,Residential Care
Cambridgeshire County Council,28-Nov-19,51301254478,"-1,328.44",CARE MANAGEMENT GROUP (64-66 CARLTON),CARE ESTABLISHMENT,LD - East Locality - Cost of Care,LD - East Cambs - Special Needs,Residential Care
Cambridgeshire County Council,28-Nov-19,51301250652,"-1,328.44",CARE MANAGEMENT GROUP (64-66 CARLTON),CARE ESTABLISHMENT,LD - East Locality - Cost of Care,LD - East Cambs - Special Needs,Residential Care
Cambridgeshire County Council,28-Nov-19,51301254465,"-1,328.44",CARE MANAGEMENT GROUP (64-66 CARLTON),CARE ESTABLISHMENT,LD - East Locality - Cost of Care,LD - East Cambs - Special Needs,Residential Care
Cambridgeshire County Council,28-Nov-19,51301250755,"-1,328.44",CARE MANAGEMENT GROUP (64-66 CARLTON),CARE ESTABLISHMENT,LD - East Locality - Cost of Care,LD - East Cambs - Special Needs,Residential Care
Cambridgeshire County Council,28-Nov-19,51301250660,"-1,328.44",CARE MANAGEMENT GROUP (64-66 CARLTON),CARE ESTABLISHMENT,LD - East Locality - Cost of Care,LD - East Cambs - Special Needs,Residential Care
Cambridgeshire County Council,28-Nov-19,51301250636,"-1,328.44",CARE MANAGEMENT GROUP (64-66 CARLTON),CARE ESTABLISHMENT,LD - East Locality - Cost of Care,LD - East Cambs - Special Needs,Residential Care
Cambridgeshire County Council,28-Nov-19,51301254456,"-1,328.44",CARE MANAGEMENT GROUP (64-66 CARLTON),CARE ESTABLISHMENT,LD - East Locality - Cost of Care,LD - East Cambs - Special Needs,Residential Care
Cambridgeshire County Council,28-Nov-19,51301254551,"-1,328.44",CARE MANAGEMENT GROUP (64-66 CARLTON),CARE ESTABLISHMENT,LD - East Locality - Cost of Care,LD - East Cambs - Special Needs,Residential Care
Cambridgeshire County Council,28-Nov-19,51301254514,"-1,328.44",CARE MANAGEMENT GROUP (64-66 CARLTON),CARE ESTABLISHMENT,LD - East Locality - Cost of Care,LD - East Cambs - Special Needs,Residential Care
Cambridgeshire County Council,28-Nov-19,51301254473,"-1,328.44",CARE MANAGEMENT GROUP (64-66 CARLTON),CARE ESTABLISHMENT,LD - East Locality - Cost of Care,LD - East Cambs - Special Needs,Residential Care
Cambridgeshire County Council,28-Nov-19,51301254506,"-1,328.44",CARE MANAGEMENT GROUP (64-66 CARLTON),CARE ESTABLISHMENT,LD - East Locality - Cost of Care,LD - East Cambs - Special Needs,Residential Care
Cambridgeshire County Council,28-Nov-19,51301254563,"-1,328.44",CARE MANAGEMENT GROUP (64-66 CARLTON),CARE ESTABLISHMENT,LD - East Locality - Cost of Care,LD - East Cambs - Special Needs,Residential Care
Cambridgeshire County Council,28-Nov-19,51301254569,"-1,328.44",CARE MANAGEMENT GROUP (64-66 CARLTON),CARE ESTABLISHMENT,LD - East Locality - Cost of Care,LD - East Cambs - Special Needs,Residential Care
Cambridgeshire County Council,28-Nov-19,51301254447,"-1,328.44",CARE MANAGEMENT GROUP (64-66 CARLTON),CARE ESTABLISHMENT,LD - East Locality - Cost of Care,LD - East Cambs - Special Needs,Residential Care
Cambridgeshire County Council,28-Nov-19,51301250724,"-1,328.44",CARE MANAGEMENT GROUP (64-66 CARLTON),CARE ESTABLISHMENT,LD - East Locality - Cost of Care,LD - East Cambs - Special Needs,Residential Care
Cambridgeshire County Council,28-Nov-19,51301254439,"-1,328.44",CARE MANAGEMENT GROUP (64-66 CARLTON),CARE ESTABLISHMENT,LD - East Locality - Cost of Care,LD - East Cambs - Special Needs,Residential Care
Cambridgeshire County Council,28-Nov-19,51301250698,"-1,328.44",CARE MANAGEMENT GROUP (64-66 CARLTON),CARE ESTABLISHMENT,LD - East Locality - Cost of Care,LD - East Cambs - Special Needs,Residential Care
Cambridgeshire County Council,28-Nov-19,51301254508,"-1,328.44",CARE MANAGEMENT GROUP (64-66 CARLTON),CARE ESTABLISHMENT,LD - East Locality - Cost of Care,LD - East Cambs - Special Needs,Residential Care
Cambridgeshire County Council,28-Nov-19,51301254446,"-1,328.44",CARE MANAGEMENT GROUP (64-66 CARLTON),CARE ESTABLISHMENT,LD - East Locality - Cost of Care,LD - East Cambs - Special Needs,Residential Care
Cambridgeshire County Council,28-Nov-19,51301250719,"-1,328.44",CARE MANAGEMENT GROUP (64-66 CARLTON),CARE ESTABLISHMENT,LD - East Locality - Cost of Care,LD - East Cambs - Special Needs,Residential Care
Cambridgeshire County Council,28-Nov-19,51301250638,"-1,328.44",CARE MANAGEMENT GROUP (64-66 CARLTON),CARE ESTABLISHMENT,LD - East Locality - Cost of Care,LD - East Cambs - Special Needs,Residential Care
Cambridgeshire County Council,28-Nov-19,51301250692,"-1,328.44",CARE MANAGEMENT GROUP (64-66 CARLTON),CARE ESTABLISHMENT,LD - East Locality - Cost of Care,LD - East Cambs - Special Needs,Residential Care
Cambridgeshire County Council,28-Nov-19,51301254556,"-1,328.44",CARE MANAGEMENT GROUP (64-66 CARLTON),CARE ESTABLISHMENT,LD - East Locality - Cost of Care,LD - East Cambs - Special Needs,Residential Care
Cambridgeshire County Council,28-Nov-19,51301254504,"-1,328.44",CARE MANAGEMENT GROUP (64-66 CARLTON),CARE ESTABLISHMENT,LD - East Locality - Cost of Care,LD - East Cambs - Special Needs,Residential Care
Cambridgeshire County Council,28-Nov-19,51301254494,"-1,328.44",CARE MANAGEMENT GROUP (64-66 CARLTON),CARE ESTABLISHMENT,LD - East Locality - Cost of Care,LD - East Cambs - Special Needs,Residential Care
Cambridgeshire County Council,28-Nov-19,51301250659,"-1,328.44",CARE MANAGEMENT GROUP (64-66 CARLTON),CARE ESTABLISHMENT,LD - East Locality - Cost of Care,LD - East Cambs - Special Needs,Residential Care
Cambridgeshire County Council,28-Nov-19,51301250635,"-1,328.44",CARE MANAGEMENT GROUP (64-66 CARLTON),CARE ESTABLISHMENT,LD - East Locality - Cost of Care,LD - East Cambs - Special Needs,Residential Care
Cambridgeshire County Council,28-Nov-19,51301250759,"-1,328.44",CARE MANAGEMENT GROUP (64-66 CARLTON),CARE ESTABLISHMENT,LD - East Locality - Cost of Care,LD - East Cambs - Special Needs,Residential Care
Cambridgeshire County Council,28-Nov-19,51301254560,"-1,328.44",CARE MANAGEMENT GROUP (64-66 CARLTON),CARE ESTABLISHMENT,LD - East Locality - Cost of Care,LD - East Cambs - Special Needs,Residential Care
Cambridgeshire County Council,28-Nov-19,51301254451,"-1,328.44",CARE MANAGEMENT GROUP (64-66 CARLTON),CARE ESTABLISHMENT,LD - East Locality - Cost of Care,LD - East Cambs - Special Needs,Residential Care
Cambridgeshire County Council,28-Nov-19,51301254437,"-1,328.44",CARE MANAGEMENT GROUP (64-66 CARLTON),CARE ESTABLISHMENT,LD - East Locality - Cost of Care,LD - East Cambs - Special Needs,Residential Care
Cambridgeshire County Council,28-Nov-19,51301254472,"-1,328.44",CARE MANAGEMENT GROUP (64-66 CARLTON),CARE ESTABLISHMENT,LD - East Locality - Cost of Care,LD - East Cambs - Special Needs,Residential Care
Cambridgeshire County Council,28-Nov-19,51301254548,"-1,328.44",CARE MANAGEMENT GROUP (64-66 CARLTON),CARE ESTABLISHMENT,LD - East Locality - Cost of Care,LD - East Cambs - Special Needs,Residential Care
Cambridgeshire County Council,28-Nov-19,51301254480,"-1,328.44",CARE MANAGEMENT GROUP (64-66 CARLTON),CARE ESTABLISHMENT,LD - East Locality - Cost of Care,LD - East Cambs - Special Needs,Residential Care
Cambridgeshire County Council,28-Nov-19,51301250720,"-1,328.44",CARE MANAGEMENT GROUP (64-66 CARLTON),CARE ESTABLISHMENT,LD - East Locality - Cost of Care,LD - East Cambs - Special Needs,Residential Care
Cambridgeshire County Council,08-Nov-19,51301252910,"-1,317.11",ALDERTON HOUSE,CARE ESTABLISHMENT,LD - East Locality - Cost of Care,LD - East Cambs - Special Needs,Residential Care
Cambridgeshire County Council,08-Nov-19,51301252955,"-1,317.11",ALDERTON HOUSE,CARE ESTABLISHMENT,LD - East Locality - Cost of Care,LD - East Cambs - Special Needs,Residential Care
Cambridgeshire County Council,08-Nov-19,51301248909,"-1,317.11",ALDERTON HOUSE,CARE ESTABLISHMENT,LD - East Locality - Cost of Care,LD - East Cambs - Special Needs,Residential Care
Cambridgeshire County Council,08-Nov-19,51301248829,"-1,317.11",ALDERTON HOUSE,CARE ESTABLISHMENT,LD - East Locality - Cost of Care,LD - East Cambs - Special Needs,Residential Care
Cambridgeshire County Council,08-Nov-19,51301252907,"-1,317.11",ALDERTON HOUSE,CARE ESTABLISHMENT,LD - East Locality - Cost of Care,LD - East Cambs - Special Needs,Residential Care
Cambridgeshire County Council,08-Nov-19,51301252916,"-1,317.11",ALDERTON HOUSE,CARE ESTABLISHMENT,LD - East Locality - Cost of Care,LD - East Cambs - Special Needs,Residential Care
Cambridgeshire County Council,08-Nov-19,51301252917,"-1,317.11",ALDERTON HOUSE,CARE ESTABLISHMENT,LD - East Locality - Cost of Care,LD - East Cambs - Special Needs,Residential Care
Cambridgeshire County Council,08-Nov-19,51301248860,"-1,317.11",ALDERTON HOUSE,CARE ESTABLISHMENT,LD - East Locality - Cost of Care,LD - East Cambs - Special Needs,Residential Care
Cambridgeshire County Council,08-Nov-19,51301248936,"-1,317.11",ALDERTON HOUSE,CARE ESTABLISHMENT,LD - East Locality - Cost of Care,LD - East Cambs - Special Needs,Residential Care
Cambridgeshire County Council,08-Nov-19,51301252985,"-1,317.11",ALDERTON HOUSE,CARE ESTABLISHMENT,LD - East Locality - Cost of Care,LD - East Cambs - Special Needs,Residential Care
Cambridgeshire County Council,08-Nov-19,51301248955,"-1,317.11",ALDERTON HOUSE,CARE ESTABLISHMENT,LD - East Locality - Cost of Care,LD - East Cambs - Special Needs,Residential Care
Cambridgeshire County Council,08-Nov-19,51301248856,"-1,317.11",ALDERTON HOUSE,CARE ESTABLISHMENT,LD - East Locality - Cost of Care,LD - East Cambs - Special Needs,Residential Care
Cambridgeshire County Council,08-Nov-19,51301248893,"-1,317.11",ALDERTON HOUSE,CARE ESTABLISHMENT,LD - East Locality - Cost of Care,LD - East Cambs - Special Needs,Residential Care
Cambridgeshire County Council,08-Nov-19,51301248920,"-1,317.11",ALDERTON HOUSE,CARE ESTABLISHMENT,LD - East Locality - Cost of Care,LD - East Cambs - Special Needs,Residential Care
Cambridgeshire County Council,08-Nov-19,51301252913,"-1,317.11",ALDERTON HOUSE,CARE ESTABLISHMENT,LD - East Locality - Cost of Care,LD - East Cambs - Special Needs,Residential Care
Cambridgeshire County Council,08-Nov-19,51301252951,"-1,317.11",ALDERTON HOUSE,CARE ESTABLISHMENT,LD - East Locality - Cost of Care,LD - East Cambs - Special Needs,Residential Care
Cambridgeshire County Council,08-Nov-19,51301252997,"-1,317.11",ALDERTON HOUSE,CARE ESTABLISHMENT,LD - East Locality - Cost of Care,LD - East Cambs - Special Needs,Residential Care
Cambridgeshire County Council,08-Nov-19,51301248863,"-1,317.11",ALDERTON HOUSE,CARE ESTABLISHMENT,LD - East Locality - Cost of Care,LD - East Cambs - Special Needs,Residential Care
Cambridgeshire County Council,08-Nov-19,51301248958,"-1,317.11",ALDERTON HOUSE,CARE ESTABLISHMENT,LD - East Locality - Cost of Care,LD - East Cambs - Special Needs,Residential Care
Cambridgeshire County Council,08-Nov-19,51301252892,"-1,317.11",ALDERTON HOUSE,CARE ESTABLISHMENT,LD - East Locality - Cost of Care,LD - East Cambs - Special Needs,Residential Care
Cambridgeshire County Council,08-Nov-19,51301248922,"-1,317.11",ALDERTON HOUSE,CARE ESTABLISHMENT,LD - East Locality - Cost of Care,LD - East Cambs - Special Needs,Residential Care
Cambridgeshire County Council,08-Nov-19,51301248941,"-1,317.11",ALDERTON HOUSE,CARE ESTABLISHMENT,LD - East Locality - Cost of Care,LD - East Cambs - Special Needs,Residential Care
Cambridgeshire County Council,08-Nov-19,51301248940,"-1,317.11",ALDERTON HOUSE,CARE ESTABLISHMENT,LD - East Locality - Cost of Care,LD - East Cambs - Special Needs,Residential Care
Cambridgeshire County Council,08-Nov-19,51301248823,"-1,317.11",ALDERTON HOUSE,CARE ESTABLISHMENT,LD - East Locality - Cost of Care,LD - East Cambs - Special Needs,Residential Care
Cambridgeshire County Council,08-Nov-19,51301248904,"-1,317.11",ALDERTON HOUSE,CARE ESTABLISHMENT,LD - East Locality - Cost of Care,LD - East Cambs - Special Needs,Residential Care
Cambridgeshire County Council,08-Nov-19,51301252939,"-1,317.11",ALDERTON HOUSE,CARE ESTABLISHMENT,LD - East Locality - Cost of Care,LD - East Cambs - Special Needs,Residential Care
Cambridgeshire County Council,08-Nov-19,51301248888,"-1,317.11",ALDERTON HOUSE,CARE ESTABLISHMENT,LD - East Locality - Cost of Care,LD - East Cambs - Special Needs,Residential Care
Cambridgeshire County Council,08-Nov-19,51301248927,"-1,317.11",ALDERTON HOUSE,CARE ESTABLISHMENT,LD - East Locality - Cost of Care,LD - East Cambs - Special Needs,Residential Care
Cambridgeshire County Council,08-Nov-19,51301252944,"-1,317.11",ALDERTON HOUSE,CARE ESTABLISHMENT,LD - East Locality - Cost of Care,LD - East Cambs - Special Needs,Residential Care
Cambridgeshire County Council,08-Nov-19,51301252966,"-1,317.11",ALDERTON HOUSE,CARE ESTABLISHMENT,LD - East Locality - Cost of Care,LD - East Cambs - Special Needs,Residential Care
Cambridgeshire County Council,08-Nov-19,51301252973,"-1,317.11",ALDERTON HOUSE,CARE ESTABLISHMENT,LD - East Locality - Cost of Care,LD - East Cambs - Special Needs,Residential Care
Cambridgeshire County Council,08-Nov-19,51301252980,"-1,317.11",ALDERTON HOUSE,CARE ESTABLISHMENT,LD - East Locality - Cost of Care,LD - East Cambs - Special Needs,Residential Care
Cambridgeshire County Council,08-Nov-19,51301252902,"-1,317.11",ALDERTON HOUSE,CARE ESTABLISHMENT,LD - East Locality - Cost of Care,LD - East Cambs - Special Needs,Residential Care
Cambridgeshire County Council,08-Nov-19,51301252994,"-1,317.11",ALDERTON HOUSE,CARE ESTABLISHMENT,LD - East Locality - Cost of Care,LD - East Cambs - Special Needs,Residential Care
Cambridgeshire County Council,08-Nov-19,51301248846,"-1,317.11",ALDERTON HOUSE,CARE ESTABLISHMENT,LD - East Locality - Cost of Care,LD - East Cambs - Special Needs,Residential Care
Cambridgeshire County Council,08-Nov-19,51301248924,"-1,317.11",ALDERTON HOUSE,CARE ESTABLISHMENT,LD - East Locality - Cost of Care,LD - East Cambs - Special Needs,Residential Care
Cambridgeshire County Council,08-Nov-19,51301253009,"-1,317.11",ALDERTON HOUSE,CARE ESTABLISHMENT,LD - East Locality - Cost of Care,LD - East Cambs - Special Needs,Residential Care
Cambridgeshire County Council,08-Nov-19,51301248898,"-1,317.11",ALDERTON HOUSE,CARE ESTABLISHMENT,LD - East Locality - Cost of Care,LD - East Cambs - Special Needs,Residential Care
Cambridgeshire County Council,08-Nov-19,51301248879,"-1,317.11",ALDERTON HOUSE,CARE ESTABLISHMENT,LD - East Locality - Cost of Care,LD - East Cambs - Special Needs,Residential Care
Cambridgeshire County Council,08-Nov-19,51301248949,"-1,317.11",ALDERTON HOUSE,CARE ESTABLISHMENT,LD - East Locality - Cost of Care,LD - East Cambs - Special Needs,Residential Care
Cambridgeshire County Council,08-Nov-19,51301252903,"-1,317.11",ALDERTON HOUSE,CARE ESTABLISHMENT,LD - East Locality - Cost of Care,LD - East Cambs - Special Needs,Residential Care
Cambridgeshire County Council,08-Nov-19,51301248827,"-1,317.11",ALDERTON HOUSE,CARE ESTABLISHMENT,LD - East Locality - Cost of Care,LD - East Cambs - Special Needs,Residential Care
Cambridgeshire County Council,08-Nov-19,51301252990,"-1,317.11",ALDERTON HOUSE,CARE ESTABLISHMENT,LD - East Locality - Cost of Care,LD - East Cambs - Special Needs,Residential Care
Cambridgeshire County Council,08-Nov-19,51301252889,"-1,317.11",ALDERTON HOUSE,CARE ESTABLISHMENT,LD - East Locality - Cost of Care,LD - East Cambs - Special Needs,Residential Care
Cambridgeshire County Council,08-Nov-19,51301252914,"-1,317.11",ALDERTON HOUSE,CARE ESTABLISHMENT,LD - East Locality - Cost of Care,LD - East Cambs - Special Needs,Residential Care
Cambridgeshire County Council,08-Nov-19,51301252960,"-1,317.11",ALDERTON HOUSE,CARE ESTABLISHMENT,LD - East Locality - Cost of Care,LD - East Cambs - Special Needs,Residential Care
Cambridgeshire County Council,08-Nov-19,51301248843,"-1,317.11",ALDERTON HOUSE,CARE ESTABLISHMENT,LD - East Locality - Cost of Care,LD - East Cambs - Special Needs,Residential Care
Cambridgeshire County Council,08-Nov-19,51301248873,"-1,317.11",ALDERTON HOUSE,CARE ESTABLISHMENT,LD - East Locality - Cost of Care,LD - East Cambs - Special Needs,Residential Care
Cambridgeshire County Council,08-Nov-19,51301248852,"-1,317.11",ALDERTON HOUSE,CARE ESTABLISHMENT,LD - East Locality - Cost of Care,LD - East Cambs - Special Needs,Residential Care
Cambridgeshire County Council,08-Nov-19,51301248917,"-1,317.11",ALDERTON HOUSE,CARE ESTABLISHMENT,LD - East Locality - Cost of Care,LD - East Cambs - Special Needs,Residential Care
Cambridgeshire County Council,08-Nov-19,51301248931,"-1,317.11",ALDERTON HOUSE,CARE ESTABLISHMENT,LD - East Locality - Cost of Care,LD - East Cambs - Care,Residential Care
Cambridgeshire County Council,08-Nov-19,51301248834,"-1,317.11",ALDERTON HOUSE,CARE ESTABLISHMENT,LD - East Locality - Cost of Care,LD - East Cambs - Care,Residential Care
Cambridgeshire County Council,08-Nov-19,51301248878,"-1,317.11",ALDERTON HOUSE,CARE ESTABLISHMENT,LD - East Locality - Cost of Care,LD - East Cambs - Care,Residential Care
Cambridgeshire County Council,08-Nov-19,51301248854,"-1,317.11",ALDERTON HOUSE,CARE ESTABLISHMENT,LD - East Locality - Cost of Care,LD - East Cambs - Care,Residential Care
Cambridgeshire County Council,08-Nov-19,51301248944,"-1,317.11",ALDERTON HOUSE,CARE ESTABLISHMENT,LD - East Locality - Cost of Care,LD - East Cambs - Care,Residential Care
Cambridgeshire County Council,08-Nov-19,51301252986,"-1,317.11",ALDERTON HOUSE,CARE ESTABLISHMENT,LD - East Locality - Cost of Care,LD - East Cambs - Care,Residential Care
Cambridgeshire County Council,08-Nov-19,51301252945,"-1,317.11",ALDERTON HOUSE,CARE ESTABLISHMENT,LD - East Locality - Cost of Care,LD - East Cambs - Care,Residential Care
Cambridgeshire County Council,08-Nov-19,51301252942,"-1,317.11",ALDERTON HOUSE,CARE ESTABLISHMENT,LD - East Locality - Cost of Care,LD - East Cambs - Care,Residential Care
Cambridgeshire County Council,08-Nov-19,51301252996,"-1,317.11",ALDERTON HOUSE,CARE ESTABLISHMENT,LD - East Locality - Cost of Care,LD - East Cambs - Care,Residential Care
Cambridgeshire County Council,08-Nov-19,51301252989,"-1,317.11",ALDERTON HOUSE,CARE ESTABLISHMENT,LD - East Locality - Cost of Care,LD - East Cambs - Care,Residential Care
Cambridgeshire County Council,08-Nov-19,51301253007,"-1,317.11",ALDERTON HOUSE,CARE ESTABLISHMENT,LD - East Locality - Cost of Care,LD - East Cambs - Care,Residential Care
Cambridgeshire County Council,08-Nov-19,51301248906,"-1,317.11",ALDERTON HOUSE,CARE ESTABLISHMENT,LD - East Locality - Cost of Care,LD - East Cambs - Care,Residential Care
Cambridgeshire County Council,08-Nov-19,51301248895,"-1,317.11",ALDERTON HOUSE,CARE ESTABLISHMENT,LD - East Locality - Cost of Care,LD - East Cambs - Care,Residential Care
Cambridgeshire County Council,08-Nov-19,51301253004,"-1,317.11",ALDERTON HOUSE,CARE ESTABLISHMENT,LD - East Locality - Cost of Care,LD - East Cambs - Care,Residential Care
Cambridgeshire County Council,08-Nov-19,51301252957,"-1,317.11",ALDERTON HOUSE,CARE ESTABLISHMENT,LD - East Locality - Cost of Care,LD - East Cambs - Care,Residential Care
Cambridgeshire County Council,08-Nov-19,51301253008,"-1,317.11",ALDERTON HOUSE,CARE ESTABLISHMENT,LD - East Locality - Cost of Care,LD - East Cambs - Care,Residential Care
Cambridgeshire County Council,08-Nov-19,51301252992,"-1,317.11",ALDERTON HOUSE,CARE ESTABLISHMENT,LD - East Locality - Cost of Care,LD - East Cambs - Care,Residential Care
Cambridgeshire County Council,08-Nov-19,51301248865,"-1,317.11",ALDERTON HOUSE,CARE ESTABLISHMENT,LD - East Locality - Cost of Care,LD - East Cambs - Care,Residential Care
Cambridgeshire County Council,08-Nov-19,51301252905,"-1,317.11",ALDERTON HOUSE,CARE ESTABLISHMENT,LD - East Locality - Cost of Care,LD - East Cambs - Care,Residential Care
Cambridgeshire County Council,08-Nov-19,51301252946,"-1,317.11",ALDERTON HOUSE,CARE ESTABLISHMENT,LD - East Locality - Cost of Care,LD - East Cambs - Care,Residential Care
Cambridgeshire County Council,08-Nov-19,51301248907,"-1,317.11",ALDERTON HOUSE,CARE ESTABLISHMENT,LD - East Locality - Cost of Care,LD - East Cambs - Care,Residential Care
Cambridgeshire County Council,08-Nov-19,51301253010,"-1,317.11",ALDERTON HOUSE,CARE ESTABLISHMENT,LD - East Locality - Cost of Care,LD - East Cambs - Care,Residential Care
Cambridgeshire County Council,08-Nov-19,51301252976,"-1,317.11",ALDERTON HOUSE,CARE ESTABLISHMENT,LD - East Locality - Cost of Care,LD - East Cambs - Care,Residential Care
Cambridgeshire County Council,08-Nov-19,51301248894,"-1,317.11",ALDERTON HOUSE,CARE ESTABLISHMENT,LD - East Locality - Cost of Care,LD - East Cambs - Care,Residential Care
Cambridgeshire County Council,08-Nov-19,51301248869,"-1,317.11",ALDERTON HOUSE,CARE ESTABLISHMENT,LD - East Locality - Cost of Care,LD - East Cambs - Care,Residential Care
Cambridgeshire County Council,08-Nov-19,51301252953,"-1,317.11",ALDERTON HOUSE,CARE ESTABLISHMENT,LD - East Locality - Cost of Care,LD - East Cambs - Care,Residential Care
Cambridgeshire County Council,08-Nov-19,51301252959,"-1,317.11",ALDERTON HOUSE,CARE ESTABLISHMENT,LD - East Locality - Cost of Care,LD - East Cambs - Care,Residential Care
Cambridgeshire County Council,08-Nov-19,51301252893,"-1,317.11",ALDERTON HOUSE,CARE ESTABLISHMENT,LD - East Locality - Cost of Care,LD - East Cambs - Care,Residential Care
Cambridgeshire County Council,08-Nov-19,51301252894,"-1,317.11",ALDERTON HOUSE,CARE ESTABLISHMENT,LD - East Locality - Cost of Care,LD - East Cambs - Care,Residential Care
Cambridgeshire County Council,08-Nov-19,51301248938,"-1,317.11",ALDERTON HOUSE,CARE ESTABLISHMENT,LD - East Locality - Cost of Care,LD - East Cambs - Care,Residential Care
Cambridgeshire County Council,08-Nov-19,51301252979,"-1,317.11",ALDERTON HOUSE,CARE ESTABLISHMENT,LD - East Locality - Cost of Care,LD - East Cambs - Care,Residential Care
Cambridgeshire County Council,08-Nov-19,51301252890,"-1,317.11",ALDERTON HOUSE,CARE ESTABLISHMENT,LD - East Locality - Cost of Care,LD - East Cambs - Care,Residential Care
Cambridgeshire County Council,08-Nov-19,51301252952,"-1,317.11",ALDERTON HOUSE,CARE ESTABLISHMENT,LD - East Locality - Cost of Care,LD - East Cambs - Care,Residential Care
Cambridgeshire County Council,08-Nov-19,51301252937,"-1,317.11",ALDERTON HOUSE,CARE ESTABLISHMENT,LD - East Locality - Cost of Care,LD - East Cambs - Care,Residential Care
Cambridgeshire County Council,08-Nov-19,51301252898,"-1,317.11",ALDERTON HOUSE,CARE ESTABLISHMENT,LD - East Locality - Cost of Care,LD - East Cambs - Care,Residential Care
Cambridgeshire County Council,08-Nov-19,51301248862,"-1,317.11",ALDERTON HOUSE,CARE ESTABLISHMENT,LD - East Locality - Cost of Care,LD - East Cambs - Care,Residential Care
Cambridgeshire County Council,08-Nov-19,51301248830,"-1,317.11",ALDERTON HOUSE,CARE ESTABLISHMENT,LD - East Locality - Cost of Care,LD - East Cambs - Care,Residential Care
Cambridgeshire County Council,08-Nov-19,51301252900,"-1,317.11",ALDERTON HOUSE,CARE ESTABLISHMENT,LD - East Locality - Cost of Care,LD - East Cambs - Care,Residential Care
Cambridgeshire County Council,08-Nov-19,51301248841,"-1,317.11",ALDERTON HOUSE,CARE ESTABLISHMENT,LD - East Locality - Cost of Care,LD - East Cambs - Care,Residential Care
Cambridgeshire County Council,08-Nov-19,51301248831,"-1,317.11",ALDERTON HOUSE,CARE ESTABLISHMENT,LD - East Locality - Cost of Care,LD - East Cambs - Care,Residential Care
Cambridgeshire County Council,08-Nov-19,51301252918,"-1,317.11",ALDERTON HOUSE,CARE ESTABLISHMENT,LD - East Locality - Cost of Care,LD - East Cambs - Care,Residential Care
Cambridgeshire County Council,08-Nov-19,51301248946,"-1,317.11",ALDERTON HOUSE,CARE ESTABLISHMENT,LD - East Locality - Cost of Care,LD - East Cambs - Care,Residential Care
Cambridgeshire County Council,08-Nov-19,51301252961,"-1,317.11",ALDERTON HOUSE,CARE ESTABLISHMENT,LD - East Locality - Cost of Care,LD - East Cambs - Care,Residential Care
Cambridgeshire County Council,08-Nov-19,51301248903,"-1,317.11",ALDERTON HOUSE,CARE ESTABLISHMENT,LD - East Locality - Cost of Care,LD - East Cambs - Care,Residential Care
Cambridgeshire County Council,08-Nov-19,51301248847,"-1,317.11",ALDERTON HOUSE,CARE ESTABLISHMENT,LD - East Locality - Cost of Care,LD - East Cambs - Care,Residential Care
Cambridgeshire County Council,08-Nov-19,51301248926,"-1,317.11",ALDERTON HOUSE,CARE ESTABLISHMENT,LD - East Locality - Cost of Care,LD - East Cambs - Care,Residential Care
Cambridgeshire County Council,08-Nov-19,51301248935,"-1,317.11",ALDERTON HOUSE,CARE ESTABLISHMENT,LD - East Locality - Cost of Care,LD - East Cambs - Care,Residential Care
Cambridgeshire County Council,08-Nov-19,51301248844,"-1,317.11",ALDERTON HOUSE,CARE ESTABLISHMENT,LD - East Locality - Cost of Care,LD - East Cambs - Care,Residential Care
Cambridgeshire County Council,08-Nov-19,51301252919,"-1,317.11",ALDERTON HOUSE,CARE ESTABLISHMENT,LD - East Locality - Cost of Care,LD - East Cambs - Care,Residential Care
Cambridgeshire County Council,08-Nov-19,51301252974,"-1,317.11",ALDERTON HOUSE,CARE ESTABLISHMENT,LD - East Locality - Cost of Care,LD - East Cambs - Care,Residential Care
Cambridgeshire County Council,08-Nov-19,51301248912,"-1,317.11",ALDERTON HOUSE,CARE ESTABLISHMENT,LD - East Locality - Cost of Care,LD - East Cambs - Care,Residential Care
Cambridgeshire County Council,08-Nov-19,51301253003,"-1,317.11",ALDERTON HOUSE,CARE ESTABLISHMENT,LD - East Locality - Cost of Care,LD - East Cambs - Care,Residential Care
Cambridgeshire County Council,08-Nov-19,51301248916,"-1,317.11",ALDERTON HOUSE,CARE ESTABLISHMENT,LD - East Locality - Cost of Care,LD - East Cambs - Care,Residential Care
Cambridgeshire County Council,08-Nov-19,51301252962,"-1,317.11",ALDERTON HOUSE,CARE ESTABLISHMENT,LD - East Locality - Cost of Care,LD - East Cambs - Care,Residential Care
Cambridgeshire County Council,08-Nov-19,51301248948,"-1,317.11",ALDERTON HOUSE,CARE ESTABLISHMENT,LD - East Locality - Cost of Care,LD - East Cambs - Care,Residential Care
Cambridgeshire County Council,08-Nov-19,51301248884,"-1,317.11",ALDERTON HOUSE,CARE ESTABLISHMENT,LD - East Locality - Cost of Care,LD - East Cambs - Care,Residential Care
Cambridgeshire County Council,08-Nov-19,51301237864,"-1,289.60",23 LIONS CROSS (VOYAGE),CARE ESTABLISHMENT,LD - Hunts Locality - Cost of Care,LD - Huntingdonshire - Special Needs,Supported Living
Cambridgeshire County Council,08-Nov-19,51301237875,"-1,289.60",23 LIONS CROSS (VOYAGE),CARE ESTABLISHMENT,LD - Hunts Locality - Cost of Care,LD - Huntingdonshire - Special Needs,Supported Living
Cambridgeshire County Council,08-Nov-19,51301236727,"-1,275.56",2 CHEVERIL LANE (VOYAGE),CARE ESTABLISHMENT,LD - Hunts Locality - Cost of Care,LD - Huntingdonshire - Special Needs,Supported Living
Cambridgeshire County Council,08-Nov-19,51301241093,"-1,275.56",2 CHEVERIL LANE (VOYAGE),CARE ESTABLISHMENT,LD - Hunts Locality - Cost of Care,LD - Huntingdonshire - Special Needs,Supported Living
Cambridgeshire County Council,08-Nov-19,51301236726,"-1,275.56",2 CHEVERIL LANE (VOYAGE),CARE ESTABLISHMENT,LD - Hunts Locality - Cost of Care,LD - Huntingdonshire - Special Needs,Supported Living
Cambridgeshire County Council,08-Nov-19,51301237180,"-1,275.56",2 CHEVERIL LANE (VOYAGE),CARE ESTABLISHMENT,LD - Hunts Locality - Cost of Care,LD - Huntingdonshire - Special Needs,Supported Living
Cambridgeshire County Council,08-Nov-19,51301237184,"-1,275.56",2 CHEVERIL LANE (VOYAGE),CARE ESTABLISHMENT,LD - Hunts Locality - Cost of Care,LD - Huntingdonshire - Special Needs,Supported Living
Cambridgeshire County Council,08-Nov-19,51301241010,"-1,275.56",2 CHEVERIL LANE (VOYAGE),CARE ESTABLISHMENT,LD - Hunts Locality - Cost of Care,LD - Huntingdonshire - Special Needs,Supported Living
Cambridgeshire County Council,08-Nov-19,51301241011,"-1,275.56",2 CHEVERIL LANE (VOYAGE),CARE ESTABLISHMENT,LD - Hunts Locality - Cost of Care,LD - Huntingdonshire - Special Needs,Supported Living
Cambridgeshire County Council,08-Nov-19,51301241094,"-1,275.56",2 CHEVERIL LANE (VOYAGE),CARE ESTABLISHMENT,LD - Hunts Locality - Cost of Care,LD - Huntingdonshire - Special Needs,Supported Living
Cambridgeshire County Council,08-Nov-19,51301235844,"-1,275.56",2 CHEVERIL LANE (VOYAGE),CARE ESTABLISHMENT,LD - Hunts Locality - Cost of Care,LD - Huntingdonshire - Care,Supported Living
Cambridgeshire County Council,08-Nov-19,51301235843,"-1,275.56",2 CHEVERIL LANE (VOYAGE),CARE ESTABLISHMENT,LD - Hunts Locality - Cost of Care,LD - Huntingdonshire - Care,Supported Living
Cambridgeshire County Council,28-Nov-19,51301268294,"-1,274.54",AURORA ORCHARD MANOR,CARE ESTABLISHMENT,LD - Young Adults Team,LD - Young Adults - Care,Residential Care
Cambridgeshire County Council,08-Nov-19,51301237169,"-1,266.59",2 CHEVERIL LANE (VOYAGE),CARE ESTABLISHMENT,LD - Hunts Locality - Cost of Care,LD - Huntingdonshire - Care,Supported Living
Cambridgeshire County Council,08-Nov-19,51301237176,"-1,266.59",2 CHEVERIL LANE (VOYAGE),CARE ESTABLISHMENT,LD - Hunts Locality - Cost of Care,LD - Huntingdonshire - Care,Supported Living
Cambridgeshire County Council,08-Nov-19,51301249262,"-1,266.59",2 CHEVERIL LANE (VOYAGE),CARE ESTABLISHMENT,LD - Hunts Locality - Cost of Care,LD - Huntingdonshire - Care,Supported Living
Cambridgeshire County Council,08-Nov-19,51301253196,"-1,266.59",2 CHEVERIL LANE (VOYAGE),CARE ESTABLISHMENT,LD - Hunts Locality - Cost of Care,LD - Huntingdonshire - Care,Supported Living
Cambridgeshire County Council,08-Nov-19,51301253188,"-1,266.59",2 CHEVERIL LANE (VOYAGE),CARE ESTABLISHMENT,LD - Hunts Locality - Cost of Care,LD - Huntingdonshire - Care,Supported Living
Cambridgeshire County Council,08-Nov-19,51301253193,"-1,266.59",2 CHEVERIL LANE (VOYAGE),CARE ESTABLISHMENT,LD - Hunts Locality - Cost of Care,LD - Huntingdonshire - Care,Supported Living
Cambridgeshire County Council,08-Nov-19,51301253198,"-1,266.59",2 CHEVERIL LANE (VOYAGE),CARE ESTABLISHMENT,LD - Hunts Locality - Cost of Care,LD - Huntingdonshire - Care,Supported Living
Cambridgeshire County Council,08-Nov-19,51301237172,"-1,266.59",2 CHEVERIL LANE (VOYAGE),CARE ESTABLISHMENT,LD - Hunts Locality - Cost of Care,LD - Huntingdonshire - Care,Supported Living
Cambridgeshire County Council,08-Nov-19,51301237186,"-1,266.59",2 CHEVERIL LANE (VOYAGE),CARE ESTABLISHMENT,LD - Hunts Locality - Cost of Care,LD - Huntingdonshire - Care,Supported Living
Cambridgeshire County Council,08-Nov-19,51301253199,"-1,266.59",2 CHEVERIL LANE (VOYAGE),CARE ESTABLISHMENT,LD - Hunts Locality - Cost of Care,LD - Huntingdonshire - Care,Supported Living
Cambridgeshire County Council,08-Nov-19,51301237188,"-1,266.59",2 CHEVERIL LANE (VOYAGE),CARE ESTABLISHMENT,LD - Hunts Locality - Cost of Care,LD - Huntingdonshire - Care,Supported Living
Cambridgeshire County Council,08-Nov-19,51301249266,"-1,266.59",2 CHEVERIL LANE (VOYAGE),CARE ESTABLISHMENT,LD - Hunts Locality - Cost of Care,LD - Huntingdonshire - Care,Supported Living
Cambridgeshire County Council,08-Nov-19,51301237173,"-1,266.59",2 CHEVERIL LANE (VOYAGE),CARE ESTABLISHMENT,LD - Hunts Locality - Cost of Care,LD - Huntingdonshire - Care,Supported Living
Cambridgeshire County Council,08-Nov-19,51301249278,"-1,266.59",2 CHEVERIL LANE (VOYAGE),CARE ESTABLISHMENT,LD - Hunts Locality - Cost of Care,LD - Huntingdonshire - Special Needs,Supported Living
Cambridgeshire County Council,08-Nov-19,51301253197,"-1,266.59",2 CHEVERIL LANE (VOYAGE),CARE ESTABLISHMENT,LD - Hunts Locality - Cost of Care,LD - Huntingdonshire - Special Needs,Supported Living
Cambridgeshire County Council,08-Nov-19,51301253200,"-1,266.59",2 CHEVERIL LANE (VOYAGE),CARE ESTABLISHMENT,LD - Hunts Locality - Cost of Care,LD - Huntingdonshire - Special Needs,Supported Living
Cambridgeshire County Council,08-Nov-19,51301237168,"-1,266.59",2 CHEVERIL LANE (VOYAGE),CARE ESTABLISHMENT,LD - Hunts Locality - Cost of Care,LD - Huntingdonshire - Special Needs,Supported Living
Cambridgeshire County Council,08-Nov-19,51301253190,"-1,266.59",2 CHEVERIL LANE (VOYAGE),CARE ESTABLISHMENT,LD - Hunts Locality - Cost of Care,LD - Huntingdonshire - Special Needs,Supported Living
Cambridgeshire County Council,08-Nov-19,51301249268,"-1,266.59",2 CHEVERIL LANE (VOYAGE),CARE ESTABLISHMENT,LD - Hunts Locality - Cost of Care,LD - Huntingdonshire - Special Needs,Supported Living
Cambridgeshire County Council,08-Nov-19,51301249276,"-1,266.59",2 CHEVERIL LANE (VOYAGE),CARE ESTABLISHMENT,LD - Hunts Locality - Cost of Care,LD - Huntingdonshire - Special Needs,Supported Living
Cambridgeshire County Council,08-Nov-19,51301249265,"-1,266.59",2 CHEVERIL LANE (VOYAGE),CARE ESTABLISHMENT,LD - Hunts Locality - Cost of Care,LD - Huntingdonshire - Special Needs,Supported Living
Cambridgeshire County Council,08-Nov-19,51301237174,"-1,266.59",2 CHEVERIL LANE (VOYAGE),CARE ESTABLISHMENT,LD - Hunts Locality - Cost of Care,LD - Huntingdonshire - Special Needs,Supported Living
Cambridgeshire County Council,08-Nov-19,51301249273,"-1,266.59",2 CHEVERIL LANE (VOYAGE),CARE ESTABLISHMENT,LD - Hunts Locality - Cost of Care,LD - Huntingdonshire - Special Needs,Supported Living
Cambridgeshire County Council,08-Nov-19,51301237167,"-1,266.59",2 CHEVERIL LANE (VOYAGE),CARE ESTABLISHMENT,LD - Hunts Locality - Cost of Care,LD - Huntingdonshire - Special Needs,Supported Living
Cambridgeshire County Council,08-Nov-19,51301249267,"-1,266.59",2 CHEVERIL LANE (VOYAGE),CARE ESTABLISHMENT,LD - Hunts Locality - Cost of Care,LD - Huntingdonshire - Special Needs,Supported Living
Cambridgeshire County Council,08-Nov-19,51301249272,"-1,266.59",2 CHEVERIL LANE (VOYAGE),CARE ESTABLISHMENT,LD - Hunts Locality - Cost of Care,LD - Huntingdonshire - Special Needs,Supported Living
Cambridgeshire County Council,08-Nov-19,51301253187,"-1,266.59",2 CHEVERIL LANE (VOYAGE),CARE ESTABLISHMENT,LD - Hunts Locality - Cost of Care,LD - Huntingdonshire - Special Needs,Supported Living
Cambridgeshire County Council,28-Nov-19,51300826528,"-1,249.45",MENCAP (32 KINGS LANE),CARE ESTABLISHMENT,LD - Hunts Locality - Cost of Care,LD - Huntingdonshire - Special Needs,Residential Care
Cambridgeshire County Council,28-Nov-19,51300826547,"-1,249.45",MENCAP (32 KINGS LANE),CARE ESTABLISHMENT,LD - Hunts Locality - Cost of Care,LD - Huntingdonshire - Special Needs,Residential Care
Cambridgeshire County Council,28-Nov-19,51300816275,"-1,249.45",MENCAP (32 KINGS LANE),CARE ESTABLISHMENT,LD - Hunts Locality - Cost of Care,LD - Huntingdonshire - Special Needs,Residential Care
Cambridgeshire County Council,28-Nov-19,51300816284,"-1,249.45",MENCAP (32 KINGS LANE),CARE ESTABLISHMENT,LD - Hunts Locality - Cost of Care,LD - Huntingdonshire - Special Needs,Residential Care
Cambridgeshire County Council,28-Nov-19,51300816282,"-1,249.45",MENCAP (32 KINGS LANE),CARE ESTABLISHMENT,LD - Hunts Locality - Cost of Care,LD - Huntingdonshire - Special Needs,Residential Care
Cambridgeshire County Council,28-Nov-19,51300826556,"-1,249.45",MENCAP (32 KINGS LANE),CARE ESTABLISHMENT,LD - Hunts Locality - Cost of Care,LD - Huntingdonshire - Special Needs,Residential Care
Cambridgeshire County Council,28-Nov-19,51300826525,"-1,249.45",MENCAP (32 KINGS LANE),CARE ESTABLISHMENT,LD - Hunts Locality - Cost of Care,LD - Huntingdonshire - Special Needs,Residential Care
Cambridgeshire County Council,28-Nov-19,51300816289,"-1,249.45",MENCAP (32 KINGS LANE),CARE ESTABLISHMENT,LD - Hunts Locality - Cost of Care,LD - Huntingdonshire - Special Needs,Residential Care
Cambridgeshire County Council,28-Nov-19,51300816268,"-1,249.45",MENCAP (32 KINGS LANE),CARE ESTABLISHMENT,LD - Hunts Locality - Cost of Care,LD - Huntingdonshire - Special Needs,Residential Care
Cambridgeshire County Council,28-Nov-19,51300816277,"-1,249.45",MENCAP (32 KINGS LANE),CARE ESTABLISHMENT,LD - Hunts Locality - Cost of Care,LD - Huntingdonshire - Special Needs,Residential Care
Cambridgeshire County Council,28-Nov-19,51300826546,"-1,249.45",MENCAP (32 KINGS LANE),CARE ESTABLISHMENT,LD - Hunts Locality - Cost of Care,LD - Huntingdonshire - Special Needs,Residential Care
Cambridgeshire County Council,28-Nov-19,51300826544,"-1,249.45",MENCAP (32 KINGS LANE),CARE ESTABLISHMENT,LD - Hunts Locality - Cost of Care,LD - Huntingdonshire - Special Needs,Residential Care
Cambridgeshire County Council,28-Nov-19,51300826536,"-1,249.45",MENCAP (32 KINGS LANE),CARE ESTABLISHMENT,LD - Hunts Locality - Cost of Care,LD - Huntingdonshire - Special Needs,Residential Care
Cambridgeshire County Council,28-Nov-19,51300826526,"-1,249.45",MENCAP (32 KINGS LANE),CARE ESTABLISHMENT,LD - Hunts Locality - Cost of Care,LD - Huntingdonshire - Special Needs,Residential Care
Cambridgeshire County Council,28-Nov-19,51300826538,"-1,249.45",MENCAP (32 KINGS LANE),CARE ESTABLISHMENT,LD - Hunts Locality - Cost of Care,LD - Huntingdonshire - Special Needs,Residential Care
Cambridgeshire County Council,28-Nov-19,51300826559,"-1,249.45",MENCAP (32 KINGS LANE),CARE ESTABLISHMENT,LD - Hunts Locality - Cost of Care,LD - Huntingdonshire - Special Needs,Residential Care
Cambridgeshire County Council,28-Nov-19,51300826561,"-1,249.45",MENCAP (32 KINGS LANE),CARE ESTABLISHMENT,LD - Hunts Locality - Cost of Care,LD - Huntingdonshire - Special Needs,Residential Care
Cambridgeshire County Council,28-Nov-19,51300826534,"-1,249.45",MENCAP (32 KINGS LANE),CARE ESTABLISHMENT,LD - Hunts Locality - Cost of Care,LD - Huntingdonshire - Special Needs,Residential Care
Cambridgeshire County Council,28-Nov-19,51300816306,"-1,249.45",MENCAP (32 KINGS LANE),CARE ESTABLISHMENT,LD - Hunts Locality - Cost of Care,LD - Huntingdonshire - Special Needs,Residential Care
Cambridgeshire County Council,28-Nov-19,51300826524,"-1,249.45",MENCAP (32 KINGS LANE),CARE ESTABLISHMENT,LD - Hunts Locality - Cost of Care,LD - Huntingdonshire - Special Needs,Residential Care
Cambridgeshire County Council,28-Nov-19,51300816295,"-1,249.45",MENCAP (32 KINGS LANE),CARE ESTABLISHMENT,LD - Hunts Locality - Cost of Care,LD - Huntingdonshire - Special Needs,Residential Care
Cambridgeshire County Council,28-Nov-19,51300826555,"-1,249.45",MENCAP (32 KINGS LANE),CARE ESTABLISHMENT,LD - Hunts Locality - Cost of Care,LD - Huntingdonshire - Special Needs,Residential Care
Cambridgeshire County Council,28-Nov-19,51300816296,"-1,249.45",MENCAP (32 KINGS LANE),CARE ESTABLISHMENT,LD - Hunts Locality - Cost of Care,LD - Huntingdonshire - Special Needs,Residential Care
Cambridgeshire County Council,28-Nov-19,51300816298,"-1,249.45",MENCAP (32 KINGS LANE),CARE ESTABLISHMENT,LD - Hunts Locality - Cost of Care,LD - Huntingdonshire - Special Needs,Residential Care
Cambridgeshire County Council,28-Nov-19,51300816259,"-1,249.45",MENCAP (32 KINGS LANE),CARE ESTABLISHMENT,LD - Hunts Locality - Cost of Care,LD - Huntingdonshire - Special Needs,Residential Care
Cambridgeshire County Council,28-Nov-19,51300816294,"-1,249.45",MENCAP (32 KINGS LANE),CARE ESTABLISHMENT,LD - Hunts Locality - Cost of Care,LD - Huntingdonshire - Special Needs,Residential Care
Cambridgeshire County Council,28-Nov-19,51300816301,"-1,249.45",MENCAP (32 KINGS LANE),CARE ESTABLISHMENT,LD - Hunts Locality - Cost of Care,LD - Huntingdonshire - Special Needs,Residential Care
Cambridgeshire County Council,28-Nov-19,51300826530,"-1,249.45",MENCAP (32 KINGS LANE),CARE ESTABLISHMENT,LD - Hunts Locality - Cost of Care,LD - Huntingdonshire - Special Needs,Residential Care
Cambridgeshire County Council,28-Nov-19,51300816299,"-1,249.45",MENCAP (32 KINGS LANE),CARE ESTABLISHMENT,LD - Hunts Locality - Cost of Care,LD - Huntingdonshire - Special Needs,Residential Care
Cambridgeshire County Council,28-Nov-19,51300826557,"-1,249.45",MENCAP (32 KINGS LANE),CARE ESTABLISHMENT,LD - Hunts Locality - Cost of Care,LD - Huntingdonshire - Special Needs,Residential Care
Cambridgeshire County Council,28-Nov-19,51300816303,"-1,249.45",MENCAP (32 KINGS LANE),CARE ESTABLISHMENT,LD - Hunts Locality - Cost of Care,LD - Huntingdonshire - Special Needs,Residential Care
Cambridgeshire County Council,28-Nov-19,51300816290,"-1,249.45",MENCAP (32 KINGS LANE),CARE ESTABLISHMENT,LD - Hunts Locality - Cost of Care,LD - Huntingdonshire - Special Needs,Residential Care
Cambridgeshire County Council,28-Nov-19,51300816302,"-1,249.45",MENCAP (32 KINGS LANE),CARE ESTABLISHMENT,LD - Hunts Locality - Cost of Care,LD - Huntingdonshire - Special Needs,Residential Care
Cambridgeshire County Council,28-Nov-19,51300826539,"-1,249.45",MENCAP (32 KINGS LANE),CARE ESTABLISHMENT,LD - Hunts Locality - Cost of Care,LD - Huntingdonshire - Special Needs,Residential Care
Cambridgeshire County Council,28-Nov-19,51300816291,"-1,249.45",MENCAP (32 KINGS LANE),CARE ESTABLISHMENT,LD - Hunts Locality - Cost of Care,LD - Huntingdonshire - Special Needs,Residential Care
Cambridgeshire County Council,28-Nov-19,51300826543,"-1,249.45",MENCAP (32 KINGS LANE),CARE ESTABLISHMENT,LD - Hunts Locality - Cost of Care,LD - Huntingdonshire - Special Needs,Residential Care
Cambridgeshire County Council,08-Nov-19,51301240082,"-1,239.62",AVICAN SUPPORT LTD,CARE ESTABLISHMENT,LD - Young Adults Team,LD - Young Adults - Care,Domiciliary Care
Cambridgeshire County Council,08-Nov-19,51301240080,"-1,239.62",AVICAN SUPPORT LTD,CARE ESTABLISHMENT,LD - Young Adults Team,LD - Young Adults - Care,Domiciliary Care
Cambridgeshire County Council,08-Nov-19,51301249439,"-1,232.72",REED SPECIALIST RECRUITMENT LTD,TRADE SUPPLIER,LD - Young Adults Team,LD - Young Adults - Care,Domiciliary Care
Cambridgeshire County Council,08-Nov-19,51301253366,"-1,232.72",REED SPECIALIST RECRUITMENT LTD,TRADE SUPPLIER,LD - Young Adults Team,LD - Young Adults - Care,Domiciliary Care
Cambridgeshire County Council,29-Nov-19,51301270589,"-1,232.72",REED SPECIALIST RECRUITMENT LTD,TRADE SUPPLIER,LD - Young Adults Team,LD - Young Adults - Care,Domiciliary Care
Cambridgeshire County Council,08-Nov-19,51301237337,"-1,212.34",17 HAMLETT CLOSE (VOYAGE),CARE ESTABLISHMENT,LD - Hunts Locality - Cost of Care,LD - Huntingdonshire - Care,Supported Living
Cambridgeshire County Council,08-Nov-19,51301237469,"-1,212.34",17 HAMLETT CLOSE (VOYAGE),CARE ESTABLISHMENT,LD - Hunts Locality - Cost of Care,LD - Huntingdonshire - Care,Supported Living
Cambridgeshire County Council,08-Nov-19,51301237336,"-1,212.34",17 HAMLETT CLOSE (VOYAGE),CARE ESTABLISHMENT,LD - Hunts Locality - Cost of Care,LD - Huntingdonshire - Care,Supported Living
Cambridgeshire County Council,08-Nov-19,51301237467,"-1,212.34",17 HAMLETT CLOSE (VOYAGE),CARE ESTABLISHMENT,LD - Hunts Locality - Cost of Care,LD - Huntingdonshire - Care,Supported Living
Cambridgeshire County Council,08-Nov-19,51301236796,"-1,212.34",17 HAMLETT CLOSE (VOYAGE),CARE ESTABLISHMENT,LD - Hunts Locality - Cost of Care,LD - Huntingdonshire - Special Needs,Supported Living
Cambridgeshire County Council,08-Nov-19,51301235480,"-1,212.34",17 HAMLETT CLOSE (VOYAGE),CARE ESTABLISHMENT,LD - Hunts Locality - Cost of Care,LD - Huntingdonshire - Special Needs,Supported Living
Cambridgeshire County Council,08-Nov-19,51301235479,"-1,212.34",17 HAMLETT CLOSE (VOYAGE),CARE ESTABLISHMENT,LD - Hunts Locality - Cost of Care,LD - Huntingdonshire - Special Needs,Supported Living
Cambridgeshire County Council,08-Nov-19,51301236797,"-1,212.34",17 HAMLETT CLOSE (VOYAGE),CARE ESTABLISHMENT,LD - Hunts Locality - Cost of Care,LD - Huntingdonshire - Special Needs,Supported Living
Cambridgeshire County Council,08-Nov-19,51301235808,"-1,210.83",AVICAN SUPPORT LTD,CARE ESTABLISHMENT,LD - Young Adults Team,LD - Young Adults - Care,Domiciliary Care
Cambridgeshire County Council,08-Nov-19,51301235809,"-1,210.83",AVICAN SUPPORT LTD,CARE ESTABLISHMENT,LD - Young Adults Team,LD - Young Adults - Care,Domiciliary Care
Cambridgeshire County Council,28-Nov-19,51300837153,"-1,206.70",MENCAP (32 KINGS LANE),CARE ESTABLISHMENT,LD - Hunts Locality - Cost of Care,LD - Huntingdonshire - Special Needs,Residential Care
Cambridgeshire County Council,08-Nov-19,51301251772,"-1,198.04",CARETECH COMMUNITY SERVICES,CARE ESTABLISHMENT,LD - South Locality - Cost of Care,LD - South Cambs - Care,Residential Care
Cambridgeshire County Council,08-Nov-19,51301251765,"-1,198.04",CARETECH COMMUNITY SERVICES,CARE ESTABLISHMENT,LD - South Locality - Cost of Care,LD - South Cambs - Care,Residential Care
Cambridgeshire County Council,08-Nov-19,51301255408,"-1,198.04",CARETECH COMMUNITY SERVICES,CARE ESTABLISHMENT,LD - South Locality - Cost of Care,LD - South Cambs - Care,Residential Care
Cambridgeshire County Council,08-Nov-19,51301251749,"-1,198.04",CARETECH COMMUNITY SERVICES,CARE ESTABLISHMENT,LD - South Locality - Cost of Care,LD - South Cambs - Care,Residential Care
Cambridgeshire County Council,08-Nov-19,51301251752,"-1,198.04",CARETECH COMMUNITY SERVICES,CARE ESTABLISHMENT,LD - South Locality - Cost of Care,LD - South Cambs - Care,Residential Care
Cambridgeshire County Council,08-Nov-19,51301251771,"-1,198.04",CARETECH COMMUNITY SERVICES,CARE ESTABLISHMENT,LD - South Locality - Cost of Care,LD - South Cambs - Care,Residential Care
Cambridgeshire County Council,08-Nov-19,51301251774,"-1,198.04",CARETECH COMMUNITY SERVICES,CARE ESTABLISHMENT,LD - South Locality - Cost of Care,LD - South Cambs - Care,Residential Care
Cambridgeshire County Council,08-Nov-19,51301251741,"-1,198.04",CARETECH COMMUNITY SERVICES,CARE ESTABLISHMENT,LD - South Locality - Cost of Care,LD - South Cambs - Care,Residential Care
Cambridgeshire County Council,08-Nov-19,51301255457,"-1,198.04",CARETECH COMMUNITY SERVICES,CARE ESTABLISHMENT,LD - South Locality - Cost of Care,LD - South Cambs - Care,Residential Care
Cambridgeshire County Council,08-Nov-19,51301255431,"-1,198.04",CARETECH COMMUNITY SERVICES,CARE ESTABLISHMENT,LD - South Locality - Cost of Care,LD - South Cambs - Care,Residential Care
Cambridgeshire County Council,08-Nov-19,51301255447,"-1,198.04",CARETECH COMMUNITY SERVICES,CARE ESTABLISHMENT,LD - South Locality - Cost of Care,LD - South Cambs - Care,Residential Care
Cambridgeshire County Council,08-Nov-19,51301255439,"-1,198.04",CARETECH COMMUNITY SERVICES,CARE ESTABLISHMENT,LD - South Locality - Cost of Care,LD - South Cambs - Care,Residential Care
Cambridgeshire County Council,08-Nov-19,51301251751,"-1,198.04",CARETECH COMMUNITY SERVICES,CARE ESTABLISHMENT,LD - South Locality - Cost of Care,LD - South Cambs - Care,Residential Care
Cambridgeshire County Council,08-Nov-19,51301255452,"-1,198.04",CARETECH COMMUNITY SERVICES,CARE ESTABLISHMENT,LD - South Locality - Cost of Care,LD - South Cambs - Care,Residential Care
Cambridgeshire County Council,08-Nov-19,51301255425,"-1,198.04",CARETECH COMMUNITY SERVICES,CARE ESTABLISHMENT,LD - South Locality - Cost of Care,LD - South Cambs - Care,Residential Care
Cambridgeshire County Council,08-Nov-19,51301251737,"-1,198.04",CARETECH COMMUNITY SERVICES,CARE ESTABLISHMENT,LD - South Locality - Cost of Care,LD - South Cambs - Care,Residential Care
Cambridgeshire County Council,08-Nov-19,51301251729,"-1,198.04",CARETECH COMMUNITY SERVICES,CARE ESTABLISHMENT,LD - South Locality - Cost of Care,LD - South Cambs - Care,Residential Care
Cambridgeshire County Council,08-Nov-19,51301251776,"-1,198.04",CARETECH COMMUNITY SERVICES,CARE ESTABLISHMENT,LD - South Locality - Cost of Care,LD - South Cambs - Care,Residential Care
Cambridgeshire County Council,08-Nov-19,51301255434,"-1,198.04",CARETECH COMMUNITY SERVICES,CARE ESTABLISHMENT,LD - South Locality - Cost of Care,LD - South Cambs - Care,Residential Care
Cambridgeshire County Council,08-Nov-19,51301251759,"-1,198.04",CARETECH COMMUNITY SERVICES,CARE ESTABLISHMENT,LD - South Locality - Cost of Care,LD - South Cambs - Care,Residential Care
Cambridgeshire County Council,08-Nov-19,51301251735,"-1,198.04",CARETECH COMMUNITY SERVICES,CARE ESTABLISHMENT,LD - South Locality - Cost of Care,LD - South Cambs - Care,Residential Care
Cambridgeshire County Council,08-Nov-19,51301251730,"-1,198.04",CARETECH COMMUNITY SERVICES,CARE ESTABLISHMENT,LD - South Locality - Cost of Care,LD - South Cambs - Care,Residential Care
Cambridgeshire County Council,08-Nov-19,51301251727,"-1,198.04",CARETECH COMMUNITY SERVICES,CARE ESTABLISHMENT,LD - South Locality - Cost of Care,LD - South Cambs - Care,Residential Care
Cambridgeshire County Council,08-Nov-19,51301251750,"-1,198.04",CARETECH COMMUNITY SERVICES,CARE ESTABLISHMENT,LD - South Locality - Cost of Care,LD - South Cambs - Care,Residential Care
Cambridgeshire County Council,08-Nov-19,51301255427,"-1,198.04",CARETECH COMMUNITY SERVICES,CARE ESTABLISHMENT,LD - South Locality - Cost of Care,LD - South Cambs - Care,Residential Care
Cambridgeshire County Council,08-Nov-19,51301255411,"-1,198.04",CARETECH COMMUNITY SERVICES,CARE ESTABLISHMENT,LD - South Locality - Cost of Care,LD - South Cambs - Care,Residential Care
Cambridgeshire County Council,08-Nov-19,51301255441,"-1,198.04",CARETECH COMMUNITY SERVICES,CARE ESTABLISHMENT,LD - South Locality - Cost of Care,LD - South Cambs - Care,Residential Care
Cambridgeshire County Council,08-Nov-19,51301255450,"-1,198.04",CARETECH COMMUNITY SERVICES,CARE ESTABLISHMENT,LD - South Locality - Cost of Care,LD - South Cambs - Care,Residential Care
Cambridgeshire County Council,08-Nov-19,51301255453,"-1,198.04",CARETECH COMMUNITY SERVICES,CARE ESTABLISHMENT,LD - South Locality - Cost of Care,LD - South Cambs - Care,Residential Care
Cambridgeshire County Council,08-Nov-19,51301251744,"-1,198.04",CARETECH COMMUNITY SERVICES,CARE ESTABLISHMENT,LD - South Locality - Cost of Care,LD - South Cambs - Care,Residential Care
Cambridgeshire County Council,08-Nov-19,51301251775,"-1,198.04",CARETECH COMMUNITY SERVICES,CARE ESTABLISHMENT,LD - South Locality - Cost of Care,LD - South Cambs - Special Needs,Residential Care
Cambridgeshire County Council,08-Nov-19,51301251731,"-1,198.04",CARETECH COMMUNITY SERVICES,CARE ESTABLISHMENT,LD - South Locality - Cost of Care,LD - South Cambs - Special Needs,Residential Care
Cambridgeshire County Council,08-Nov-19,51301255444,"-1,198.04",CARETECH COMMUNITY SERVICES,CARE ESTABLISHMENT,LD - South Locality - Cost of Care,LD - South Cambs - Special Needs,Residential Care
Cambridgeshire County Council,08-Nov-19,51301255460,"-1,198.04",CARETECH COMMUNITY SERVICES,CARE ESTABLISHMENT,LD - South Locality - Cost of Care,LD - South Cambs - Special Needs,Residential Care
Cambridgeshire County Council,08-Nov-19,51301255449,"-1,198.04",CARETECH COMMUNITY SERVICES,CARE ESTABLISHMENT,LD - South Locality - Cost of Care,LD - South Cambs - Special Needs,Residential Care
Cambridgeshire County Council,08-Nov-19,51301251740,"-1,198.04",CARETECH COMMUNITY SERVICES,CARE ESTABLISHMENT,LD - South Locality - Cost of Care,LD - South Cambs - Special Needs,Residential Care
Cambridgeshire County Council,08-Nov-19,51301255437,"-1,198.04",CARETECH COMMUNITY SERVICES,CARE ESTABLISHMENT,LD - South Locality - Cost of Care,LD - South Cambs - Special Needs,Residential Care
Cambridgeshire County Council,08-Nov-19,51301251732,"-1,198.04",CARETECH COMMUNITY SERVICES,CARE ESTABLISHMENT,LD - South Locality - Cost of Care,LD - South Cambs - Special Needs,Residential Care
Cambridgeshire County Council,08-Nov-19,51301255438,"-1,198.04",CARETECH COMMUNITY SERVICES,CARE ESTABLISHMENT,LD - South Locality - Cost of Care,LD - South Cambs - Special Needs,Residential Care
Cambridgeshire County Council,08-Nov-19,51301255415,"-1,198.04",CARETECH COMMUNITY SERVICES,CARE ESTABLISHMENT,LD - South Locality - Cost of Care,LD - South Cambs - Special Needs,Residential Care
Cambridgeshire County Council,08-Nov-19,51301255443,"-1,198.04",CARETECH COMMUNITY SERVICES,CARE ESTABLISHMENT,LD - South Locality - Cost of Care,LD - South Cambs - Special Needs,Residential Care
Cambridgeshire County Council,08-Nov-19,51301251757,"-1,198.04",CARETECH COMMUNITY SERVICES,CARE ESTABLISHMENT,LD - South Locality - Cost of Care,LD - South Cambs - Special Needs,Residential Care
Cambridgeshire County Council,08-Nov-19,51301255407,"-1,198.04",CARETECH COMMUNITY SERVICES,CARE ESTABLISHMENT,LD - South Locality - Cost of Care,LD - South Cambs - Special Needs,Residential Care
Cambridgeshire County Council,08-Nov-19,51301255461,"-1,198.04",CARETECH COMMUNITY SERVICES,CARE ESTABLISHMENT,LD - South Locality - Cost of Care,LD - South Cambs - Special Needs,Residential Care
Cambridgeshire County Council,08-Nov-19,51301251755,"-1,198.04",CARETECH COMMUNITY SERVICES,CARE ESTABLISHMENT,LD - South Locality - Cost of Care,LD - South Cambs - Special Needs,Residential Care
Cambridgeshire County Council,08-Nov-19,51301255442,"-1,198.04",CARETECH COMMUNITY SERVICES,CARE ESTABLISHMENT,LD - South Locality - Cost of Care,LD - South Cambs - Special Needs,Residential Care
Cambridgeshire County Council,08-Nov-19,51301251754,"-1,198.04",CARETECH COMMUNITY SERVICES,CARE ESTABLISHMENT,LD - South Locality - Cost of Care,LD - South Cambs - Special Needs,Residential Care
Cambridgeshire County Council,08-Nov-19,51301251733,"-1,198.04",CARETECH COMMUNITY SERVICES,CARE ESTABLISHMENT,LD - South Locality - Cost of Care,LD - South Cambs - Special Needs,Residential Care
Cambridgeshire County Council,08-Nov-19,51301255428,"-1,198.04",CARETECH COMMUNITY SERVICES,CARE ESTABLISHMENT,LD - South Locality - Cost of Care,LD - South Cambs - Special Needs,Residential Care
Cambridgeshire County Council,08-Nov-19,51301255456,"-1,198.04",CARETECH COMMUNITY SERVICES,CARE ESTABLISHMENT,LD - South Locality - Cost of Care,LD - South Cambs - Special Needs,Residential Care
Cambridgeshire County Council,08-Nov-19,51301255417,"-1,198.04",CARETECH COMMUNITY SERVICES,CARE ESTABLISHMENT,LD - South Locality - Cost of Care,LD - South Cambs - Special Needs,Residential Care
Cambridgeshire County Council,08-Nov-19,51301255420,"-1,198.04",CARETECH COMMUNITY SERVICES,CARE ESTABLISHMENT,LD - South Locality - Cost of Care,LD - South Cambs - Special Needs,Residential Care
Cambridgeshire County Council,08-Nov-19,51301251762,"-1,198.04",CARETECH COMMUNITY SERVICES,CARE ESTABLISHMENT,LD - South Locality - Cost of Care,LD - South Cambs - Special Needs,Residential Care
Cambridgeshire County Council,08-Nov-19,51301251766,"-1,198.04",CARETECH COMMUNITY SERVICES,CARE ESTABLISHMENT,LD - South Locality - Cost of Care,LD - South Cambs - Special Needs,Residential Care
Cambridgeshire County Council,08-Nov-19,51301235450,"-1,164.90",22 KINGS RIPTON ROAD (REGARD),CARE ESTABLISHMENT,LD - Hunts Locality - Cost of Care,LD - Huntingdonshire - Special Needs,Supported Living
Cambridgeshire County Council,08-Nov-19,51301235449,"-1,164.90",22 KINGS RIPTON ROAD (REGARD),CARE ESTABLISHMENT,LD - Hunts Locality - Cost of Care,LD - Huntingdonshire - Special Needs,Supported Living
Cambridgeshire County Council,28-Nov-19,51300832622,"-1,155.46",MENCAP (32 KINGS LANE),CARE ESTABLISHMENT,LD - Hunts Locality - Cost of Care,LD - Huntingdonshire - Special Needs,Residential Care
Cambridgeshire County Council,28-Nov-19,51300832633,"-1,155.46",MENCAP (32 KINGS LANE),CARE ESTABLISHMENT,LD - Hunts Locality - Cost of Care,LD - Huntingdonshire - Special Needs,Residential Care
Cambridgeshire County Council,28-Nov-19,51300832644,"-1,155.46",MENCAP (32 KINGS LANE),CARE ESTABLISHMENT,LD - Hunts Locality - Cost of Care,LD - Huntingdonshire - Special Needs,Residential Care
Cambridgeshire County Council,28-Nov-19,51300832619,"-1,155.46",MENCAP (32 KINGS LANE),CARE ESTABLISHMENT,LD - Hunts Locality - Cost of Care,LD - Huntingdonshire - Special Needs,Residential Care
Cambridgeshire County Council,28-Nov-19,51300832635,"-1,155.46",MENCAP (32 KINGS LANE),CARE ESTABLISHMENT,LD - Hunts Locality - Cost of Care,LD - Huntingdonshire - Special Needs,Residential Care
Cambridgeshire County Council,28-Nov-19,51300832653,"-1,155.46",MENCAP (32 KINGS LANE),CARE ESTABLISHMENT,LD - Hunts Locality - Cost of Care,LD - Huntingdonshire - Special Needs,Residential Care
Cambridgeshire County Council,28-Nov-19,51300832631,"-1,155.46",MENCAP (32 KINGS LANE),CARE ESTABLISHMENT,LD - Hunts Locality - Cost of Care,LD - Huntingdonshire - Special Needs,Residential Care
Cambridgeshire County Council,28-Nov-19,51300832632,"-1,155.46",MENCAP (32 KINGS LANE),CARE ESTABLISHMENT,LD - Hunts Locality - Cost of Care,LD - Huntingdonshire - Special Needs,Residential Care
Cambridgeshire County Council,28-Nov-19,51300832642,"-1,155.46",MENCAP (32 KINGS LANE),CARE ESTABLISHMENT,LD - Hunts Locality - Cost of Care,LD - Huntingdonshire - Special Needs,Residential Care
Cambridgeshire County Council,28-Nov-19,51300832623,"-1,155.46",MENCAP (32 KINGS LANE),CARE ESTABLISHMENT,LD - Hunts Locality - Cost of Care,LD - Huntingdonshire - Special Needs,Residential Care
Cambridgeshire County Council,28-Nov-19,51300832647,"-1,155.46",MENCAP (32 KINGS LANE),CARE ESTABLISHMENT,LD - Hunts Locality - Cost of Care,LD - Huntingdonshire - Special Needs,Residential Care
Cambridgeshire County Council,28-Nov-19,51300832617,"-1,155.46",MENCAP (32 KINGS LANE),CARE ESTABLISHMENT,LD - Hunts Locality - Cost of Care,LD - Huntingdonshire - Special Needs,Residential Care
Cambridgeshire County Council,28-Nov-19,51300832639,"-1,155.46",MENCAP (32 KINGS LANE),CARE ESTABLISHMENT,LD - Hunts Locality - Cost of Care,LD - Huntingdonshire - Special Needs,Residential Care
Cambridgeshire County Council,28-Nov-19,51300832652,"-1,155.46",MENCAP (32 KINGS LANE),CARE ESTABLISHMENT,LD - Hunts Locality - Cost of Care,LD - Huntingdonshire - Special Needs,Residential Care
Cambridgeshire County Council,28-Nov-19,51300832648,"-1,155.46",MENCAP (32 KINGS LANE),CARE ESTABLISHMENT,LD - Hunts Locality - Cost of Care,LD - Huntingdonshire - Special Needs,Residential Care
Cambridgeshire County Council,28-Nov-19,51300832645,"-1,155.46",MENCAP (32 KINGS LANE),CARE ESTABLISHMENT,LD - Hunts Locality - Cost of Care,LD - Huntingdonshire - Special Needs,Residential Care
Cambridgeshire County Council,28-Nov-19,51300832646,"-1,155.46",MENCAP (32 KINGS LANE),CARE ESTABLISHMENT,LD - Hunts Locality - Cost of Care,LD - Huntingdonshire - Special Needs,Residential Care
Cambridgeshire County Council,28-Nov-19,51300832649,"-1,155.46",MENCAP (32 KINGS LANE),CARE ESTABLISHMENT,LD - Hunts Locality - Cost of Care,LD - Huntingdonshire - Special Needs,Residential Care
Cambridgeshire County Council,08-Nov-19,51301235922,"-1,148.40",22 KINGS RIPTON ROAD (REGARD),CARE ESTABLISHMENT,LD - Hunts Locality - Cost of Care,LD - Huntingdonshire - Special Needs,Supported Living
Cambridgeshire County Council,08-Nov-19,51301235504,"-1,148.40",22 KINGS RIPTON ROAD (REGARD),CARE ESTABLISHMENT,LD - Hunts Locality - Cost of Care,LD - Huntingdonshire - Special Needs,Supported Living
Cambridgeshire County Council,08-Nov-19,51301235941,"-1,148.40",22 KINGS RIPTON ROAD (REGARD),CARE ESTABLISHMENT,LD - Hunts Locality - Cost of Care,LD - Huntingdonshire - Special Needs,Supported Living
Cambridgeshire County Council,08-Nov-19,51301235505,"-1,148.40",22 KINGS RIPTON ROAD (REGARD),CARE ESTABLISHMENT,LD - Hunts Locality - Cost of Care,LD - Huntingdonshire - Special Needs,Supported Living
Cambridgeshire County Council,08-Nov-19,51301247756,"-1,141.84",THE POPLARS (MENCAP),CARE ESTABLISHMENT,LD - City Locality - Cost of Care,LD - City - Care,Rehabilitation And Respite Care
Cambridgeshire County Council,08-Nov-19,51301247755,"-1,141.84",THE POPLARS (MENCAP),CARE ESTABLISHMENT,LD - City Locality - Cost of Care,LD - City - Care,Rehabilitation And Respite Care
Cambridgeshire County Council,08-Nov-19,51301247757,"-1,141.84",THE POPLARS (MENCAP),CARE ESTABLISHMENT,LD - City Locality - Cost of Care,LD - City - Care,Rehabilitation And Respite Care
Cambridgeshire County Council,28-Nov-19,51301268802,"-1,141.84",WOODLANDS CARE CENTRE,CARE ESTABLISHMENT,OPMH - City & South,Older People Mental Health City & South,Nursing Care
Cambridgeshire County Council,28-Nov-19,51301268802,"-1,141.84",WOODLANDS CARE CENTRE,CARE ESTABLISHMENT,OPMH - City & South,Older People Mental Health City & South,Nursing Care
Cambridgeshire County Council,18-Nov-19,51301261199,"-1,140.00",LOCAL GOVERNMENT ASSOCIATION,OTHER PUBLIC BODIES,Strategic Management - Adults,Service Director - OP and MH,Staff Training & Development
Cambridgeshire County Council,28-Nov-19,51301250739,"-1,138.66",CARE MANAGEMENT GROUP (64-66 CARLTON),CARE ESTABLISHMENT,LD - East Locality - Cost of Care,LD - East Cambs - Special Needs,Residential Care
Cambridgeshire County Council,28-Nov-19,51301254469,"-1,138.66",CARE MANAGEMENT GROUP (64-66 CARLTON),CARE ESTABLISHMENT,LD - East Locality - Cost of Care,LD - East Cambs - Special Needs,Residential Care
Cambridgeshire County Council,08-Nov-19,51301248826,"-1,128.95",ALDERTON HOUSE,CARE ESTABLISHMENT,LD - East Locality - Cost of Care,LD - East Cambs - Special Needs,Residential Care
Cambridgeshire County Council,08-Nov-19,51301252956,"-1,128.95",ALDERTON HOUSE,CARE ESTABLISHMENT,LD - East Locality - Cost of Care,LD - East Cambs - Care,Residential Care
Cambridgeshire County Council,28-Nov-19,51300821505,"-1,120.59",MENCAP (32 KINGS LANE),CARE ESTABLISHMENT,LD - Hunts Locality - Cost of Care,LD - Huntingdonshire - Special Needs,Residential Care
Cambridgeshire County Council,28-Nov-19,51300821480,"-1,120.59",MENCAP (32 KINGS LANE),CARE ESTABLISHMENT,LD - Hunts Locality - Cost of Care,LD - Huntingdonshire - Special Needs,Residential Care
Cambridgeshire County Council,28-Nov-19,51300821460,"-1,120.59",MENCAP (32 KINGS LANE),CARE ESTABLISHMENT,LD - Hunts Locality - Cost of Care,LD - Huntingdonshire - Special Needs,Residential Care
Cambridgeshire County Council,28-Nov-19,51300821500,"-1,120.59",MENCAP (32 KINGS LANE),CARE ESTABLISHMENT,LD - Hunts Locality - Cost of Care,LD - Huntingdonshire - Special Needs,Residential Care
Cambridgeshire County Council,28-Nov-19,51300821494,"-1,120.59",MENCAP (32 KINGS LANE),CARE ESTABLISHMENT,LD - Hunts Locality - Cost of Care,LD - Huntingdonshire - Special Needs,Residential Care
Cambridgeshire County Council,28-Nov-19,51300821513,"-1,120.59",MENCAP (32 KINGS LANE),CARE ESTABLISHMENT,LD - Hunts Locality - Cost of Care,LD - Huntingdonshire - Special Needs,Residential Care
Cambridgeshire County Council,28-Nov-19,51300821501,"-1,120.59",MENCAP (32 KINGS LANE),CARE ESTABLISHMENT,LD - Hunts Locality - Cost of Care,LD - Huntingdonshire - Special Needs,Residential Care
Cambridgeshire County Council,28-Nov-19,51300821514,"-1,120.59",MENCAP (32 KINGS LANE),CARE ESTABLISHMENT,LD - Hunts Locality - Cost of Care,LD - Huntingdonshire - Special Needs,Residential Care
Cambridgeshire County Council,28-Nov-19,51300821516,"-1,120.59",MENCAP (32 KINGS LANE),CARE ESTABLISHMENT,LD - Hunts Locality - Cost of Care,LD - Huntingdonshire - Special Needs,Residential Care
Cambridgeshire County Council,28-Nov-19,51300821502,"-1,120.59",MENCAP (32 KINGS LANE),CARE ESTABLISHMENT,LD - Hunts Locality - Cost of Care,LD - Huntingdonshire - Special Needs,Residential Care
Cambridgeshire County Council,28-Nov-19,51300821517,"-1,120.59",MENCAP (32 KINGS LANE),CARE ESTABLISHMENT,LD - Hunts Locality - Cost of Care,LD - Huntingdonshire - Special Needs,Residential Care
Cambridgeshire County Council,28-Nov-19,51300821504,"-1,120.59",MENCAP (32 KINGS LANE),CARE ESTABLISHMENT,LD - Hunts Locality - Cost of Care,LD - Huntingdonshire - Special Needs,Residential Care
Cambridgeshire County Council,28-Nov-19,51300821477,"-1,120.59",MENCAP (32 KINGS LANE),CARE ESTABLISHMENT,LD - Hunts Locality - Cost of Care,LD - Huntingdonshire - Special Needs,Residential Care
Cambridgeshire County Council,28-Nov-19,51300821479,"-1,120.59",MENCAP (32 KINGS LANE),CARE ESTABLISHMENT,LD - Hunts Locality - Cost of Care,LD - Huntingdonshire - Special Needs,Residential Care
Cambridgeshire County Council,28-Nov-19,51300821484,"-1,120.59",MENCAP (32 KINGS LANE),CARE ESTABLISHMENT,LD - Hunts Locality - Cost of Care,LD - Huntingdonshire - Special Needs,Residential Care
Cambridgeshire County Council,28-Nov-19,51300821453,"-1,120.59",MENCAP (32 KINGS LANE),CARE ESTABLISHMENT,LD - Hunts Locality - Cost of Care,LD - Huntingdonshire - Special Needs,Residential Care
Cambridgeshire County Council,28-Nov-19,51300821486,"-1,120.59",MENCAP (32 KINGS LANE),CARE ESTABLISHMENT,LD - Hunts Locality - Cost of Care,LD - Huntingdonshire - Special Needs,Residential Care
Cambridgeshire County Council,28-Nov-19,51300821493,"-1,120.59",MENCAP (32 KINGS LANE),CARE ESTABLISHMENT,LD - Hunts Locality - Cost of Care,LD - Huntingdonshire - Special Needs,Residential Care
Cambridgeshire County Council,08-Nov-19,51301248034,"-1,120.30",MAKING SPACE,CARE ESTABLISHMENT,OPMH - City & South,Older People Mental Health E Cambs,Residential Care
Cambridgeshire County Council,08-Nov-19,51301248035,"-1,120.30",MAKING SPACE,CARE ESTABLISHMENT,OPMH - City & South,Older People Mental Health E Cambs,Residential Care
Cambridgeshire County Council,14-Nov-19,51301263247,"-1,110.00",WOODLANDS CARE CENTRE,CARE ESTABLISHMENT,Carers - DPs,Carers ALL Adults DP's only,Residential Care
Cambridgeshire County Council,14-Nov-19,51301263247,"-1,110.00",WOODLANDS CARE CENTRE,CARE ESTABLISHMENT,Carers - DPs,Carers ALL Adults DP's only,Residential Care
Cambridgeshire County Council,14-Nov-19,51301263247,"-1,110.00",WOODLANDS CARE CENTRE,CARE ESTABLISHMENT,Carers - DPs,Carers ALL Adults DP's only,Residential Care
Cambridgeshire County Council,14-Nov-19,51301263247,"-1,110.00",WOODLANDS CARE CENTRE,CARE ESTABLISHMENT,Carers - DPs,Carers ALL Adults DP's only,Residential Care
Cambridgeshire County Council,14-Nov-19,51301263247,"-1,110.00",WOODLANDS CARE CENTRE,CARE ESTABLISHMENT,Carers - DPs,Carers ALL Adults DP's only,Residential Care
Cambridgeshire County Council,14-Nov-19,51301263247,"-1,110.00",WOODLANDS CARE CENTRE,CARE ESTABLISHMENT,Carers - DPs,Carers ALL Adults DP's only,Residential Care
Cambridgeshire County Council,14-Nov-19,51301263247,"-1,110.00",WOODLANDS CARE CENTRE,CARE ESTABLISHMENT,Carers - DPs,Carers ALL Adults DP's only,Residential Care
Cambridgeshire County Council,14-Nov-19,51301263247,"-1,110.00",WOODLANDS CARE CENTRE,CARE ESTABLISHMENT,Carers - DPs,Carers ALL Adults DP's only,Residential Care
Cambridgeshire County Council,14-Nov-19,51301263247,"-1,110.00",WOODLANDS CARE CENTRE,CARE ESTABLISHMENT,Carers - DPs,Carers ALL Adults DP's only,Residential Care
Cambridgeshire County Council,28-Nov-19,51301268294,"-1,102.95",AURORA ORCHARD MANOR,CARE ESTABLISHMENT,LD - Young Adults Team,LD - Young Adults - Care,Residential Care
Cambridgeshire County Council,28-Nov-19,51301268294,"-1,102.95",AURORA ORCHARD MANOR,CARE ESTABLISHMENT,LD - Young Adults Team,LD - Young Adults - Care,Residential Care
Cambridgeshire County Council,28-Nov-19,51301268294,"-1,102.95",AURORA ORCHARD MANOR,CARE ESTABLISHMENT,LD - Young Adults Team,LD - Young Adults - Care,Residential Care
Cambridgeshire County Council,28-Nov-19,51301268294,"-1,102.95",AURORA ORCHARD MANOR,CARE ESTABLISHMENT,LD - Young Adults Team,LD - Young Adults - Care,Residential Care
Cambridgeshire County Council,28-Nov-19,51301268294,"-1,102.95",AURORA ORCHARD MANOR,CARE ESTABLISHMENT,LD - Young Adults Team,LD - Young Adults - Care,Residential Care
Cambridgeshire County Council,28-Nov-19,51300818573,"-1,097.51",MENCAP (32 KINGS LANE),CARE ESTABLISHMENT,LD - Young Adults Team,LD - Young Adults - Special Needs,Residential Care
Cambridgeshire County Council,28-Nov-19,51300818587,"-1,097.51",MENCAP (32 KINGS LANE),CARE ESTABLISHMENT,LD - Young Adults Team,LD - Young Adults - Special Needs,Residential Care
Cambridgeshire County Council,28-Nov-19,51300818570,"-1,097.51",MENCAP (32 KINGS LANE),CARE ESTABLISHMENT,LD - Young Adults Team,LD - Young Adults - Special Needs,Residential Care
Cambridgeshire County Council,28-Nov-19,51300818571,"-1,097.51",MENCAP (32 KINGS LANE),CARE ESTABLISHMENT,LD - Young Adults Team,LD - Young Adults - Special Needs,Residential Care
Cambridgeshire County Council,28-Nov-19,51300818581,"-1,097.51",MENCAP (32 KINGS LANE),CARE ESTABLISHMENT,LD - Young Adults Team,LD - Young Adults - Special Needs,Residential Care
Cambridgeshire County Council,28-Nov-19,51300818572,"-1,097.51",MENCAP (32 KINGS LANE),CARE ESTABLISHMENT,LD - Young Adults Team,LD - Young Adults - Special Needs,Residential Care
Cambridgeshire County Council,28-Nov-19,51300818568,"-1,097.51",MENCAP (32 KINGS LANE),CARE ESTABLISHMENT,LD - Young Adults Team,LD - Young Adults - Special Needs,Residential Care
Cambridgeshire County Council,28-Nov-19,51300818596,"-1,097.51",MENCAP (32 KINGS LANE),CARE ESTABLISHMENT,LD - Young Adults Team,LD - Young Adults - Special Needs,Residential Care
Cambridgeshire County Council,28-Nov-19,51300818567,"-1,097.51",MENCAP (32 KINGS LANE),CARE ESTABLISHMENT,LD - Young Adults Team,LD - Young Adults - Special Needs,Residential Care
Cambridgeshire County Council,28-Nov-19,51300818597,"-1,097.51",MENCAP (32 KINGS LANE),CARE ESTABLISHMENT,LD - Young Adults Team,LD - Young Adults - Special Needs,Residential Care
Cambridgeshire County Council,28-Nov-19,51300818564,"-1,097.51",MENCAP (32 KINGS LANE),CARE ESTABLISHMENT,LD - Young Adults Team,LD - Young Adults - Special Needs,Residential Care
Cambridgeshire County Council,28-Nov-19,51300818588,"-1,097.51",MENCAP (32 KINGS LANE),CARE ESTABLISHMENT,LD - Young Adults Team,LD - Young Adults - Special Needs,Residential Care
Cambridgeshire County Council,28-Nov-19,51300818582,"-1,097.51",MENCAP (32 KINGS LANE),CARE ESTABLISHMENT,LD - Young Adults Team,LD - Young Adults - Special Needs,Residential Care
Cambridgeshire County Council,28-Nov-19,51300818559,"-1,097.51",MENCAP (32 KINGS LANE),CARE ESTABLISHMENT,LD - Young Adults Team,LD - Young Adults - Special Needs,Residential Care
Cambridgeshire County Council,28-Nov-19,51300818578,"-1,097.51",MENCAP (32 KINGS LANE),CARE ESTABLISHMENT,LD - Young Adults Team,LD - Young Adults - Special Needs,Residential Care
Cambridgeshire County Council,28-Nov-19,51300818580,"-1,097.51",MENCAP (32 KINGS LANE),CARE ESTABLISHMENT,LD - Young Adults Team,LD - Young Adults - Special Needs,Residential Care
Cambridgeshire County Council,28-Nov-19,51300818563,"-1,097.51",MENCAP (32 KINGS LANE),CARE ESTABLISHMENT,LD - Young Adults Team,LD - Young Adults - Special Needs,Residential Care
Cambridgeshire County Council,28-Nov-19,51300818586,"-1,097.51",MENCAP (32 KINGS LANE),CARE ESTABLISHMENT,LD - Young Adults Team,LD - Young Adults - Special Needs,Residential Care
Cambridgeshire County Council,08-Nov-19,51301257233,"-1,097.16",AURORA ORCHARD MANOR,CARE ESTABLISHMENT,LD - Young Adults Team,LD - Young Adults - Care,Residential Care
Cambridgeshire County Council,08-Nov-19,51301257233,"-1,097.16",AURORA ORCHARD MANOR,CARE ESTABLISHMENT,LD - Young Adults Team,LD - Young Adults - Care,Residential Care
Cambridgeshire County Council,08-Nov-19,51301257233,"-1,097.16",AURORA ORCHARD MANOR,CARE ESTABLISHMENT,LD - Young Adults Team,LD - Young Adults - Care,Residential Care
Cambridgeshire County Council,08-Nov-19,51301257233,"-1,097.16",AURORA ORCHARD MANOR,CARE ESTABLISHMENT,LD - Young Adults Team,LD - Young Adults - Care,Residential Care
Cambridgeshire County Council,08-Nov-19,51301257233,"-1,097.16",AURORA ORCHARD MANOR,CARE ESTABLISHMENT,LD - Young Adults Team,LD - Young Adults - Care,Residential Care
Cambridgeshire County Council,08-Nov-19,51301257233,"-1,097.16",AURORA ORCHARD MANOR,CARE ESTABLISHMENT,LD - Young Adults Team,LD - Young Adults - Care,Residential Care
Cambridgeshire County Council,08-Nov-19,51301257233,"-1,097.16",AURORA ORCHARD MANOR,CARE ESTABLISHMENT,LD - Young Adults Team,LD - Young Adults - Care,Residential Care
Cambridgeshire County Council,08-Nov-19,51301257233,"-1,097.16",AURORA ORCHARD MANOR,CARE ESTABLISHMENT,LD - Young Adults Team,LD - Young Adults - Care,Residential Care
Cambridgeshire County Council,08-Nov-19,51301257233,"-1,097.16",AURORA ORCHARD MANOR,CARE ESTABLISHMENT,LD - Young Adults Team,LD - Young Adults - Care,Residential Care
Cambridgeshire County Council,08-Nov-19,51301257233,"-1,097.16",AURORA ORCHARD MANOR,CARE ESTABLISHMENT,LD - Young Adults Team,LD - Young Adults - Care,Residential Care
Cambridgeshire County Council,08-Nov-19,51301257233,"-1,097.16",AURORA ORCHARD MANOR,CARE ESTABLISHMENT,LD - Young Adults Team,LD - Young Adults - Care,Residential Care
Cambridgeshire County Council,08-Nov-19,51301257233,"-1,097.16",AURORA ORCHARD MANOR,CARE ESTABLISHMENT,LD - Young Adults Team,LD - Young Adults - Care,Residential Care
Cambridgeshire County Council,08-Nov-19,51301257233,"-1,097.16",AURORA ORCHARD MANOR,CARE ESTABLISHMENT,LD - Young Adults Team,LD - Young Adults - Care,Residential Care
Cambridgeshire County Council,08-Nov-19,51301257233,"-1,097.16",AURORA ORCHARD MANOR,CARE ESTABLISHMENT,LD - Young Adults Team,LD - Young Adults - Care,Residential Care
Cambridgeshire County Council,08-Nov-19,51301257233,"-1,097.16",AURORA ORCHARD MANOR,CARE ESTABLISHMENT,LD - Young Adults Team,LD - Young Adults - Care,Residential Care
Cambridgeshire County Council,08-Nov-19,51301257233,"-1,097.16",AURORA ORCHARD MANOR,CARE ESTABLISHMENT,LD - Young Adults Team,LD - Young Adults - Care,Residential Care
Cambridgeshire County Council,08-Nov-19,51301240402,"-1,091.75",FLORIDA AVENUE (VOYAGE),CARE ESTABLISHMENT,LD - Hunts Locality - Cost of Care,LD - Huntingdonshire - Special Needs,Supported Living
Cambridgeshire County Council,08-Nov-19,51301240397,"-1,091.75",FLORIDA AVENUE (VOYAGE),CARE ESTABLISHMENT,LD - Hunts Locality - Cost of Care,LD - Huntingdonshire - Special Needs,Supported Living
Cambridgeshire County Council,08-Nov-19,51301251332,"-1,091.65",GUYATT HOUSE CARE LTD,CARE ESTABLISHMENT,LD - East Locality - Cost of Care,LD - East Cambs - Special Needs,Domiciliary Care
Cambridgeshire County Council,08-Nov-19,51301255025,"-1,091.65",GUYATT HOUSE CARE LTD,CARE ESTABLISHMENT,LD - East Locality - Cost of Care,LD - East Cambs - Care,Domiciliary Care
Cambridgeshire County Council,08-Nov-19,51301250568,"-1,088.46",VOYAGE,CARE ESTABLISHMENT,OPMH - Hunts & Fens,Older People Mental Health Fenland,Supported Living
Cambridgeshire County Council,08-Nov-19,51301250567,"-1,088.46",VOYAGE,CARE ESTABLISHMENT,OPMH - Hunts & Fens,Older People Mental Health Fenland,Supported Living
Cambridgeshire County Council,08-Nov-19,51301237975,"-1,085.69",SELTON HOUSE,CARE ESTABLISHMENT,LD - Fenland Locality - Cost of Care,LD - Fenland  - Special Needs,Supported Living
Cambridgeshire County Council,08-Nov-19,51301237973,"-1,085.69",SELTON HOUSE,CARE ESTABLISHMENT,LD - Fenland Locality - Cost of Care,LD - Fenland  - Special Needs,Supported Living
Cambridgeshire County Council,28-Nov-19,51301268859,"-1,084.44",CHERRY HINTON NURSING HOME,CARE ESTABLISHMENT,OP - City & South Locality - Cost of Care,Older People - City & South - Care,Nursing Care
Cambridgeshire County Council,28-Nov-19,51301268859,"-1,084.44",CHERRY HINTON NURSING HOME,CARE ESTABLISHMENT,OP - City & South Locality - Cost of Care,Older People - City & South - Care,Nursing Care
Cambridgeshire County Council,28-Nov-19,51301268859,"-1,084.44",CHERRY HINTON NURSING HOME,CARE ESTABLISHMENT,OP - City & South Locality - Cost of Care,Older People - City & South - Care,Nursing Care
Cambridgeshire County Council,28-Nov-19,51301268859,"-1,084.44",CHERRY HINTON NURSING HOME,CARE ESTABLISHMENT,OP - City & South Locality - Cost of Care,Older People - City & South - Care,Nursing Care
Cambridgeshire County Council,28-Nov-19,51301268859,"-1,084.44",CHERRY HINTON NURSING HOME,CARE ESTABLISHMENT,OP - City & South Locality - Cost of Care,Older People - City & South - Care,Nursing Care
Cambridgeshire County Council,28-Nov-19,51301268859,"-1,084.44",CHERRY HINTON NURSING HOME,CARE ESTABLISHMENT,OP - City & South Locality - Cost of Care,Older People - City & South - Care,Nursing Care
Cambridgeshire County Council,28-Nov-19,51301268859,"-1,084.44",CHERRY HINTON NURSING HOME,CARE ESTABLISHMENT,OP - City & South Locality - Cost of Care,Older People - City & South - Care,Nursing Care
Cambridgeshire County Council,28-Nov-19,51301268859,"-1,084.44",CHERRY HINTON NURSING HOME,CARE ESTABLISHMENT,OP - City & South Locality - Cost of Care,Older People - City & South - Care,Nursing Care
Cambridgeshire County Council,28-Nov-19,51301268859,"-1,084.44",CHERRY HINTON NURSING HOME,CARE ESTABLISHMENT,OP - City & South Locality - Cost of Care,Older People - City & South - Care,Nursing Care
Cambridgeshire County Council,28-Nov-19,51301268859,"-1,084.44",CHERRY HINTON NURSING HOME,CARE ESTABLISHMENT,OP - City & South Locality - Cost of Care,Older People - City & South - Care,Nursing Care
Cambridgeshire County Council,28-Nov-19,51301268859,"-1,084.44",CHERRY HINTON NURSING HOME,CARE ESTABLISHMENT,OP - City & South Locality - Cost of Care,Older People - City & South - Care,Nursing Care
Cambridgeshire County Council,28-Nov-19,51301268859,"-1,084.44",CHERRY HINTON NURSING HOME,CARE ESTABLISHMENT,OP - City & South Locality - Cost of Care,Older People - City & South - Care,Nursing Care
Cambridgeshire County Council,28-Nov-19,51301268859,"-1,084.44",CHERRY HINTON NURSING HOME,CARE ESTABLISHMENT,OP - City & South Locality - Cost of Care,Older People - City & South - Care,Nursing Care
Cambridgeshire County Council,28-Nov-19,51301268859,"-1,084.44",CHERRY HINTON NURSING HOME,CARE ESTABLISHMENT,OP - City & South Locality - Cost of Care,Older People - City & South - Care,Nursing Care
Cambridgeshire County Council,28-Nov-19,51301268859,"-1,084.44",CHERRY HINTON NURSING HOME,CARE ESTABLISHMENT,OP - City & South Locality - Cost of Care,Older People - City & South - Care,Nursing Care
Cambridgeshire County Council,08-Nov-19,51301240546,"-1,082.43",RENTON COURT (VOYAGE),CARE ESTABLISHMENT,LD - Hunts Locality - Cost of Care,LD - Huntingdonshire - Special Needs,Supported Living
Cambridgeshire County Council,08-Nov-19,51301240980,"-1,082.43",RENTON COURT (VOYAGE),CARE ESTABLISHMENT,LD - Hunts Locality - Cost of Care,LD - Huntingdonshire - Special Needs,Supported Living
Cambridgeshire County Council,08-Nov-19,51301240545,"-1,082.43",RENTON COURT (VOYAGE),CARE ESTABLISHMENT,LD - Hunts Locality - Cost of Care,LD - Huntingdonshire - Special Needs,Supported Living
Cambridgeshire County Council,08-Nov-19,51301240216,"-1,082.43",RENTON COURT (VOYAGE),CARE ESTABLISHMENT,LD - Hunts Locality - Cost of Care,LD - Huntingdonshire - Special Needs,Supported Living
Cambridgeshire County Council,08-Nov-19,51301240215,"-1,082.43",RENTON COURT (VOYAGE),CARE ESTABLISHMENT,LD - Hunts Locality - Cost of Care,LD - Huntingdonshire - Special Needs,Supported Living
Cambridgeshire County Council,08-Nov-19,51301240981,"-1,082.43",RENTON COURT (VOYAGE),CARE ESTABLISHMENT,LD - Hunts Locality - Cost of Care,LD - Huntingdonshire - Special Needs,Supported Living
Cambridgeshire County Council,08-Nov-19,51301238501,"-1,082.43",RENTON COURT (VOYAGE),CARE ESTABLISHMENT,LD - Hunts Locality - Cost of Care,LD - Huntingdonshire - Care,Supported Living
Cambridgeshire County Council,08-Nov-19,51301238502,"-1,082.43",RENTON COURT (VOYAGE),CARE ESTABLISHMENT,LD - Hunts Locality - Cost of Care,LD - Huntingdonshire - Care,Supported Living
Cambridgeshire County Council,08-Nov-19,51301248251,"-1,081.26",HOME FARM TRUST (SHEFFIELD),CARE ESTABLISHMENT,LD - Hunts Locality - Cost of Care,LD - Huntingdonshire - Special Needs,Supported Living
Cambridgeshire County Council,08-Nov-19,51301248249,"-1,081.26",HOME FARM TRUST (SHEFFIELD),CARE ESTABLISHMENT,LD - Hunts Locality - Cost of Care,LD - Huntingdonshire - Special Needs,Supported Living
Cambridgeshire County Council,08-Nov-19,51301248248,"-1,081.26",HOME FARM TRUST (SHEFFIELD),CARE ESTABLISHMENT,LD - Hunts Locality - Cost of Care,LD - Huntingdonshire - Special Needs,Supported Living
Cambridgeshire County Council,08-Nov-19,51301238082,"-1,075.05",MENCAP (COWLEY ROAD),CARE ESTABLISHMENT,LD - Fenland Locality - Cost of Care,LD - Fenland  - Special Needs,Supported Living
Cambridgeshire County Council,08-Nov-19,51301238079,"-1,075.05",MENCAP (COWLEY ROAD),CARE ESTABLISHMENT,LD - Fenland Locality - Cost of Care,LD - Fenland  - Special Needs,Supported Living
Cambridgeshire County Council,08-Nov-19,51301239377,"-1,075.05",MENCAP (COWLEY ROAD),CARE ESTABLISHMENT,LD - Fenland Locality - Cost of Care,LD - Fenland  - Care,Supported Living
Cambridgeshire County Council,08-Nov-19,51301239378,"-1,075.05",MENCAP (COWLEY ROAD),CARE ESTABLISHMENT,LD - Fenland Locality - Cost of Care,LD - Fenland  - Care,Supported Living
Cambridgeshire County Council,08-Nov-19,51301239534,"-1,073.93",MENCAP (COWLEY ROAD),CARE ESTABLISHMENT,LD - Fenland Locality - Cost of Care,LD - Fenland  - Care,Supported Living
Cambridgeshire County Council,08-Nov-19,51301239535,"-1,073.93",MENCAP (COWLEY ROAD),CARE ESTABLISHMENT,LD - Fenland Locality - Cost of Care,LD - Fenland  - Care,Supported Living
Cambridgeshire County Council,28-Nov-19,51300826532,"-1,070.96",MENCAP (32 KINGS LANE),CARE ESTABLISHMENT,LD - Hunts Locality - Cost of Care,LD - Huntingdonshire - Special Needs,Residential Care
Cambridgeshire County Council,28-Nov-19,51300816264,"-1,070.96",MENCAP (32 KINGS LANE),CARE ESTABLISHMENT,LD - Hunts Locality - Cost of Care,LD - Huntingdonshire - Special Needs,Residential Care
Cambridgeshire County Council,21-Nov-19,51301265250,"-1,060.71",Redacted Personal Data ,INDIVIDUAL,OP - City & South Locality - Cost of Care,Older People - City & South - Care,Direct Payments
Cambridgeshire County Council,21-Nov-19,51301265250,"-1,060.71",Redacted Personal Data ,INDIVIDUAL,OP - City & South Locality - Cost of Care,Older People - City & South - Care,Direct Payments
Cambridgeshire County Council,21-Nov-19,51301265250,"-1,060.71",Redacted Personal Data ,INDIVIDUAL,OP - City & South Locality - Cost of Care,Older People - City & South - Care,Direct Payments
Cambridgeshire County Council,21-Nov-19,51301265250,"-1,060.71",Redacted Personal Data ,INDIVIDUAL,OP - City & South Locality - Cost of Care,Older People - City & South - Care,Direct Payments
Cambridgeshire County Council,21-Nov-19,51301265250,"-1,060.71",Redacted Personal Data ,INDIVIDUAL,OP - City & South Locality - Cost of Care,Older People - City & South - Care,Direct Payments
Cambridgeshire County Council,21-Nov-19,51301265250,"-1,060.71",Redacted Personal Data ,INDIVIDUAL,OP - City & South Locality - Cost of Care,Older People - City & South - Care,Direct Payments
Cambridgeshire County Council,21-Nov-19,51301265250,"-1,060.71",Redacted Personal Data ,INDIVIDUAL,OP - City & South Locality - Cost of Care,Older People - City & South - Care,Direct Payments
Cambridgeshire County Council,21-Nov-19,51301265250,"-1,060.71",Redacted Personal Data ,INDIVIDUAL,OP - City & South Locality - Cost of Care,Older People - City & South - Care,Direct Payments
Cambridgeshire County Council,21-Nov-19,51301265250,"-1,060.71",Redacted Personal Data ,INDIVIDUAL,OP - City & South Locality - Cost of Care,Older People - City & South - Care,Direct Payments
Cambridgeshire County Council,21-Nov-19,51301265250,"-1,060.71",Redacted Personal Data ,INDIVIDUAL,OP - City & South Locality - Cost of Care,Older People - City & South - Care,Direct Payments
Cambridgeshire County Council,21-Nov-19,51301265250,"-1,060.71",Redacted Personal Data ,INDIVIDUAL,OP - City & South Locality - Cost of Care,Older People - City & South - Care,Direct Payments
Cambridgeshire County Council,21-Nov-19,51301265250,"-1,060.71",Redacted Personal Data ,INDIVIDUAL,OP - City & South Locality - Cost of Care,Older People - City & South - Care,Direct Payments
Cambridgeshire County Council,28-Nov-19,51301268878,"-1,050.00",ROSE LODGE,CARE ESTABLISHMENT,OP - Fenland Locality - Cost of Care,Older People - Fenland - Care,Nursing Care
Cambridgeshire County Council,28-Nov-19,51301268878,"-1,050.00",ROSE LODGE,CARE ESTABLISHMENT,OP - Fenland Locality - Cost of Care,Older People - Fenland - Care,Nursing Care
Cambridgeshire County Council,28-Nov-19,51301268878,"-1,050.00",ROSE LODGE,CARE ESTABLISHMENT,OP - Fenland Locality - Cost of Care,Older People - Fenland - Care,Nursing Care
Cambridgeshire County Council,28-Nov-19,51301268878,"-1,050.00",ROSE LODGE,CARE ESTABLISHMENT,OP - Fenland Locality - Cost of Care,Older People - Fenland - Care,Nursing Care
Cambridgeshire County Council,28-Nov-19,51301268878,"-1,050.00",ROSE LODGE,CARE ESTABLISHMENT,OP - Fenland Locality - Cost of Care,Older People - Fenland - Care,Nursing Care
Cambridgeshire County Council,28-Nov-19,51301268878,"-1,050.00",ROSE LODGE,CARE ESTABLISHMENT,OP - Fenland Locality - Cost of Care,Older People - Fenland - Care,Nursing Care
Cambridgeshire County Council,28-Nov-19,51301268878,"-1,050.00",ROSE LODGE,CARE ESTABLISHMENT,OP - Fenland Locality - Cost of Care,Older People - Fenland - Care,Nursing Care
Cambridgeshire County Council,28-Nov-19,51301268878,"-1,050.00",ROSE LODGE,CARE ESTABLISHMENT,OP - Fenland Locality - Cost of Care,Older People - Fenland - Care,Nursing Care
Cambridgeshire County Council,28-Nov-19,51301268878,"-1,050.00",ROSE LODGE,CARE ESTABLISHMENT,OP - Fenland Locality - Cost of Care,Older People - Fenland - Care,Nursing Care
Cambridgeshire County Council,28-Nov-19,51301268878,"-1,050.00",ROSE LODGE,CARE ESTABLISHMENT,OP - Fenland Locality - Cost of Care,Older People - Fenland - Care,Nursing Care
Cambridgeshire County Council,28-Nov-19,51301268878,"-1,050.00",ROSE LODGE,CARE ESTABLISHMENT,OP - Fenland Locality - Cost of Care,Older People - Fenland - Care,Nursing Care
Cambridgeshire County Council,28-Nov-19,51301268878,"-1,050.00",ROSE LODGE,CARE ESTABLISHMENT,OP - Fenland Locality - Cost of Care,Older People - Fenland - Care,Nursing Care
Cambridgeshire County Council,28-Nov-19,51301268878,"-1,050.00",ROSE LODGE,CARE ESTABLISHMENT,OP - Fenland Locality - Cost of Care,Older People - Fenland - Care,Nursing Care
Cambridgeshire County Council,28-Nov-19,51301268878,"-1,050.00",ROSE LODGE,CARE ESTABLISHMENT,OP - Fenland Locality - Cost of Care,Older People - Fenland - Care,Nursing Care
Cambridgeshire County Council,28-Nov-19,51301268878,"-1,050.00",ROSE LODGE,CARE ESTABLISHMENT,OP - Fenland Locality - Cost of Care,Older People - Fenland - Care,Nursing Care
Cambridgeshire County Council,28-Nov-19,51301268878,"-1,050.00",ROSE LODGE,CARE ESTABLISHMENT,OP - Fenland Locality - Cost of Care,Older People - Fenland - Care,Nursing Care
Cambridgeshire County Council,28-Nov-19,51301268878,"-1,050.00",ROSE LODGE,CARE ESTABLISHMENT,OP - Fenland Locality - Cost of Care,Older People - Fenland - Care,Nursing Care
Cambridgeshire County Council,28-Nov-19,51301268878,"-1,050.00",ROSE LODGE,CARE ESTABLISHMENT,OP - Fenland Locality - Cost of Care,Older People - Fenland - Care,Nursing Care
Cambridgeshire County Council,28-Nov-19,51301268878,"-1,050.00",ROSE LODGE,CARE ESTABLISHMENT,OP - Fenland Locality - Cost of Care,Older People - Fenland - Care,Nursing Care
Cambridgeshire County Council,28-Nov-19,51301268878,"-1,050.00",ROSE LODGE,CARE ESTABLISHMENT,OP - Fenland Locality - Cost of Care,Older People - Fenland - Care,Nursing Care
